FILE,Service Area Categorisation,Service Division Categorisation,Responsible Unit,Unit Code,Expenses Type,Expenses Sub Type,Expense  Code,Detailed Expenses Type,Transaction No,Amount,Invoice Date,Capital/Revenue,Supplier Name
2012 - JAN,Cultural Env Reg&Plan Services,Comm. Safety (Crime Reduction),CCTV                                    ,A01200,Supplies & Services           ,Equip Furniture/Materials     ,DA01,Equipment - R & M,1,"6,402.19",12/15/2011,R,EUROVIA INFASTRUCTURE LTD     
2012 - JAN,Cultural Env Reg&Plan Services,Comm. Safety (Crime Reduction),CCTV                                    ,A01200,Supplies & Services           ,Equip Furniture/Materials     ,DA01,Equipment - R & M,2,"10,146.65",11/29/2011,R,EUROVIA INFRASTRUCTURE LTD    
2012 - JAN,Cultural Env Reg&Plan Services,Comm. Safety (Crime Reduction),CCTV                                    ,A01200,Supplies & Services           ,Comms and Computing           ,DG15,Network Maintenance,3,"4,004.28",12/1/2011,R,BT REDCARE                    
2012 - JAN,Cultural Env Reg&Plan Services,Comm. Safety (Crime Reduction),CCTV                                    ,A01200,Supplies & Services           ,Comms and Computing           ,DG15,Network Maintenance,4,"2,526.84",10/4/2011,R,BT REDCARE                    
2012 - JAN,Cultural Env Reg&Plan Services,Comm. Safety (Crime Reduction),CCTV                                    ,A01200,Supplies & Services           ,Comms and Computing           ,DG15,Network Maintenance,5,"9,429.12",1/4/2012,R,BT REDCARE                    
2012 - JAN,Cultural Env Reg&Plan Services,Comm. Safety (Crime Reduction),Anti-Social Behaviour                   ,A01202,Supplies & Services           ,Equip Furniture/Materials     ,DA04,Materials,6,510,12/28/2011,R,SITEXORBIS LIMITED            
2012 - JAN,Cultural Env Reg&Plan Services,Comm. Safety (Crime Reduction),Anti-Social Behaviour                   ,A01202,Supplies & Services           ,Equip Furniture/Materials     ,DA04,Materials,7,510,12/28/2011,R,SITEXORBIS LIMITED            
2012 - JAN,Adult Social Care,Other Adult Services,Access and Engagement                   ,A01302,Third Party Payments          ,Private Contractors           ,EH02,Miscellaneous Hired Services,8,"1,856.25",1/3/2012,R,COMM.DRUG SERV.FOR SOUTHLONDON
2012 - JAN,Adult Social Care,Other Adult Services,Access and Engagement                   ,A01302,Third Party Payments          ,Private Contractors           ,EH02,Miscellaneous Hired Services,9,"41,048.00",1/3/2012,R,CRI                           
2012 - JAN,Adult Social Care,Other Adult Services,Retention in Drug Treatmt Srvs          ,A01303,Third Party Payments          ,Private Contractors           ,EH02,Miscellaneous Hired Services,10,"46,351.12",12/6/2011,R,SW LONDON ST GEORGES NHS TRUST
2012 - JAN,Adult Social Care,Other Adult Services,Retention in Drug Treatmt Srvs          ,A01303,Third Party Payments          ,Private Contractors           ,EH02,Miscellaneous Hired Services,11,"4,500.00",1/3/2012,R,COMM.DRUG SERV.FOR SOUTHLONDON
2012 - JAN,Adult Social Care,Other Adult Services,Retention in Drug Treatmt Srvs          ,A01303,Third Party Payments          ,Private Contractors           ,EH02,Miscellaneous Hired Services,12,"1,732.87",1/3/2012,R,COMM.DRUG SERV.FOR SOUTHLONDON
2012 - JAN,Adult Social Care,Other Adult Services,Retention in Drug Treatmt Srvs          ,A01303,Third Party Payments          ,Private Contractors           ,EH02,Miscellaneous Hired Services,13,"3,666.42",1/3/2012,R,COMM.DRUG SERV.FOR SOUTHLONDON
2012 - JAN,Adult Social Care,Other Adult Services,Retention in Drug Treatmt Srvs          ,A01303,Third Party Payments          ,Private Contractors           ,EH02,Miscellaneous Hired Services,14,"1,550.27",1/3/2012,R,COMM.DRUG SERV.FOR SOUTHLONDON
2012 - JAN,Adult Social Care,Other Adult Services,Retention in Drug Treatmt Srvs          ,A01303,Third Party Payments          ,Private Contractors           ,EH02,Miscellaneous Hired Services,15,"2,934.69",1/3/2012,R,COMM.DRUG SERV.FOR SOUTHLONDON
2012 - JAN,Adult Social Care,Other Adult Services,Retention in Drug Treatmt Srvs          ,A01303,Third Party Payments          ,Private Contractors           ,EH02,Miscellaneous Hired Services,16,"1,661.50",1/3/2012,R,COMM.DRUG SERV.FOR SOUTHLONDON
2012 - JAN,Adult Social Care,Other Adult Services,Retention in Drug Treatmt Srvs          ,A01303,Third Party Payments          ,Private Contractors           ,EH02,Miscellaneous Hired Services,17,"8,953.63",1/3/2012,R,COMM.DRUG SERV.FOR SOUTHLONDON
2012 - JAN,Adult Social Care,Other Adult Services,Retention in Drug Treatmt Srvs          ,A01303,Third Party Payments          ,Private Contractors           ,EH02,Miscellaneous Hired Services,18,"2,870.88",1/3/2012,R,COMM.DRUG SERV.FOR SOUTHLONDON
2012 - JAN,Adult Social Care,Other Adult Services,Retention in Drug Treatmt Srvs          ,A01303,Third Party Payments          ,Private Contractors           ,EH02,Miscellaneous Hired Services,19,"58,112.25",1/3/2012,R,COMM.DRUG SERV.FOR SOUTHLONDON
2012 - JAN,Adult Social Care,Other Adult Services,Retention in Drug Treatmt Srvs          ,A01303,Third Party Payments          ,Private Contractors           ,EH02,Miscellaneous Hired Services,20,785,10/3/2011,R,EQUINOX                       
2012 - JAN,Adult Social Care,Other Adult Services,Retention in Drug Treatmt Srvs          ,A01303,Third Party Payments          ,Private Contractors           ,EH02,Miscellaneous Hired Services,21,785,10/3/2011,R,EQUINOX                       
2012 - JAN,Adult Social Care,Other Adult Services,Retention in Drug Treatmt Srvs          ,A01303,Third Party Payments          ,Private Contractors           ,EH02,Miscellaneous Hired Services,22,"46,351.12",12/6/2011,R,SW LONDON ST GEORGES NHS TRUST
2012 - JAN,,,CCTV (match funding)                    ,CE002EA,New Construction Conversion and Renovation,,B1,Design and Supervision - Consultants Fee,23,"1,595.20",9/1/2011,C,GOODWILL ASSOCIATES LIMITED   
2012 - JAN,,,CCTV - Raynes Park                      ,CE002ED,New Construction Conversion and Renovation,,B1,Design and Supervision - Consultants Fee,24,641.82,10/24/2011,C,GOODWILL ASSOCIATES LIMITED   
2012 - JAN,,,CCTV - Safer Merton & Parking           ,CE002EG,New Construction Conversion and Renovation,,B1,Design and Supervision - Consultants Fee,25,"1,052.82",10/24/2011,C,GOODWILL ASSOCIATES LIMITED   
2012 - JAN,,,CCTV - Safer Merton & Parking           ,CE002EG,Vehicles Plant Equipment and Machinery,,D3,Equipment,26,"4,085.00",12/20/2011,C,CARTEL SECURITY SYSTEMS PLC   
2012 - JAN,,,CCTV Cameras for Olympics-ANPR          ,CE002EH,New Construction Conversion and Renovation,,B4,Site Works - Contractor,27,"5,753.00",9/6/2011,C,BT REDCARE                    
2012 - JAN,,,Disabled Facilities Grant DCLG          ,CE004RA,Other Capital Expenditure,,E1,Grants,28,822,1/13/2012,C,CARING SOLUTIONS LTD          
2012 - JAN,,,Disabled Facilities Grant DCLG          ,CE004RA,Other Capital Expenditure,,E1,Grants,29,"5,305.00",1/19/2012,C,HOME ADAPTATIONS              
2012 - JAN,,,Disabled Facilities Grant DCLG          ,CE004RA,Other Capital Expenditure,,E1,Grants,30,"3,603.00",1/19/2012,C,CBS ADAPTATION                
2012 - JAN,,,Disabled Facilities Grant DCLG          ,CE004RA,Other Capital Expenditure,,E1,Grants,31,"30,000.00",1/19/2012,C,STAYING FIRST                 
2012 - JAN,,,Disabled Facilities Grant DCLG          ,CE004RA,Other Capital Expenditure,,E1,Grants,32,928.84,1/19/2012,C,STAYING FIRST                 
2012 - JAN,,,Disabled Facilities Grant DCLG          ,CE004RA,Other Capital Expenditure,,E1,Grants,33,"5,138.00",1/24/2012,C,TBS ADAPTATIONS LTD           
2012 - JAN,,,Disabled Facilities Grant DCLG          ,CE004RA,Other Capital Expenditure,,E1,Grants,34,"3,310.00",1/24/2012,C,GO ACCESS DISTRIBUTION LIMITED
2012 - JAN,,,Disabled Facilities Grant DCLG          ,CE004RA,Other Capital Expenditure,,E1,Grants,35,"6,055.00",1/27/2012,C,CARING SOLUTIONS LTD          
2012 - JAN,,,DFG - Ex-Service Personnel              ,CE004RC,Other Capital Expenditure,,E1,Grants,36,"1,387.80",1/24/2012,C,R E SHELLEY                   
2012 - JAN,,,DFG - Ex-Service Personnel              ,CE004RC,Other Capital Expenditure,,E1,Grants,37,"11,565.00",1/27/2012,C,PREMIER ADAPTATIONS LTD       
2012 - JAN,,,DFG - Ex-Service Personnel              ,CE004RC,Other Capital Expenditure,,E1,Grants,38,"15,323.00",1/27/2012,C,HOME ADAPTATIONS              
2012 - JAN,,,DFG - Ex-Service Personnel              ,CE004RC,Other Capital Expenditure,,E1,Grants,39,"2,898.45",1/27/2012,C,CBS ADAPTATION                
2012 - JAN,,,Small Repairs Grant                     ,CE005RA,Other Capital Expenditure,,E1,Grants,40,"3,854.40",1/9/2012,C,GRABEX WINDOWS                
2012 - JAN,,,King Georges Playing Field              ,CE006CA,New Construction Conversion and Renovation,,B4,Site Works - Contractor,41,"2,900.00",1/19/2012,C,MORTON FAIRVIEW ELEC SERVICES 
2012 - JAN,,,Parks Investment                        ,CE013SA,New Construction Conversion and Renovation,,B4,Site Works - Contractor,42,"1,500.00",12/16/2011,C,DAPPA MRP FLOORING            
2012 - JAN,,,Parks Investment                        ,CE013SA,New Construction Conversion and Renovation,,B4,Site Works - Contractor,43,"3,500.00",12/2/2011,C,TAYLOR BUILDING COMPANY LTD   
2012 - JAN,,,Parks Investment                        ,CE013SA,New Construction Conversion and Renovation,,B4,Site Works - Contractor,44,"2,487.00",12/15/2011,C,TAYLOR BUILDING COMPANY LTD   
2012 - JAN,,,Parks Investment                        ,CE013SA,New Construction Conversion and Renovation,,B4,Site Works - Contractor,45,540,12/14/2011,C,DAPPA MRP FLOORING            
2012 - JAN,,,Parks Investment                        ,CE013SA,New Construction Conversion and Renovation,,B4,Site Works - Contractor,46,"2,220.00",12/15/2011,C,TAYLOR BUILDING COMPANY LTD   
2012 - JAN,,,Parks Investment                        ,CE013SA,New Construction Conversion and Renovation,,B4,Site Works - Contractor,47,"3,560.00",12/14/2011,C,DAPPA MRP FLOORING            
2012 - JAN,,,Parks Investment                        ,CE013SA,New Construction Conversion and Renovation,,B4,Site Works - Contractor,48,"2,641.00",12/8/2011,C,TAYLOR BUILDING COMPANY LTD   
2012 - JAN,,,Parks Investment                        ,CE013SA,New Construction Conversion and Renovation,,B4,Site Works - Contractor,49,775.75,12/6/2011,C,MORTON FAIRVIEW ELEC SERVICES 
2012 - JAN,,,Parks Investment                        ,CE013SA,New Construction Conversion and Renovation,,B4,Site Works - Contractor,50,"9,995.00",1/9/2012,C,REDDINGTON & SONS             
2012 - JAN,,,Bushey Road Bridge Repair               ,CE023FA,New Construction Conversion and Renovation,,B3,Design and Supervision - Other Expenses,51,"67,100.00",1/19/2012,C,NETWORK RAIL                  
2012 - JAN,,,Bushey Road Bridge Repair               ,CE023FA,New Construction Conversion and Renovation,,B4,Site Works - Contractor,52,"41,263.43",12/31/2011,C,FM CONWAY LTD                 
2012 - JAN,,,Surface Water Drainage                  ,CE024FA,New Construction Conversion and Renovation,,B4,Site Works - Contractor,53,"1,867.13",12/14/2011,C,FM CONWAY LTD                 
2012 - JAN,,,Surface Water Drainage                  ,CE024FA,New Construction Conversion and Renovation,,B4,Site Works - Contractor,54,"4,606.91",12/14/2011,C,FM CONWAY LTD                 
2012 - JAN,,,Highways bridges & structures           ,CE025FA,New Construction Conversion and Renovation,,B1,Design and Supervision - Consultants Fee,55,"6,320.00",12/22/2011,C,ATKINS LIMITED                
2012 - JAN,,,Highways bridges & structures           ,CE025FA,New Construction Conversion and Renovation,,B4,Site Works - Contractor,56,"1,820.00",12/31/2011,C,FM CONWAY LTD                 
2012 - JAN,,,Highways bridges & structures           ,CE025FA,New Construction Conversion and Renovation,,B4,Site Works - Contractor,57,"10,573.14",12/31/2011,C,FM CONWAY LTD                 
2012 - JAN,,,Highways bridges & structures           ,CE025FA,New Construction Conversion and Renovation,,B6,Site Works - Other Costs,58,637.5,5/31/2011,C,RUTLAND  T/AS MONITEYE COMPANY
2012 - JAN,,,Borough Roads Maintenance               ,CE026FA,New Construction Conversion and Renovation,,B1,Design and Supervision - Consultants Fee,59,"3,101.00",1/11/2012,C,JACOBS UK LIMITED             
2012 - JAN,,,Borough Roads Maintenance               ,CE026FA,New Construction Conversion and Renovation,,B1,Design and Supervision - Consultants Fee,60,"11,705.00",12/15/2011,C,JACOBS UK LIMITED             
2012 - JAN,,,Borough Roads Maintenance               ,CE026FA,New Construction Conversion and Renovation,,B4,Site Works - Contractor,61,"6,667.52",1/24/2012,C,FM CONWAY LTD                 
2012 - JAN,,,Borough Roads Maintenance               ,CE026FA,New Construction Conversion and Renovation,,B4,Site Works - Contractor,62,"33,120.40",1/24/2012,C,FM CONWAY LTD                 
2012 - JAN,,,Borough Roads Maintenance               ,CE026FA,New Construction Conversion and Renovation,,B4,Site Works - Contractor,63,"23,183.45",1/24/2012,C,FM CONWAY LTD                 
2012 - JAN,,,Borough Roads Maintenance               ,CE026FA,New Construction Conversion and Renovation,,B4,Site Works - Contractor,64,"2,332.58",1/24/2012,C,FM CONWAY LTD                 
2012 - JAN,,,Borough Roads Maintenance               ,CE026FA,New Construction Conversion and Renovation,,B4,Site Works - Contractor,65,"26,625.43",1/24/2012,C,FM CONWAY LTD                 
2012 - JAN,,,Borough Roads Maintenance               ,CE026FA,New Construction Conversion and Renovation,,B4,Site Works - Contractor,66,"24,681.17",1/24/2012,C,FM CONWAY LTD                 
2012 - JAN,,,Borough Roads Maintenance               ,CE026FA,New Construction Conversion and Renovation,,B4,Site Works - Contractor,67,"11,534.27",1/24/2012,C,FM CONWAY LTD                 
2012 - JAN,,,Borough Roads Maintenance               ,CE026FA,New Construction Conversion and Renovation,,B4,Site Works - Contractor,68,"24,322.62",1/24/2012,C,FM CONWAY LTD                 
2012 - JAN,,,Repairs to Footways                     ,CE029FA,New Construction Conversion and Renovation,,B4,Site Works - Contractor,69,"1,640.16",1/9/2012,C,FM CONWAY LTD                 
2012 - JAN,,,Repairs to Footways                     ,CE029FA,New Construction Conversion and Renovation,,B4,Site Works - Contractor,70,"50,000.00",1/10/2012,C,FM CONWAY LTD                 
2012 - JAN,,,Wimbledon Bridge                        ,CE032FA,New Construction Conversion and Renovation,,B1,Design and Supervision - Consultants Fee,71,"1,325.00",11/29/2011,C,HYDER CONSULTING (UK) LTD     
2012 - JAN,,,B497/8 Lombard Rd Improvements          ,CE034FA,Vehicles Plant Equipment and Machinery,,D3,Equipment,72,945.5,1/12/2012,C,LINK CCTV SYSTEMS             
2012 - JAN,,,Leisure Centre Plant & Machine          ,CE038MA,New Construction Conversion and Renovation,,B4,Site Works - Contractor,73,"31,930.00",1/10/2012,C,LIFESTYLE WINDOW SYSTEMS      
2012 - JAN,,,Leisure Centre Plant & Machine          ,CE038MA,New Construction Conversion and Renovation,,B4,Site Works - Contractor,74,678,1/18/2012,C,SALTASH ENTERPRISES LTD       
2012 - JAN,,,Leisure Centre Plant & Machine          ,CE038MA,New Construction Conversion and Renovation,,B4,Site Works - Contractor,75,"22,116.00",1/18/2012,C,SALTASH ENTERPRISES LTD       
2012 - JAN,,,Morden Park changing rooms              ,CE045AB,New Construction Conversion and Renovation,,B4,Site Works - Contractor,76,"1,073.00",1/10/2012,C,REDACTED
2012 - JAN,,,Morden Park changing rooms              ,CE045AB,New Construction Conversion and Renovation,,B4,Site Works - Contractor,77,"1,800.00",1/9/2012,C,REDDINGTON & SONS             
2012 - JAN,,,Morden Park changing rooms              ,CE045AB,New Construction Conversion and Renovation,,B4,Site Works - Contractor,78,"4,870.00",1/7/2012,C,REDACTED
2012 - JAN,,,Morden Park changing rooms              ,CE045AB,New Construction Conversion and Renovation,,B4,Site Works - Contractor,79,"3,935.00",1/13/2012,C,REDDINGTON & SONS             
2012 - JAN,,,Morden Park changing rooms              ,CE045AB,New Construction Conversion and Renovation,,B4,Site Works - Contractor,80,"1,250.00",11/14/2011,C,REDACTED
2012 - JAN,,,Morden Park changing rooms              ,CE045AB,New Construction Conversion and Renovation,,B4,Site Works - Contractor,81,597,1/24/2012,C,TAYLOR BUILDING COMPANY LTD   
2012 - JAN,,,CPZ - Parking Management                ,CE046EA,New Construction Conversion and Renovation,,B4,Site Works - Contractor,82,"7,523.80",1/24/2012,C,FM CONWAY LTD                 
2012 - JAN,,,CPZ - Parking Management                ,CE046EA,New Construction Conversion and Renovation,,B4,Site Works - Contractor,83,545.89,1/24/2012,C,FM CONWAY LTD                 
2012 - JAN,,,CPZ signage                             ,CE046EB,New Construction Conversion and Renovation,,C3,Public Notices,84,623.7,1/21/2012,C,NEWSQUEST (LONDON)LTD         
2012 - JAN,,,50 Montgomery Close                     ,CE047AA,New Construction Conversion and Renovation,,B4,Site Works - Contractor,85,"1,705.00",12/21/2011,C,RITEC DECORATORS LIMITED      
2012 - JAN,,,50 Montgomery Close                     ,CE047AA,New Construction Conversion and Renovation,,B4,Site Works - Contractor,86,"2,014.00",11/30/2011,C,RITEC DECORATORS LIMITED      
2012 - JAN,,,50 Montgomery Close                     ,CE047AA,New Construction Conversion and Renovation,,B4,Site Works - Contractor,87,524.5,11/30/2011,C,RITEC DECORATORS LIMITED      
2012 - JAN,,,50 Montgomery Close                     ,CE047AA,New Construction Conversion and Renovation,,B4,Site Works - Contractor,88,525,11/30/2011,C,RITEC DECORATORS LIMITED      
2012 - JAN,,,50 Montgomery Close                     ,CE047AA,New Construction Conversion and Renovation,,B4,Site Works - Contractor,89,"3,200.00",11/23/2011,C,TEAM Q MAINTENANCE LTD.       
2012 - JAN,,,Ryns Pk & Wim ftpath/cyclepath          ,CE050FD,New Construction Conversion and Renovation,,B4,Site Works - Contractor,90,"18,809.00",12/14/2011,C,FM CONWAY LTD                 
2012 - JAN,,,Low Carbon Zone                         ,CE052FA,Other Capital Expenditure,,E3,Miscellaneous Capital Expenditure,91,"2,970.03",12/22/2011,C,GROUNDWORK LONDON             
2012 - JAN,,,Climate Change Initiatives              ,CE052MA,Acquisition of Land and Existing Buildings,,A4,Other Acquisition Costs,92,665,1/23/2012,C,ANDREW GODDARD ASSOCIATES LTD 
2012 - JAN,,,Improve markings & road signs           ,CE066EA,New Construction Conversion and Renovation,,B4,Site Works - Contractor,93,"13,926.59",1/10/2012,C,FM CONWAY LTD                 
2012 - JAN,,,Improve markings & road signs           ,CE066EA,New Construction Conversion and Renovation,,B4,Site Works - Contractor,94,"4,444.82",1/24/2012,C,FM CONWAY LTD                 
2012 - JAN,,,Improve markings & road signs           ,CE066EA,New Construction Conversion and Renovation,,B4,Site Works - Contractor,95,"4,073.41",1/24/2012,C,FM CONWAY LTD                 
2012 - JAN,,,Improve markings & road signs           ,CE066EA,New Construction Conversion and Renovation,,B4,Site Works - Contractor,96,"2,510.22",1/24/2012,C,FM CONWAY LTD                 
2012 - JAN,,,Street scene enhancements               ,CE066FE,New Construction Conversion and Renovation,,B4,Site Works - Contractor,97,"1,888.00",11/30/2011,C,RITEC DECORATORS LIMITED      
2012 - JAN,,,Street Light Energy Reduction           ,CE068FB,New Construction Conversion and Renovation,,B4,Site Works - Contractor,98,"1,624.32",12/22/2011,C,MAY GURNEY LTD T/A CARTLEDGE  
2012 - JAN,,,Street Light Energy Reduction           ,CE068FB,New Construction Conversion and Renovation,,B4,Site Works - Contractor,99,"2,002.61",1/10/2012,C,MAY GURNEY LTD T/A CARTLEDGE  
2012 - JAN,,,Street Light Energy Reduction           ,CE068FB,New Construction Conversion and Renovation,,B4,Site Works - Contractor,100,"3,647.02",1/10/2012,C,MAY GURNEY LTD T/A CARTLEDGE  
2012 - JAN,,,Street Light Energy Reduction           ,CE068FB,New Construction Conversion and Renovation,,B4,Site Works - Contractor,101,"5,100.63",1/10/2012,C,MAY GURNEY LTD T/A CARTLEDGE  
2012 - JAN,,,20s Plenty & Area Traffic Calm          ,CE069FA,New Construction Conversion and Renovation,,B4,Site Works - Contractor,102,"8,000.00",12/23/2011,C,MAY GURNEY LTD T/A CARTLEDGE  
2012 - JAN,,,Traffic surveys & Safety Measu          ,CE075FA,New Construction Conversion and Renovation,,B4,Site Works - Contractor,103,"3,650.00",1/11/2012,C,JACOBS UK LIMITED             
2012 - JAN,,,B482 Sustainable access                 ,CE085FG,New Construction Conversion and Renovation,,B4,Site Works - Contractor,104,"10,000.00",1/5/2012,C,SOUTHERN RAILWAY LIMITED      
2012 - JAN,,,B602 Upgrading Railside Path            ,CE085FN,New Construction Conversion and Renovation,,B4,Site Works - Contractor,105,"4,500.00",12/14/2011,C,FM CONWAY LTD                 
2012 - JAN,,,Alley Gating Scheme - Fly Tip           ,CE087FA,Other Capital Expenditure,,E1,Grants,106,"3,118.07",12/21/2011,C,LYNKING ALLEY GATE ASSOCIATION
2012 - JAN,,,Alley Gating Scheme - Fly Tip           ,CE087FA,Other Capital Expenditure,,E1,Grants,107,959.8,12/9/2011,C,P J HARVEY & CO LTD           
2012 - JAN,,,Barrows and Bins Replacement            ,CE088EA,Vehicles Plant Equipment and Machinery,,D3,Equipment,108,"13,800.00",12/21/2011,C,GLASDON UK LTD                
2012 - JAN,,,Strategic corridor Mitcham              ,CE104FB,New Construction Conversion and Renovation,,B6,Site Works - Other Costs,109,"1,286.00",1/4/2012,C,UK POWER NETWORKS (OPERATIONS)
2012 - JAN,,,Kingston/Hartfield Rd StratCor          ,CE104FC,New Construction Conversion and Renovation,,B4,Site Works - Contractor,110,"15,000.00",12/14/2011,C,FM CONWAY LTD                 
2012 - JAN,,,Accesibility Programme                  ,CE104FD,New Construction Conversion and Renovation,,B4,Site Works - Contractor,111,"1,691.00",12/14/2011,C,FM CONWAY LTD                 
2012 - JAN,,,Accesibility Programme                  ,CE104FD,New Construction Conversion and Renovation,,B4,Site Works - Contractor,112,"15,745.80",1/10/2012,C,FM CONWAY LTD                 
2012 - JAN,,,Accesibility Programme                  ,CE104FD,New Construction Conversion and Renovation,,B4,Site Works - Contractor,113,"14,232.93",1/24/2012,C,FM CONWAY LTD                 
2012 - JAN,,,Accesibility Programme                  ,CE104FD,New Construction Conversion and Renovation,,B4,Site Works - Contractor,114,"10,309.00",1/24/2012,C,FM CONWAY LTD                 
2012 - JAN,,,Accesibility Programme                  ,CE104FD,New Construction Conversion and Renovation,,B4,Site Works - Contractor,115,"15,392.51",1/24/2012,C,FM CONWAY LTD                 
2012 - JAN,,,School & Road Safety Campaigns          ,CE104RC,Other Capital Expenditure,,E3,Miscellaneous Capital Expenditure,116,"1,812.50",1/4/2012,C,PREMIER RIDER TRAINING        
2012 - JAN,,,Incentivising Schools                   ,CE104RE,Other Capital Expenditure,,E4,TFL Other,117,"11,456.00",12/20/2011,C,POLKA THEATRE FOR CHILDREN    
2012 - JAN,,,Incentivising Schools                   ,CE104RE,Other Capital Expenditure,,E4,TFL Other,118,"13,122.00",12/20/2011,C,POLKA THEATRE FOR CHILDREN    
2012 - JAN,,,Bikeability cycle training Pro          ,CE104RG,Other Capital Expenditure,,E4,TFL Other,119,"1,400.00",1/11/2012,C,REDACTED
2012 - JAN,,,Bikeability cycle training Pro          ,CE104RG,Other Capital Expenditure,,E4,TFL Other,120,780,1/6/2012,C,ROYAL BOROUGH OF KINGSTON UPON
2012 - JAN,,,Wim TC Accessibility & Streets          ,CE106FA,New Construction Conversion and Renovation,,B6,Site Works - Other Costs,121,503,1/4/2012,C,UK POWER NETWORKS (OPERATIONS)
2012 - JAN,,,Wim TC Accessibility & Streets          ,CE106FA,New Construction Conversion and Renovation,,B6,Site Works - Other Costs,122,680,1/10/2012,C,UK POWER NETWORKS (OPERATIONS)
2012 - JAN,,,Wim TC Accessibility & Streets          ,CE106FA,Vehicles Plant Equipment and Machinery,,D3,Equipment,123,720,4/18/2011,C,TEASDALE GROUP LTD            
2012 - JAN,,,Wim TC Accessibility & Streets          ,CE106FA,Vehicles Plant Equipment and Machinery,,D3,Equipment,124,720,4/18/2011,C,TEASDALE GROUP LTD            
2012 - JAN,,,Lower Downs Rd walking/cycling          ,CE106FB,New Construction Conversion and Renovation,,B4,Site Works - Contractor,125,"4,691.00",1/24/2012,C,FM CONWAY LTD                 
2012 - JAN,,,Highway Asset Management                ,CE107EA,Other Capital Expenditure,,E3,Miscellaneous Capital Expenditure,126,850,9/15/2011,C,CIPFA BUSINESS LIMITED        
2012 - JAN,,,Leisure Services Parks&OpenSp           ,CE110SA,New Construction Conversion and Renovation,,B4,Site Works - Contractor,127,600,1/17/2012,C,AIR SURVEYS  LIMITED          
2012 - JAN,,,Leisure Services Parks&OpenSp           ,CE110SA,New Construction Conversion and Renovation,,B4,Site Works - Contractor,128,960,1/13/2012,C,REDDINGTON & SONS             
2012 - JAN,,,Leisure Services Parks&OpenSp           ,CE110SA,New Construction Conversion and Renovation,,B4,Site Works - Contractor,129,940,1/14/2012,C,REDACTED
2012 - JAN,,,Bushey Rd Bridge Concrete Rep           ,CE111FC,New Construction Conversion and Renovation,,B4,Site Works - Contractor,130,"1,791.63",12/31/2011,C,FM CONWAY LTD                 
2012 - JAN,,,Bushey Rd Bridge Concrete Rep           ,CE111FC,New Construction Conversion and Renovation,,B4,Site Works - Contractor,131,"57,868.74",11/30/2011,C,FM CONWAY LTD                 
2012 - JAN,,,Empty Homes Grant                       ,CE122RA,Other Capital Expenditure,,E1,Grants,132,"22,582.54",1/9/2012,C,REDACTED
2012 - JAN,,,Empty Homes Grant                       ,CE122RA,Other Capital Expenditure,,E1,Grants,133,"27,000.00",1/25/2012,C,KNK BUILDING SERVICES LTD     
2012 - JAN,,,London Road Toilet Refurbishme          ,CGH37AD,New Construction Conversion and Renovation,,2N,Capital main contractor payments,134,"3,080.35",12/21/2011,C,RITEC DECORATORS LIMITED      
2012 - JAN,,,London Road Toilet Refurbishme          ,CGH37AD,New Construction Conversion and Renovation,,2N,Capital main contractor payments,135,"1,975.00",12/21/2011,C,RITEC DECORATORS LIMITED      
2012 - JAN,Cultural Env Reg&Plan Services,SMSS (Env),ES Support & Development                ,G00070,Supplies & Services           ,Expenses                      ,DH02,Conferences,136,"1,850.00",11/25/2011,R,KINGS COLLEGE LONDON          
2012 - JAN,Cultural Env Reg&Plan Services,SMSS (Env),ES Support & Development                ,G00070,Supplies & Services           ,Expenses                      ,DH02,Conferences,137,600,10/14/2011,R,UNIVER. OF THE WEST OF ENGLAND
2012 - JAN,Cultural Env Reg&Plan Services,SMSS (Env),ES Support & Development                ,G00070,Supplies & Services           ,Expenses                      ,DH02,Conferences,138,893.6,1/10/2012,R,WAVE PEOPLE CONSULTING        
2012 - JAN,Cultural Env Reg&Plan Services,SMSS (Env),ES Support & Development                ,G00070,Supplies & Services           ,Expenses                      ,DH02,Conferences,139,645,12/21/2011,R,CAPEL MANOR COLLEGE           
2012 - JAN,Cultural Env Reg&Plan Services,SMSS (Env),ES Support & Development                ,G00070,Supplies & Services           ,Expenses                      ,DH02,Conferences,140,"1,700.00",1/16/2012,R,WOMEN'S AID FED. OF ENGLAND   
2012 - JAN,Cultural Env Reg&Plan Services,SMSS (Env),ES Support & Development                ,G00070,Supplies & Services           ,Expenses                      ,DH02,Conferences,141,645,1/24/2012,R,JCT CONSULTANCY LTD.          
2012 - JAN,Cultural Env Reg&Plan Services,SMSS (Env),ES Business Systems                     ,G00075,Supplies & Services           ,Comms and Computing           ,DG61,Computer Servs Special,142,937,12/21/2011,R,PITNEY BOWES SOFTWARE LTD     
2012 - JAN,Cultural Env Reg&Plan Services,SMSS (Env),ES Business Systems                     ,G00075,Supplies & Services           ,Comms and Computing           ,DG63,Software Licences - Data,143,"1,200.00",1/1/2012,R,GEOPLAN                       
2012 - JAN,Highways & Transport Services,Structural Maintenance,C'way & F'way Mtce                      ,G00121,Employees                     ,Direct Employee Expenses      ,AA17,Agency Staff & Casual Paymts,144,"9,425.00",12/18/2011,R,RIDGEWAY CONSULTING LTD.      
2012 - JAN,Highways & Transport Services,Structural Maintenance,Footway maintenance                     ,G00124,Third Party Payments          ,Private Contractors           ,EH56,Carriageway/Fway Maint,145,"12,000.00",1/10/2012,R,FM CONWAY LTD                 
2012 - JAN,Highways & Transport Services,Env Safety&Routine Maintenance,Walk Sheets                             ,G00127,Third Party Payments          ,Private Contractors           ,EH56,Carriageway/Fway Maint,146,"11,665.96",12/14/2011,R,FM CONWAY LTD                 
2012 - JAN,Highways & Transport Services,Env Safety&Routine Maintenance,Walk Sheets                             ,G00127,Third Party Payments          ,Private Contractors           ,EH56,Carriageway/Fway Maint,147,"6,792.76",1/10/2012,R,FM CONWAY LTD                 
2012 - JAN,Highways & Transport Services,Env Safety&Routine Maintenance,Walk Sheets                             ,G00127,Third Party Payments          ,Private Contractors           ,EH56,Carriageway/Fway Maint,148,"36,514.05",1/10/2012,R,FM CONWAY LTD                 
2012 - JAN,Highways & Transport Services,Env Safety&Routine Maintenance,Walk Sheets                             ,G00127,Third Party Payments          ,Private Contractors           ,EH56,Carriageway/Fway Maint,149,"77,478.11",1/24/2012,R,FM CONWAY LTD                 
2012 - JAN,Highways & Transport Services,Env Safety&Routine Maintenance,Walk Sheets                             ,G00127,Third Party Payments          ,Private Contractors           ,EH56,Carriageway/Fway Maint,150,"1,064.12",1/24/2012,R,FM CONWAY LTD                 
2012 - JAN,Highways & Transport Services,Env Safety&Routine Maintenance,Walk Sheets                             ,G00127,Third Party Payments          ,Private Contractors           ,EH56,Carriageway/Fway Maint,151,"6,064.31",1/24/2012,R,FM CONWAY LTD                 
2012 - JAN,Highways & Transport Services,Winter Service,Winter Maintenance                      ,G00150,Third Party Payments          ,Private Contractors           ,EH56,Carriageway/Fway Maint,152,"5,402.88",1/10/2012,R,FM CONWAY LTD                 
2012 - JAN,Highways & Transport Services,Env Safety&Routine Maintenance,Traffic Signs.                          ,G00160,Third Party Payments          ,Private Contractors           ,EH01,Miscellaneous Agency Services,153,"2,550.37",12/14/2011,R,FM CONWAY LTD                 
2012 - JAN,Highways & Transport Services,Env Safety&Routine Maintenance,Traffic Signs.                          ,G00160,Third Party Payments          ,Private Contractors           ,EH01,Miscellaneous Agency Services,154,"1,306.75",12/22/2011,R,MAY GURNEY LTD T/A CARTLEDGE  
2012 - JAN,Highways & Transport Services,Env Safety&Routine Maintenance,Traffic Signs.                          ,G00160,Third Party Payments          ,Private Contractors           ,EH01,Miscellaneous Agency Services,155,643,1/20/2012,R,UK POWER NETWORKS (OPERATIONS)
2012 - JAN,Highways & Transport Services,Env Safety&Routine Maintenance,Traffic Signs.                          ,G00160,Third Party Payments          ,Private Contractors           ,EH01,Miscellaneous Agency Services,156,643,1/20/2012,R,UK POWER NETWORKS (OPERATIONS)
2012 - JAN,Highways & Transport Services,Env Safety&Routine Maintenance,Traffic Signs.                          ,G00160,Third Party Payments          ,Private Contractors           ,EH01,Miscellaneous Agency Services,157,"1,416.90",1/24/2012,R,FM CONWAY LTD                 
2012 - JAN,Highways & Transport Services,Env Safety&Routine Maintenance,Traffic Signs.                          ,G00160,Third Party Payments          ,Private Contractors           ,EH01,Miscellaneous Agency Services,158,"1,202.91",1/24/2012,R,FM CONWAY LTD                 
2012 - JAN,Highways & Transport Services,Env Safety&Routine Maintenance,Traffic Signs.                          ,G00160,Third Party Payments          ,Private Contractors           ,EH01,Miscellaneous Agency Services,159,"1,052.18",1/24/2012,R,FM CONWAY LTD                 
2012 - JAN,Highways & Transport Services,Env Safety&Routine Maintenance,Traffic Signs.                          ,G00160,Third Party Payments          ,Private Contractors           ,EH02,Miscellaneous Hired Services,160,593.13,1/10/2012,R,FM CONWAY LTD                 
2012 - JAN,Highways & Transport Services,Env Safety&Routine Maintenance,Traffic Signs.                          ,G00160,Third Party Payments          ,Private Contractors           ,EH02,Miscellaneous Hired Services,161,"2,136.76",1/10/2012,R,FM CONWAY LTD                 
2012 - JAN,Highways & Transport Services,Env Safety&Routine Maintenance,Traffic Signs.                          ,G00160,Third Party Payments          ,Private Contractors           ,EH02,Miscellaneous Hired Services,162,549.83,1/24/2012,R,FM CONWAY LTD                 
2012 - JAN,Highways & Transport Services,Env Safety&Routine Maintenance,Traffic Signals .                       ,G00170,Third Party Payments          ,Other Agencies                ,EJ57,Traffic Signals Control Unit,163,"73,798.88",1/4/2012,R,TRANSPORT FOR LONDON          
2012 - JAN,Highways & Transport Services,Street Lights(Inc Energy Cost),Street Lighting .                       ,G00260,Premises Related Expenditure  ,Energy Costs                  ,BB02,Electricity,164,"53,028.14",1/11/2012,R,KENT COUNTY COUNCIL           
2012 - JAN,Highways & Transport Services,Street Lights(Inc Energy Cost),Street Lighting .                       ,G00260,Third Party Payments          ,Private Contractors           ,EH01,Miscellaneous Agency Services,165,643,1/3/2012,R,UK POWER NETWORKS (OPERATIONS)
2012 - JAN,Highways & Transport Services,Street Lights(Inc Energy Cost),Street Lighting .                       ,G00260,Third Party Payments          ,Private Contractors           ,EH01,Miscellaneous Agency Services,166,"13,634.39",12/30/2011,R,MAY GURNEY LTD T/A CARTLEDGE  
2012 - JAN,Highways & Transport Services,Street Lights(Inc Energy Cost),Street Lighting .                       ,G00260,Third Party Payments          ,Private Contractors           ,EH01,Miscellaneous Agency Services,167,"6,568.50",12/22/2011,R,MAY GURNEY LTD T/A CARTLEDGE  
2012 - JAN,Highways & Transport Services,Street Lights(Inc Energy Cost),Street Lighting .                       ,G00260,Third Party Payments          ,Private Contractors           ,EH01,Miscellaneous Agency Services,168,643,1/20/2012,R,UK POWER NETWORKS (OPERATIONS)
2012 - JAN,Highways & Transport Services,Street Lights(Inc Energy Cost),Street Lighting .                       ,G00260,Third Party Payments          ,Private Contractors           ,EH01,Miscellaneous Agency Services,169,643,1/20/2012,R,UK POWER NETWORKS (OPERATIONS)
2012 - JAN,Highways & Transport Services,Parking Services,St. Georges Car Park EAST               ,G00300,Premises Related Expenditure  ,Rents                         ,BC01,Miscellaneous Rents,170,713.93,12/15/2011,R,LLOYDS BANK SF NOMINEES LTD   
2012 - JAN,Highways & Transport Services,Parking Services,St. Georges Car Park WEST M/S           ,G00302,Premises Related Expenditure  ,RepairsAlterations&MtceOfBldgs,BA06,Repairs & Maintenance General,171,"2,983.80",12/22/2011,R,CARTLEDGE                     
2012 - JAN,Highways & Transport Services,Parking Services,St. Georges Car Park WEST M/S           ,G00302,Premises Related Expenditure  ,Energy Costs                  ,BB02,Electricity,172,"1,397.65",1/5/2012,R,KENT COUNTY COUNCIL           
2012 - JAN,Highways & Transport Services,Parking Services,St. Georges Car Park WEST M/S           ,G00302,Premises Related Expenditure  ,Rents                         ,BC01,Miscellaneous Rents,173,"3,688.02",11/14/2011,R,SACKVILLE SPF IV (GP) NO 1 LTD
2012 - JAN,Highways & Transport Services,Parking Services,On Street Parking.                      ,G00311,Premises Related Expenditure  ,RepairsAlterations&MtceOfBldgs,BA06,Repairs & Maintenance General,174,965.85,12/15/2011,R,TEASDALE GROUP LTD            
2012 - JAN,Highways & Transport Services,Parking Services,On Street Parking.                      ,G00311,Customer and client receipts  ,Charges                       ,RC54,Penalty Charge Notices X,175,725.4,1/24/2012,R,REDACTED
2012 - JAN,Highways & Transport Services,Parking Services,Civil Enforcement Officers              ,G00330,Supplies & Services           ,Equip Furniture/Materials     ,DA09,Equip-Purchases,176,850,12/30/2011,R,IMPERIAL CIVIL ENFORC.SOLUT.  
2012 - JAN,Highways & Transport Services,Parking Services,Civil Enforcement Officers              ,G00330,Supplies & Services           ,Comms and Computing           ,DG14,Telephones - Mobile,177,579.75,1/21/2012,R,VODAFONE CORPORATE LTD        
2012 - JAN,Highways & Transport Services,Parking Services,Operational Running Costs               ,G00331,Third Party Payments          ,Other Agencies                ,EJ58,Parking Cttee for London,178,"17,238.35",1/11/2012,R,LONDON COUNCILS               
2012 - JAN,Highways & Transport Services,Parking Services,Operational Running Costs               ,G00331,Third Party Payments          ,Other Agencies                ,EJ58,Parking Cttee for London,179,686,1/4/2012,R,LONDON COUNCILS               
2012 - JAN,Highways & Transport Services,Structural Maintenance,Footpath Crossings.                     ,G00390,Third Party Payments          ,Private Contractors           ,EH01,Miscellaneous Agency Services,180,"3,483.64",1/24/2012,R,FM CONWAY LTD                 
2012 - JAN,Highways & Transport Services,Structural Maintenance,Footpath Crossings.                     ,G00390,Third Party Payments          ,Private Contractors           ,EH56,Carriageway/Fway Maint,181,"9,070.42",1/10/2012,R,FM CONWAY LTD                 
2012 - JAN,Highways & Transport Services,Structural Maintenance,Footpath Crossings.                     ,G00390,Third Party Payments          ,Private Contractors           ,EH56,Carriageway/Fway Maint,182,"2,088.34",1/24/2012,R,FM CONWAY LTD                 
2012 - JAN,Cultural Env Reg&Plan Services,Street Cleaning - Not highways,Street Cleansing (Inc. Gully)           ,G00492,Supplies & Services           ,Clothing Unfrms Laundry       ,DC02,Clothing & Uniforms,183,"1,453.10",12/22/2011,R,SAFETY MANAGEMENT             
2012 - JAN,Cultural Env Reg&Plan Services,Waste Disposal,Waste Disposal .                        ,G00550,Third Party Payments          ,Private Contractors           ,EH01,Miscellaneous Agency Services,184,564.05,1/6/2012,R,BIFFA WASTE SERVICES LTD      
2012 - JAN,Cultural Env Reg&Plan Services,Waste Disposal,Waste Disposal .                        ,G00550,Third Party Payments          ,Private Contractors           ,EH04,Accommodation Based Support,185,"307,987.93",1/10/2012,R,KINGSTON CORPORATION          
2012 - JAN,Cultural Env Reg&Plan Services,Waste Disposal,Waste Disposal .                        ,G00550,Third Party Payments          ,Private Contractors           ,EH10,Contract Payments,186,"34,027.25",1/10/2012,R,KINGSTON CORPORATION          
2012 - JAN,Cultural Env Reg&Plan Services,Waste Disposal,Waste Disposal .                        ,G00550,Third Party Payments          ,Private Contractors           ,EH11,Agency Staff Clerk of Works,187,"181,000.00",1/16/2012,R,KINGSTON CORPORATION          
2012 - JAN,Cultural Env Reg&Plan Services,Waste Disposal,Waste Disposal .                        ,G00550,Third Party Payments          ,Private Contractors           ,EH66,Clinical Waste Disposal,188,676.94,12/30/2011,R,S.GRUNDON (WASTE) LTD.        
2012 - JAN,Highways & Transport Services,Structural Maintenance,Grass Cut/Tr Mtce                       ,G00600,Premises Related Expenditure  ,Ground Maintenance Costs      ,BL03,Maintenance of Grounds,189,547.02,12/20/2011,R,VEOLIA ES (UK) LIMITED        
2012 - JAN,Highways & Transport Services,Structural Maintenance,Grass Cut/Tr Mtce                       ,G00600,Premises Related Expenditure  ,Ground Maintenance Costs      ,BL03,Maintenance of Grounds,190,"1,424.53",1/4/2012,R,VEOLIA ES (UK) LIMITED        
2012 - JAN,Highways & Transport Services,Structural Maintenance,Grass Cut/Tr Mtce                       ,G00600,Premises Related Expenditure  ,Ground Maintenance Costs      ,BL03,Maintenance of Grounds,191,"13,490.38",12/21/2011,R,VEOLIA ES (UK) LIMITED        
2012 - JAN,Highways & Transport Services,Structural Maintenance,Grass Cut/Tr Mtce                       ,G00600,Premises Related Expenditure  ,Ground Maintenance Costs      ,BL03,Maintenance of Grounds,192,"4,689.34",12/21/2011,R,VEOLIA ES (UK) LIMITED        
2012 - JAN,Highways & Transport Services,Structural Maintenance,Grass Cut/Tr Mtce                       ,G00600,Premises Related Expenditure  ,Ground Maintenance Costs      ,BL03,Maintenance of Grounds,193,685.21,12/20/2011,R,VEOLIA ES (UK) LIMITED        
2012 - JAN,Cultural Env Reg&Plan Services,Waste Collection,Recycling Activities                    ,G00640,Supplies & Services           ,Equip Furniture/Materials     ,DA04,Materials,194,664.1,11/29/2011,R,SPHERE PROFFESSIONAL          
2012 - JAN,Cultural Env Reg&Plan Services,Waste Collection,Recycling Activities                    ,G00640,Supplies & Services           ,Equip Furniture/Materials     ,DA04,Materials,195,"24,882.01",11/29/2011,R,SPHERE PROFFESSIONAL          
2012 - JAN,Cultural Env Reg&Plan Services,Waste Collection,Recycling Activities                    ,G00640,Third Party Payments          ,Private Contractors           ,EH10,Contract Payments,196,"30,504.02",1/10/2012,R,KINGSTON CORPORATION          
2012 - JAN,Cultural Env Reg&Plan Services,Waste Collection,Recycling Activities                    ,G00640,Third Party Payments          ,Private Contractors           ,EH61,Green Waste Disposal,197,"4,069.89",12/31/2011,R,VIRIDOR WASTE KENT LTD        
2012 - JAN,Cultural Env Reg&Plan Services,Waste Collection,Recycling Collection                    ,G00645,Supplies & Services           ,Equip Furniture/Materials     ,DA32,Wheeled Bins,198,"2,210.00",12/7/2011,R,SPIDER UK LTD                 
2012 - JAN,Cultural Env Reg&Plan Services,Waste Collection,Refuse Collection (Operations)          ,G00661,Supplies & Services           ,Equip Furniture/Materials     ,DA08,Tools-Purchase,199,"1,198.60",12/20/2011,R,BELL BRUSH                    
2012 - JAN,Cultural Env Reg&Plan Services,Waste Collection,Refuse Collection (Operations)          ,G00661,Supplies & Services           ,Equip Furniture/Materials     ,DA08,Tools-Purchase,200,"1,240.60",12/9/2011,R,BELL BRUSH                    
2012 - JAN,Cultural Env Reg&Plan Services,Waste Collection,Refuse Collection (Operations)          ,G00661,Supplies & Services           ,Equip Furniture/Materials     ,DA08,Tools-Purchase,201,703.5,1/6/2012,R,BELL BRUSH                    
2012 - JAN,Cultural Env Reg&Plan Services,Waste Collection,Refuse Collection (Operations)          ,G00661,Supplies & Services           ,Equip Furniture/Materials     ,DA08,Tools-Purchase,202,980.09,1/17/2012,R,BELL BRUSH                    
2012 - JAN,Cultural Env Reg&Plan Services,Waste Collection,Refuse Collection (Operations)          ,G00661,Supplies & Services           ,Equip Furniture/Materials     ,DA31,Waste Sacks & Bags,203,832,12/16/2011,R,POLARIS PLASTICS LTD          
2012 - JAN,Cultural Env Reg&Plan Services,Waste Collection,Refuse Collection (Operations)          ,G00661,Supplies & Services           ,Equip Furniture/Materials     ,DA32,Wheeled Bins,204,"4,420.00",12/14/2011,R,SPIDER UK LTD                 
2012 - JAN,Cultural Env Reg&Plan Services,Waste Collection,Refuse Collection (Operations)          ,G00661,Supplies & Services           ,Equip Furniture/Materials     ,DA32,Wheeled Bins,205,"2,210.00",12/14/2011,R,SPIDER UK LTD                 
2012 - JAN,Cultural Env Reg&Plan Services,Street Cleaning - Not highways,Waste Enforcement                       ,G00680,Supplies & Services           ,Services                      ,DF11,Counsel's fees,206,"1,462.50",11/24/2011,R,REDACTED
2012 - JAN,Cultural Env Reg&Plan Services,Street Cleaning - Not highways,Waste Enforcement                       ,G00680,Supplies & Services           ,Services                      ,DF11,Counsel's fees,207,"1,500.00",9/25/2011,R,REDACTED
2012 - JAN,Cultural Env Reg&Plan Services,Street Cleaning - Not highways,Waste Enforcement                       ,G00680,Supplies & Services           ,Services                      ,DF30,Activities Programme,208,"1,440.00",12/6/2011,R,DANGEROUS THEATRE COMPANY     
2012 - JAN,Cultural Env Reg&Plan Services,Environmental Health,Health & Safety                         ,G00697,Third Party Payments          ,Private Contractors           ,EH10,Contract Payments,209,975,12/29/2011,R,PUBLIC ANALYST SCIENTIFIC SER.
2012 - JAN,Cultural Env Reg&Plan Services,Environmental Health,Housing/Env                             ,G00730,Employees                     ,Direct Employee Expenses      ,AA17,Agency Staff & Casual Paymts,210,740.6,12/21/2011,R,REDACTED
2012 - JAN,Cultural Env Reg&Plan Services,Environmental Health,Housing/Env                             ,G00730,Employees                     ,Direct Employee Expenses      ,AA17,Agency Staff & Casual Paymts,211,748.65,12/28/2011,R,REDACTED
2012 - JAN,Cultural Env Reg&Plan Services,Environmental Health,Housing/Env                             ,G00730,Employees                     ,Direct Employee Expenses      ,AA17,Agency Staff & Casual Paymts,212,829.15,1/11/2012,R,REDACTED
2012 - JAN,Central Services,Gen Grants Bequest & Donations,Vestry Hall                             ,G40314,Employees                     ,Direct Employee Expenses      ,AA17,Agency Staff & Casual Paymts,213,"4,377.59",1/10/2012,R,PCL SECURITY LTD              
2012 - JAN,Central Services,Gen Grants Bequest & Donations,Vestry Hall                             ,G40314,Employees                     ,Direct Employee Expenses      ,AA17,Agency Staff & Casual Paymts,214,875.55,12/31/2011,R,PCL SECURITY LTD              
2012 - JAN,Central Services,Gen Grants Bequest & Donations,Vestry Hall                             ,G40314,Premises Related Expenditure  ,RepairsAlterations&MtceOfBldgs,BA01,DDM - General Building,215,950,1/17/2012,R,INDEPTH HYGIENE SERVICES LTD  
2012 - JAN,Central Services,Gen Grants Bequest & Donations,Vestry Hall                             ,G40314,Premises Related Expenditure  ,RepairsAlterations&MtceOfBldgs,BA06,Repairs & Maintenance General,216,"6,320.00",1/4/2012,R,DAPPA MRP FLOORING            
2012 - JAN,Central Services,Gen Grants Bequest & Donations,Vestry Hall                             ,G40314,Premises Related Expenditure  ,Energy Costs                  ,BB03,Gas (incl. Butane),217,560.06,1/9/2012,R,KENT COUNTY COUNCIL           
2012 - JAN,Central Services,Gen Grants Bequest & Donations,Vestry Hall                             ,G40314,Premises Related Expenditure  ,Energy Costs                  ,BB03,Gas (incl. Butane),218,845.9,1/9/2012,R,KENT COUNTY COUNCIL           
2012 - JAN,Central Services,Gen Grants Bequest & Donations,Vestry Hall                             ,G40314,Third Party Payments          ,Private Contractors           ,EH02,Miscellaneous Hired Services,219,"1,408.47",12/12/2011,R,DYNAMIQ CLEANING LIMITED      
2012 - JAN,Central Services,Gen Grants Bequest & Donations,Vestry Hall                             ,G40314,Third Party Payments          ,Private Contractors           ,EH02,Miscellaneous Hired Services,220,"1,408.47",1/9/2012,R,DYNAMIQ CLEANING LIMITED      
2012 - JAN,Cultural Env Reg&Plan Services,Building Control,Building Control                        ,H01100,Employees                     ,Indirect Employee Expenses    ,AB57,External Training Costs,221,580,11/22/2011,R,GUILDFORD COLL OF F & H EDUCTN
2012 - JAN,Cultural Env Reg&Plan Services,Building Control,Building Control                        ,H01100,Supplies & Services           ,Services                      ,DF57,Consulting Engineers Fees,222,948.75,1/13/2012,R,IHS(GLOBAL)LTD                
2012 - JAN,Cultural Env Reg&Plan Services,Development Control,Development Control                     ,H01130,Supplies & Services           ,Services                      ,DF02,Misc Advertising/Publicity,223,504,12/10/2011,R,NEWSQUEST (LONDON)LTD         
2012 - JAN,Cultural Env Reg&Plan Services,Development Control,Development Control                     ,H01130,Supplies & Services           ,Services                      ,DF02,Misc Advertising/Publicity,224,504,12/24/2011,R,NEWSQUEST (LONDON)LTD         
2012 - JAN,Cultural Env Reg&Plan Services,Planning Policy,Spatial Policy                          ,H01173,Third Party Payments          ,Private Contractors           ,EH10,Contract Payments,225,"2,326.50",1/12/2012,R,REDACTED
2012 - JAN,Cultural Env Reg&Plan Services,Planning Policy,Spatial Policy                          ,H01173,Third Party Payments          ,Private Contractors           ,EH10,Contract Payments,226,"14,630.00",12/23/2011,R,PETER BRETT ASSOCIATES        
2012 - JAN,Cultural Env Reg&Plan Services,Planning Policy,REGENERATION & INVESTMENT              ,H01174,Supplies & Services           ,Services                      ,DF03,Consultants,227,"2,000.00",12/8/2011,R,SIMON PURCELL ASSOCIATES LTD  
2012 - JAN,Cultural Env Reg&Plan Services,Planning Policy,GLA WANDLE VALLEY LCZ                   ,H01176,Supplies & Services           ,Prntng Stnry Gen Off Exp      ,DE30,General Office Expenses,228,"8,168.75",12/22/2011,R,GROUNDWORK LONDON             
2012 - JAN,Cultural Env Reg&Plan Services,Planning Policy,GLA WANDLE VALLEY LCZ                   ,H01176,Supplies & Services           ,Services                      ,DF14,Doctors and other fees,229,"8,168.75",12/22/2011,R,GROUNDWORK LONDON             
2012 - JAN,Cultural Env Reg&Plan Services,Planning Policy,GLA WANDLE VALLEY LCZ                   ,H01176,Supplies & Services           ,Services                      ,DF30,Activities Programme,230,"3,848.00",1/9/2012,R,SUSTAINABLE MERTON            
2012 - JAN,Cultural Env Reg&Plan Services,Planning Policy,GLA WANDLE VALLEY LCZ                   ,H01176,Supplies & Services           ,Services                      ,DF30,Activities Programme,231,"1,160.76",10/3/2011,R,SUSTAINABLE MERTON            
2012 - JAN,Cultural Env Reg&Plan Services,Planning Policy,GLA WANDLE VALLEY LCZ                   ,H01176,Supplies & Services           ,Services                      ,DF30,Activities Programme,232,"3,848.44",10/3/2011,R,SUSTAINABLE MERTON            
2012 - JAN,CS -Oth Operating Inc & Expend,INVESTMENT PROPERTIES,MILES RD GENERATOR                      ,H01203,Premises Related Expenditure  ,Rents                         ,BC01,Miscellaneous Rents,233,"4,199.37",12/1/2011,R,W&R BUXTON LTD PENSION FUND   
2012 - JAN,Cultural Env Reg&Plan Services,Economic Development,TOWN CENTRE MANAGEMENT                 ,H01223,Supplies & Services           ,Grants and Subscriptions      ,DJ04,Subscriptions,234,595,1/1/2011,R,ASSOC OF TOWN CTR MANAGEMENT  
2012 - JAN,CS -Oth Operating Inc & Expend,Trading A/c Surpluses/Deficits,Transport-Contract Hire                 ,J01374,Transport Related Expenditure ,Direct Transport Costs        ,CA01,Petrol Derv & Oil,235,"39,035.65",12/23/2011,R,EMO OILS LTD                  
2012 - JAN,CS -Oth Operating Inc & Expend,Trading A/c Surpluses/Deficits,Transport-Contract Hire                 ,J01374,Transport Related Expenditure ,Direct Transport Costs        ,CA01,Petrol Derv & Oil,236,"31,970.46",1/12/2012,R,EMO OILS LTD                  
2012 - JAN,CS -Oth Operating Inc & Expend,Trading A/c Surpluses/Deficits,Transport-Contract Hire                 ,J01374,Transport Related Expenditure ,Contract Hire and Op Leasing  ,CC53,Plant Hire for MRCS,237,"2,240.00",12/29/2011,R,GVS HIRE LTD                  
2012 - JAN,CS -Oth Operating Inc & Expend,Trading A/c Surpluses/Deficits,Transport-Contract Hire                 ,J01374,Transport Related Expenditure ,Contract Hire and Op Leasing  ,CC53,Plant Hire for MRCS,238,535,12/30/2011,R,PHOENIX VEHICLE HIRE LTD      
2012 - JAN,CS -Oth Operating Inc & Expend,Trading A/c Surpluses/Deficits,Transport-Contract Hire                 ,J01374,Transport Related Expenditure ,Contract Hire and Op Leasing  ,CC53,Plant Hire for MRCS,239,535,12/23/2011,R,PHOENIX VEHICLE HIRE LTD      
2012 - JAN,CS -Oth Operating Inc & Expend,Trading A/c Surpluses/Deficits,Transport-Contract Hire                 ,J01374,Transport Related Expenditure ,Contract Hire and Op Leasing  ,CC53,Plant Hire for MRCS,240,650,12/30/2011,R,GO PLANT                      
2012 - JAN,CS -Oth Operating Inc & Expend,Trading A/c Surpluses/Deficits,Transport-Contract Hire                 ,J01374,Transport Related Expenditure ,Contract Hire and Op Leasing  ,CC53,Plant Hire for MRCS,241,"1,045.00",12/30/2011,R,T.J.HUNT (CONTRACTING) LTD    
2012 - JAN,CS -Oth Operating Inc & Expend,Trading A/c Surpluses/Deficits,Transport-Contract Hire                 ,J01374,Transport Related Expenditure ,Contract Hire and Op Leasing  ,CC53,Plant Hire for MRCS,242,735,12/31/2011,R,SHB HIRE LTD                  
2012 - JAN,CS -Oth Operating Inc & Expend,Trading A/c Surpluses/Deficits,Transport-Contract Hire                 ,J01374,Transport Related Expenditure ,Contract Hire and Op Leasing  ,CC53,Plant Hire for MRCS,243,735,12/31/2011,R,SHB HIRE LTD                  
2012 - JAN,CS -Oth Operating Inc & Expend,Trading A/c Surpluses/Deficits,Transport-Contract Hire                 ,J01374,Transport Related Expenditure ,Contract Hire and Op Leasing  ,CC53,Plant Hire for MRCS,244,735,12/31/2011,R,SHB HIRE LTD                  
2012 - JAN,CS -Oth Operating Inc & Expend,Trading A/c Surpluses/Deficits,Transport-Contract Hire                 ,J01374,Transport Related Expenditure ,Contract Hire and Op Leasing  ,CC53,Plant Hire for MRCS,245,535,1/9/2012,R,PHOENIX VEHICLE HIRE LTD      
2012 - JAN,CS -Oth Operating Inc & Expend,Trading A/c Surpluses/Deficits,Transport-Contract Hire                 ,J01374,Transport Related Expenditure ,Contract Hire and Op Leasing  ,CC53,Plant Hire for MRCS,246,"2,500.00",12/30/2011,R,NOBLET MUNICIPAL SERVICES LTD 
2012 - JAN,CS -Oth Operating Inc & Expend,Trading A/c Surpluses/Deficits,Transport-Contract Hire                 ,J01374,Transport Related Expenditure ,Contract Hire and Op Leasing  ,CC53,Plant Hire for MRCS,247,650,1/6/2012,R,GO PLANT                      
2012 - JAN,CS -Oth Operating Inc & Expend,Trading A/c Surpluses/Deficits,Transport-Contract Hire                 ,J01374,Transport Related Expenditure ,Contract Hire and Op Leasing  ,CC53,Plant Hire for MRCS,248,535,1/17/2012,R,PHOENIX VEHICLE HIRE LTD      
2012 - JAN,CS -Oth Operating Inc & Expend,Trading A/c Surpluses/Deficits,Transport-Contract Hire                 ,J01374,Transport Related Expenditure ,Contract Hire and Op Leasing  ,CC55,Plant Hire for Parking,249,555.68,12/31/2011,R,REDACTED
2012 - JAN,CS -Oth Operating Inc & Expend,Trading A/c Surpluses/Deficits,Transport-Contract Hire                 ,J01374,Transport Related Expenditure ,Contract Hire and Op Leasing  ,CC57,Plant Hire for Housing,250,702,12/31/2011,R,KENT COUNTY COUNCIL           
2012 - JAN,CS -Oth Operating Inc & Expend,Trading A/c Surpluses/Deficits,Transport-Contract Hire                 ,J01374,Transport Related Expenditure ,Contract Hire and Op Leasing  ,CC60,Vehicle Hire for LB Sutton,251,"1,729.85",12/30/2011,R,BRUNSWICK CARS LTD            
2012 - JAN,CS -Oth Operating Inc & Expend,Trading A/c Surpluses/Deficits,Transport-Contract Hire                 ,J01374,Transport Related Expenditure ,Contract Hire and Op Leasing  ,CC64,Mini Cab Hire for Education,252,"1,820.00",12/23/2011,R,BARCLAYS ASSET & SALES FINANCE
2012 - JAN,CS -Oth Operating Inc & Expend,Trading A/c Surpluses/Deficits,Transport-Contract Hire                 ,J01374,Transport Related Expenditure ,Contract Hire and Op Leasing  ,CC64,Mini Cab Hire for Education,253,"3,097.33",12/23/2011,R,BARCLAYS ASSET & SALES FINANCE
2012 - JAN,CS -Oth Operating Inc & Expend,Trading A/c Surpluses/Deficits,Transport-Contract Hire                 ,J01374,Transport Related Expenditure ,Contract Hire and Op Leasing  ,CC64,Mini Cab Hire for Education,254,960,12/23/2011,R,BARCLAYS ASSET & SALES FINANCE
2012 - JAN,CS -Oth Operating Inc & Expend,Trading A/c Surpluses/Deficits,Transport-Contract Hire                 ,J01374,Transport Related Expenditure ,Contract Hire and Op Leasing  ,CC64,Mini Cab Hire for Education,255,700,12/23/2011,R,BARCLAYS ASSET & SALES FINANCE
2012 - JAN,CS -Oth Operating Inc & Expend,Trading A/c Surpluses/Deficits,Transport-Contract Hire                 ,J01374,Transport Related Expenditure ,Contract Hire and Op Leasing  ,CC64,Mini Cab Hire for Education,256,540,12/23/2011,R,BARCLAYS ASSET & SALES FINANCE
2012 - JAN,CS -Oth Operating Inc & Expend,Trading A/c Surpluses/Deficits,Transport-Contract Hire                 ,J01374,Transport Related Expenditure ,Contract Hire and Op Leasing  ,CC64,Mini Cab Hire for Education,257,"1,700.00",12/23/2011,R,BARCLAYS ASSET & SALES FINANCE
2012 - JAN,CS -Oth Operating Inc & Expend,Trading A/c Surpluses/Deficits,Transport-Contract Hire                 ,J01374,Transport Related Expenditure ,Contract Hire and Op Leasing  ,CC64,Mini Cab Hire for Education,258,624,12/23/2011,R,BARCLAYS ASSET & SALES FINANCE
2012 - JAN,CS -Oth Operating Inc & Expend,Trading A/c Surpluses/Deficits,Transport-Contract Hire                 ,J01374,Transport Related Expenditure ,Contract Hire and Op Leasing  ,CC64,Mini Cab Hire for Education,259,"1,064.00",12/23/2011,R,BARCLAYS ASSET & SALES FINANCE
2012 - JAN,CS -Oth Operating Inc & Expend,Trading A/c Surpluses/Deficits,Transport-Contract Hire                 ,J01374,Transport Related Expenditure ,Contract Hire and Op Leasing  ,CC64,Mini Cab Hire for Education,260,"1,920.00",12/23/2011,R,BARCLAYS ASSET & SALES FINANCE
2012 - JAN,CS -Oth Operating Inc & Expend,Trading A/c Surpluses/Deficits,Transport-Contract Hire                 ,J01374,Transport Related Expenditure ,Contract Hire and Op Leasing  ,CC64,Mini Cab Hire for Education,261,"1,020.00",12/23/2011,R,BARCLAYS ASSET & SALES FINANCE
2012 - JAN,CS -Oth Operating Inc & Expend,Trading A/c Surpluses/Deficits,Transport-Contract Hire                 ,J01374,Transport Related Expenditure ,Contract Hire and Op Leasing  ,CC64,Mini Cab Hire for Education,262,"1,952.16",12/23/2011,R,SILVERBURN FINANCE (UK) LTD   
2012 - JAN,CS -Oth Operating Inc & Expend,Trading A/c Surpluses/Deficits,Transport-Contract Hire                 ,J01374,Transport Related Expenditure ,Contract Hire and Op Leasing  ,CC64,Mini Cab Hire for Education,263,888,12/23/2011,R,SILVERBURN FINANCE (UK) LTD   
2012 - JAN,CS -Oth Operating Inc & Expend,Trading A/c Surpluses/Deficits,Transport-Contract Hire                 ,J01374,Transport Related Expenditure ,Contract Hire and Op Leasing  ,CC64,Mini Cab Hire for Education,264,924,12/23/2011,R,SILVERBURN FINANCE (UK) LTD   
2012 - JAN,CS -Oth Operating Inc & Expend,Trading A/c Surpluses/Deficits,Transport-Contract Hire                 ,J01374,Transport Related Expenditure ,Contract Hire and Op Leasing  ,CC64,Mini Cab Hire for Education,265,560,12/23/2011,R,SILVERBURN FINANCE (UK) LTD   
2012 - JAN,CS -Oth Operating Inc & Expend,Trading A/c Surpluses/Deficits,Transport-Contract Hire                 ,J01374,Transport Related Expenditure ,Contract Hire and Op Leasing  ,CC64,Mini Cab Hire for Education,266,735.32,12/23/2011,R,SILVERBURN FINANCE (UK) LTD   
2012 - JAN,CS -Oth Operating Inc & Expend,Trading A/c Surpluses/Deficits,Transport-Contract Hire                 ,J01374,Transport Related Expenditure ,Contract Hire and Op Leasing  ,CC64,Mini Cab Hire for Education,267,644,12/23/2011,R,SILVERBURN FINANCE (UK) LTD   
2012 - JAN,CS -Oth Operating Inc & Expend,Trading A/c Surpluses/Deficits,Transport-Contract Hire                 ,J01374,Transport Related Expenditure ,Contract Hire and Op Leasing  ,CC64,Mini Cab Hire for Education,268,588,12/23/2011,R,SILVERBURN FINANCE (UK) LTD   
2012 - JAN,CS -Oth Operating Inc & Expend,Trading A/c Surpluses/Deficits,Transport-Contract Hire                 ,J01374,Transport Related Expenditure ,Contract Hire and Op Leasing  ,CC64,Mini Cab Hire for Education,269,"1,820.00",12/16/2011,R,CALVERTON FACTORS LTD         
2012 - JAN,CS -Oth Operating Inc & Expend,Trading A/c Surpluses/Deficits,Transport-Contract Hire                 ,J01374,Transport Related Expenditure ,Contract Hire and Op Leasing  ,CC64,Mini Cab Hire for Education,270,560,12/23/2011,R,SILVERBURN FINANCE (UK) LTD   
2012 - JAN,CS -Oth Operating Inc & Expend,Trading A/c Surpluses/Deficits,Transport-Contract Hire                 ,J01374,Transport Related Expenditure ,Contract Hire and Op Leasing  ,CC64,Mini Cab Hire for Education,271,672,12/23/2011,R,SILVERBURN FINANCE (UK) LTD   
2012 - JAN,CS -Oth Operating Inc & Expend,Trading A/c Surpluses/Deficits,Transport-Contract Hire                 ,J01374,Transport Related Expenditure ,Contract Hire and Op Leasing  ,CC64,Mini Cab Hire for Education,272,840,12/23/2011,R,SILVERBURN FINANCE (UK) LTD   
2012 - JAN,CS -Oth Operating Inc & Expend,Trading A/c Surpluses/Deficits,Transport-Contract Hire                 ,J01374,Transport Related Expenditure ,Contract Hire and Op Leasing  ,CC64,Mini Cab Hire for Education,273,"1,736.00",12/23/2011,R,BARCLAYS ASSET & SALES FINANCE
2012 - JAN,CS -Oth Operating Inc & Expend,Trading A/c Surpluses/Deficits,Transport-Contract Hire                 ,J01374,Transport Related Expenditure ,Contract Hire and Op Leasing  ,CC64,Mini Cab Hire for Education,274,"1,475.00",12/23/2011,R,BARCLAYS ASSET & SALES FINANCE
2012 - JAN,CS -Oth Operating Inc & Expend,Trading A/c Surpluses/Deficits,Transport-Contract Hire                 ,J01374,Transport Related Expenditure ,Contract Hire and Op Leasing  ,CC64,Mini Cab Hire for Education,275,864,12/23/2011,R,BARCLAYS ASSET & SALES FINANCE
2012 - JAN,CS -Oth Operating Inc & Expend,Trading A/c Surpluses/Deficits,Transport-Contract Hire                 ,J01374,Transport Related Expenditure ,Contract Hire and Op Leasing  ,CC64,Mini Cab Hire for Education,276,525,12/31/2011,R,AERIAL CAR SERVICES LTD       
2012 - JAN,CS -Oth Operating Inc & Expend,Trading A/c Surpluses/Deficits,Transport-Contract Hire                 ,J01374,Transport Related Expenditure ,Contract Hire and Op Leasing  ,CC64,Mini Cab Hire for Education,277,"1,368.00",12/23/2011,R,BARCLAYS ASSET & SALES FINANCE
2012 - JAN,CS -Oth Operating Inc & Expend,Trading A/c Surpluses/Deficits,Transport-Contract Hire                 ,J01374,Transport Related Expenditure ,Contract Hire and Op Leasing  ,CC64,Mini Cab Hire for Education,278,872,12/23/2011,R,BARCLAYS ASSET & SALES FINANCE
2012 - JAN,CS -Oth Operating Inc & Expend,Trading A/c Surpluses/Deficits,Transport-Contract Hire                 ,J01374,Transport Related Expenditure ,Contract Hire and Op Leasing  ,CC64,Mini Cab Hire for Education,279,"2,100.00",12/23/2011,R,BARCLAYS ASSET & SALES FINANCE
2012 - JAN,CS -Oth Operating Inc & Expend,Trading A/c Surpluses/Deficits,Transport-Contract Hire                 ,J01374,Transport Related Expenditure ,Contract Hire and Op Leasing  ,CC64,Mini Cab Hire for Education,280,"1,664.00",12/23/2011,R,BARCLAYS ASSET & SALES FINANCE
2012 - JAN,CS -Oth Operating Inc & Expend,Trading A/c Surpluses/Deficits,Transport-Contract Hire                 ,J01374,Transport Related Expenditure ,Contract Hire and Op Leasing  ,CC64,Mini Cab Hire for Education,281,798,12/23/2011,R,BARCLAYS ASSET & SALES FINANCE
2012 - JAN,CS -Oth Operating Inc & Expend,Trading A/c Surpluses/Deficits,Transport-Contract Hire                 ,J01374,Transport Related Expenditure ,Contract Hire and Op Leasing  ,CC64,Mini Cab Hire for Education,282,"1,021.00",12/23/2011,R,BARCLAYS ASSET & SALES FINANCE
2012 - JAN,CS -Oth Operating Inc & Expend,Trading A/c Surpluses/Deficits,Transport-Contract Hire                 ,J01374,Transport Related Expenditure ,Contract Hire and Op Leasing  ,CC64,Mini Cab Hire for Education,283,777,12/23/2011,R,BARCLAYS ASSET & SALES FINANCE
2012 - JAN,CS -Oth Operating Inc & Expend,Trading A/c Surpluses/Deficits,Transport-Contract Hire                 ,J01374,Transport Related Expenditure ,Contract Hire and Op Leasing  ,CC64,Mini Cab Hire for Education,284,874,12/23/2011,R,BARCLAYS ASSET & SALES FINANCE
2012 - JAN,CS -Oth Operating Inc & Expend,Trading A/c Surpluses/Deficits,Transport-Contract Hire                 ,J01374,Transport Related Expenditure ,Contract Hire and Op Leasing  ,CC64,Mini Cab Hire for Education,285,"1,680.00",12/23/2011,R,BARCLAYS ASSET & SALES FINANCE
2012 - JAN,CS -Oth Operating Inc & Expend,Trading A/c Surpluses/Deficits,Transport-Contract Hire                 ,J01374,Transport Related Expenditure ,Contract Hire and Op Leasing  ,CC64,Mini Cab Hire for Education,286,"1,200.00",12/23/2011,R,BARCLAYS ASSET & SALES FINANCE
2012 - JAN,CS -Oth Operating Inc & Expend,Trading A/c Surpluses/Deficits,Transport-Contract Hire                 ,J01374,Transport Related Expenditure ,Contract Hire and Op Leasing  ,CC64,Mini Cab Hire for Education,287,"1,560.00",12/23/2011,R,BARCLAYS ASSET & SALES FINANCE
2012 - JAN,CS -Oth Operating Inc & Expend,Trading A/c Surpluses/Deficits,Transport-Contract Hire                 ,J01374,Transport Related Expenditure ,Contract Hire and Op Leasing  ,CC64,Mini Cab Hire for Education,288,"1,344.00",12/23/2011,R,BARCLAYS ASSET & SALES FINANCE
2012 - JAN,CS -Oth Operating Inc & Expend,Trading A/c Surpluses/Deficits,Transport-Contract Hire                 ,J01374,Transport Related Expenditure ,Contract Hire and Op Leasing  ,CC64,Mini Cab Hire for Education,289,700,12/23/2011,R,BARCLAYS ASSET & SALES FINANCE
2012 - JAN,CS -Oth Operating Inc & Expend,Trading A/c Surpluses/Deficits,Transport-Contract Hire                 ,J01374,Transport Related Expenditure ,Contract Hire and Op Leasing  ,CC64,Mini Cab Hire for Education,290,528,12/31/2011,R,AERIAL CAR SERVICES LTD       
2012 - JAN,CS -Oth Operating Inc & Expend,Trading A/c Surpluses/Deficits,Transport-Contract Hire                 ,J01374,Transport Related Expenditure ,Contract Hire and Op Leasing  ,CC64,Mini Cab Hire for Education,291,"1,798.00",12/23/2011,R,BARCLAYS ASSET & SALES FINANCE
2012 - JAN,CS -Oth Operating Inc & Expend,Trading A/c Surpluses/Deficits,Transport-Contract Hire                 ,J01374,Transport Related Expenditure ,Contract Hire and Op Leasing  ,CC64,Mini Cab Hire for Education,292,"1,316.00",1/1/2012,R,NVCAR HIRE LTD                
2012 - JAN,CS -Oth Operating Inc & Expend,Trading A/c Surpluses/Deficits,Transport-Contract Hire                 ,J01374,Transport Related Expenditure ,Contract Hire and Op Leasing  ,CC64,Mini Cab Hire for Education,293,"2,189.60",11/30/2011,R,SILVERBURN FINANCE (UK) LTD   
2012 - JAN,CS -Oth Operating Inc & Expend,Trading A/c Surpluses/Deficits,Transport-Contract Hire                 ,J01374,Transport Related Expenditure ,Contract Hire and Op Leasing  ,CC64,Mini Cab Hire for Education,294,504,12/23/2011,R,SILVERBURN FINANCE (UK) LTD   
2012 - JAN,CS -Oth Operating Inc & Expend,Trading A/c Surpluses/Deficits,Transport-Contract Hire                 ,J01374,Transport Related Expenditure ,Contract Hire and Op Leasing  ,CC64,Mini Cab Hire for Education,295,672,1/1/2012,R,NVCAR HIRE LTD                
2012 - JAN,CS -Oth Operating Inc & Expend,Trading A/c Surpluses/Deficits,Transport-Contract Hire                 ,J01374,Transport Related Expenditure ,Contract Hire and Op Leasing  ,CC64,Mini Cab Hire for Education,296,"3,549.00",1/8/2012,R,KINGSTON ACCESSIBILITY TRAN LT
2012 - JAN,CS -Oth Operating Inc & Expend,Trading A/c Surpluses/Deficits,Transport-Contract Hire                 ,J01374,Transport Related Expenditure ,Contract Hire and Op Leasing  ,CC64,Mini Cab Hire for Education,297,871.66,12/31/2011,R,GALPINS SERVICE               
2012 - JAN,CS -Oth Operating Inc & Expend,Trading A/c Surpluses/Deficits,Transport-Contract Hire                 ,J01374,Transport Related Expenditure ,Contract Hire and Op Leasing  ,CC64,Mini Cab Hire for Education,298,840,12/31/2011,R,CHEAM STATION CARS            
2012 - JAN,CS -Oth Operating Inc & Expend,Trading A/c Surpluses/Deficits,Transport-Contract Hire                 ,J01374,Transport Related Expenditure ,Contract Hire and Op Leasing  ,CC64,Mini Cab Hire for Education,299,840,12/31/2011,R,CHEAM STATION CARS            
2012 - JAN,CS -Oth Operating Inc & Expend,Trading A/c Surpluses/Deficits,Transport-Contract Hire                 ,J01374,Transport Related Expenditure ,Contract Hire and Op Leasing  ,CC64,Mini Cab Hire for Education,300,"1,296.00",12/23/2011,R,BARCLAYS ASSET & SALES FINANCE
2012 - JAN,CS -Oth Operating Inc & Expend,Trading A/c Surpluses/Deficits,Transport-Contract Hire                 ,J01374,Transport Related Expenditure ,Contract Hire and Op Leasing  ,CC64,Mini Cab Hire for Education,301,"1,392.00",12/23/2011,R,BARCLAYS ASSET & SALES FINANCE
2012 - JAN,CS -Oth Operating Inc & Expend,Trading A/c Surpluses/Deficits,Transport-Contract Hire                 ,J01374,Transport Related Expenditure ,Contract Hire and Op Leasing  ,CC64,Mini Cab Hire for Education,302,"1,344.00",12/23/2011,R,BARCLAYS ASSET & SALES FINANCE
2012 - JAN,CS -Oth Operating Inc & Expend,Trading A/c Surpluses/Deficits,Transport-Contract Hire                 ,J01374,Transport Related Expenditure ,Contract Hire and Op Leasing  ,CC64,Mini Cab Hire for Education,303,554.65,12/30/2011,R,BRUNSWICK CARS LTD            
2012 - JAN,CS -Oth Operating Inc & Expend,Trading A/c Surpluses/Deficits,Transport-Contract Hire                 ,J01374,Transport Related Expenditure ,Contract Hire and Op Leasing  ,CC64,Mini Cab Hire for Education,304,"1,946.00",12/30/2011,R,BRUNSWICK CARS LTD            
2012 - JAN,CS -Oth Operating Inc & Expend,Trading A/c Surpluses/Deficits,Transport-Contract Hire                 ,J01374,Transport Related Expenditure ,Contract Hire and Op Leasing  ,CC64,Mini Cab Hire for Education,305,884,12/30/2011,R,BRUNSWICK CARS LTD            
2012 - JAN,CS -Oth Operating Inc & Expend,Trading A/c Surpluses/Deficits,Transport-Contract Hire                 ,J01374,Transport Related Expenditure ,Contract Hire and Op Leasing  ,CC64,Mini Cab Hire for Education,306,700,12/31/2011,R,CAPITAL CARS                  
2012 - JAN,CS -Oth Operating Inc & Expend,Trading A/c Surpluses/Deficits,Transport-Contract Hire                 ,J01374,Transport Related Expenditure ,Contract Hire and Op Leasing  ,CC64,Mini Cab Hire for Education,307,786.5,12/31/2011,R,CAPITAL CARS                  
2012 - JAN,CS -Oth Operating Inc & Expend,Trading A/c Surpluses/Deficits,Transport-Contract Hire                 ,J01374,Transport Related Expenditure ,Contract Hire and Op Leasing  ,CC64,Mini Cab Hire for Education,308,"1,560.00",12/31/2011,R,CAPITAL CARS                  
2012 - JAN,CS -Oth Operating Inc & Expend,Trading A/c Surpluses/Deficits,Transport-Contract Hire                 ,J01374,Transport Related Expenditure ,Contract Hire and Op Leasing  ,CC64,Mini Cab Hire for Education,309,540,12/31/2011,R,CAPITAL CARS                  
2012 - JAN,CS -Oth Operating Inc & Expend,Trading A/c Surpluses/Deficits,Transport-Contract Hire                 ,J01374,Transport Related Expenditure ,Contract Hire and Op Leasing  ,CC64,Mini Cab Hire for Education,310,"1,056.00",12/23/2011,R,SILVERBURN FINANCE (UK) LTD   
2012 - JAN,CS -Oth Operating Inc & Expend,Trading A/c Surpluses/Deficits,Transport-Contract Hire                 ,J01374,Transport Related Expenditure ,Contract Hire and Op Leasing  ,CC64,Mini Cab Hire for Education,311,972.2,12/23/2011,R,SILVERBURN FINANCE (UK) LTD   
2012 - JAN,CS -Oth Operating Inc & Expend,Trading A/c Surpluses/Deficits,Transport-Contract Hire                 ,J01374,Transport Related Expenditure ,Contract Hire and Op Leasing  ,CC64,Mini Cab Hire for Education,312,672,12/23/2011,R,SILVERBURN FINANCE (UK) LTD   
2012 - JAN,CS -Oth Operating Inc & Expend,Trading A/c Surpluses/Deficits,Transport-Contract Hire                 ,J01374,Transport Related Expenditure ,Contract Hire and Op Leasing  ,CC64,Mini Cab Hire for Education,313,786.5,12/23/2011,R,SILVERBURN FINANCE (UK) LTD   
2012 - JAN,CS -Oth Operating Inc & Expend,Trading A/c Surpluses/Deficits,Transport-Contract Hire                 ,J01374,Transport Related Expenditure ,Contract Hire and Op Leasing  ,CC64,Mini Cab Hire for Education,314,"1,128.00",12/23/2011,R,SILVERBURN FINANCE (UK) LTD   
2012 - JAN,CS -Oth Operating Inc & Expend,Trading A/c Surpluses/Deficits,Transport-Contract Hire                 ,J01374,Transport Related Expenditure ,Contract Hire and Op Leasing  ,CC64,Mini Cab Hire for Education,315,"8,690.00",1/23/2012,R,KINGSTON ACCESSIBILITY TRAN LT
2012 - JAN,CS -Oth Operating Inc & Expend,Trading A/c Surpluses/Deficits,Transport-Contract Hire                 ,J01374,Transport Related Expenditure ,Contract Hire and Op Leasing  ,CC64,Mini Cab Hire for Education,316,"9,090.00",1/22/2012,R,KINGSTON ACCESSIBILITY TRAN LT
2012 - JAN,CS -Oth Operating Inc & Expend,Trading A/c Surpluses/Deficits,Transport-Contract Hire                 ,J01374,Transport Related Expenditure ,Contract Hire and Op Leasing  ,CC64,Mini Cab Hire for Education,317,864,12/23/2011,R,SILVERBURN FINANCE (UK) LTD   
2012 - JAN,CS -Oth Operating Inc & Expend,Trading A/c Surpluses/Deficits,Transport-Contract Hire                 ,J01374,Transport Related Expenditure ,Contract Hire and Op Leasing  ,CC66,Mini Cab Hire -Soc Serv -Child,318,"1,274.00",12/16/2011,R,CALVERTON FACTORS LTD         
2012 - JAN,CS -Oth Operating Inc & Expend,Trading A/c Surpluses/Deficits,Transport-Contract Hire                 ,J01374,Transport Related Expenditure ,Contract Hire and Op Leasing  ,CC66,Mini Cab Hire -Soc Serv -Child,319,516.5,12/31/2011,R,BARCLAYS ASSET & SALES FINANCE
2012 - JAN,CS -Oth Operating Inc & Expend,Trading A/c Surpluses/Deficits,Transport-Contract Hire                 ,J01374,Transport Related Expenditure ,Contract Hire and Op Leasing  ,CC66,Mini Cab Hire -Soc Serv -Child,320,910,12/31/2011,R,CHEAM STATION CARS            
2012 - JAN,CS -Oth Operating Inc & Expend,Trading A/c Surpluses/Deficits,Transport-Contract Hire                 ,J01374,Transport Related Expenditure ,Contract Hire and Op Leasing  ,CC66,Mini Cab Hire -Soc Serv -Child,321,"1,358.00",1/23/2012,R,KINGSTON ACCESSIBILITY TRAN LT
2012 - JAN,CS -Oth Operating Inc & Expend,Trading A/c Surpluses/Deficits,Transport-Contract Hire                 ,J01374,Transport Related Expenditure ,Contract Hire and Op Leasing  ,CC66,Mini Cab Hire -Soc Serv -Child,322,"1,148.00",1/22/2012,R,KINGSTON ACCESSIBILITY TRAN LT
2012 - JAN,CS -Oth Operating Inc & Expend,Trading A/c Surpluses/Deficits,Transport-Contract Hire                 ,J01374,Transport Related Expenditure ,Contract Hire and Op Leasing  ,CC67,Mini Cab Hire -Soc Serv -Adult,323,703,12/31/2011,R,AERIAL CAR SERVICES LTD       
2012 - JAN,CS -Oth Operating Inc & Expend,Trading A/c Surpluses/Deficits,Transport-Contract Hire                 ,J01374,Transport Related Expenditure ,Contract Hire and Op Leasing  ,CC67,Mini Cab Hire -Soc Serv -Adult,324,680,12/31/2011,R,AERIAL CAR SERVICES LTD       
2012 - JAN,CS -Oth Operating Inc & Expend,Trading A/c Surpluses/Deficits,Transport-Contract Hire                 ,J01374,Transport Related Expenditure ,Contract Hire and Op Leasing  ,CC67,Mini Cab Hire -Soc Serv -Adult,325,688,1/1/2012,R,NVCAR HIRE LTD                
2012 - JAN,CS -Oth Operating Inc & Expend,Trading A/c Surpluses/Deficits,Transport-Contract Hire                 ,J01374,Transport Related Expenditure ,Contract Hire and Op Leasing  ,CC67,Mini Cab Hire -Soc Serv -Adult,326,516,1/8/2012,R,KINGSTON ACCESSIBILITY TRAN LT
2012 - JAN,CS -Oth Operating Inc & Expend,Trading A/c Surpluses/Deficits,Transport-Contract Hire                 ,J01374,Transport Related Expenditure ,Contract Hire and Op Leasing  ,CC67,Mini Cab Hire -Soc Serv -Adult,327,936,12/31/2011,R,BARCLAYS ASSET & SALES FINANCE
2012 - JAN,CS -Oth Operating Inc & Expend,Trading A/c Surpluses/Deficits,Transport-Contract Hire                 ,J01374,Transport Related Expenditure ,Contract Hire and Op Leasing  ,CC67,Mini Cab Hire -Soc Serv -Adult,328,532,12/31/2011,R,BARCLAYS ASSET & SALES FINANCE
2012 - JAN,CS -Oth Operating Inc & Expend,Trading A/c Surpluses/Deficits,Transport-Contract Hire                 ,J01374,Transport Related Expenditure ,Contract Hire and Op Leasing  ,CC67,Mini Cab Hire -Soc Serv -Adult,329,912,12/31/2011,R,BARCLAYS ASSET & SALES FINANCE
2012 - JAN,CS -Oth Operating Inc & Expend,Trading A/c Surpluses/Deficits,Transport-Contract Hire                 ,J01374,Transport Related Expenditure ,Contract Hire and Op Leasing  ,CC67,Mini Cab Hire -Soc Serv -Adult,330,704,12/31/2011,R,CAPITAL CARS                  
2012 - JAN,CS -Oth Operating Inc & Expend,Trading A/c Surpluses/Deficits,Transport-Contract Hire                 ,J01374,Transport Related Expenditure ,Contract Hire and Op Leasing  ,CC67,Mini Cab Hire -Soc Serv -Adult,331,702,1/23/2012,R,KINGSTON ACCESSIBILITY TRAN LT
2012 - JAN,CS -Oth Operating Inc & Expend,Trading A/c Surpluses/Deficits,Transport-Contract Hire                 ,J01374,Transport Related Expenditure ,Contract Hire and Op Leasing  ,CC67,Mini Cab Hire -Soc Serv -Adult,332,"1,156.50",1/22/2012,R,KINGSTON ACCESSIBILITY TRAN LT
2012 - JAN,CS -Oth Operating Inc & Expend,Trading A/c Surpluses/Deficits,Transport-Contract Hire                 ,J01374,Transport Related Expenditure ,Contract Hire and Op Leasing  ,CC68,Vehicle Hire Special Projects,333,928.05,12/23/2011,R,BARCLAYS ASSET & SALES FINANCE
2012 - JAN,CS -Oth Operating Inc & Expend,Trading A/c Surpluses/Deficits,Transport-Contract Hire                 ,J01374,Transport Related Expenditure ,Contract Hire and Op Leasing  ,CC68,Vehicle Hire Special Projects,334,704,12/23/2011,R,BARCLAYS ASSET & SALES FINANCE
2012 - JAN,CS -Oth Operating Inc & Expend,Trading A/c Surpluses/Deficits,Transport-Contract Hire                 ,J01374,Transport Related Expenditure ,Contract Hire and Op Leasing  ,CC68,Vehicle Hire Special Projects,335,829.5,12/23/2011,R,BARCLAYS ASSET & SALES FINANCE
2012 - JAN,CS -Oth Operating Inc & Expend,Trading A/c Surpluses/Deficits,Transport-Contract Hire                 ,J01374,Transport Related Expenditure ,Contract Hire and Op Leasing  ,CC68,Vehicle Hire Special Projects,336,"1,008.00",12/23/2011,R,BARCLAYS ASSET & SALES FINANCE
2012 - JAN,CS -Oth Operating Inc & Expend,Trading A/c Surpluses/Deficits,Transport-Contract Hire                 ,J01374,Transport Related Expenditure ,Contract Hire and Op Leasing  ,CC68,Vehicle Hire Special Projects,337,"1,540.00",12/23/2011,R,BARCLAYS ASSET & SALES FINANCE
2012 - JAN,CS -Oth Operating Inc & Expend,Trading A/c Surpluses/Deficits,Transport-Contract Hire                 ,J01374,Transport Related Expenditure ,Contract Hire and Op Leasing  ,CC68,Vehicle Hire Special Projects,338,896,12/23/2011,R,BARCLAYS ASSET & SALES FINANCE
2012 - JAN,CS -Oth Operating Inc & Expend,Trading A/c Surpluses/Deficits,Transport-Contract Hire                 ,J01374,Transport Related Expenditure ,Contract Hire and Op Leasing  ,CC68,Vehicle Hire Special Projects,339,630,12/23/2011,R,BARCLAYS ASSET & SALES FINANCE
2012 - JAN,CS -Oth Operating Inc & Expend,Trading A/c Surpluses/Deficits,Transport-Contract Hire                 ,J01374,Transport Related Expenditure ,Contract Hire and Op Leasing  ,CC68,Vehicle Hire Special Projects,340,552,1/8/2012,R,KINGSTON ACCESSIBILITY TRAN LT
2012 - JAN,CS -Oth Operating Inc & Expend,Trading A/c Surpluses/Deficits,Transport-Contract Hire                 ,J01374,Transport Related Expenditure ,Contract Hire and Op Leasing  ,CC68,Vehicle Hire Special Projects,341,"1,464.00",1/23/2012,R,KINGSTON ACCESSIBILITY TRAN LT
2012 - JAN,CS -Oth Operating Inc & Expend,Trading A/c Surpluses/Deficits,Transport-Contract Hire                 ,J01374,Transport Related Expenditure ,Contract Hire and Op Leasing  ,CC68,Vehicle Hire Special Projects,342,"1,632.00",1/22/2012,R,KINGSTON ACCESSIBILITY TRAN LT
2012 - JAN,CS -Oth Operating Inc & Expend,Trading A/c Surpluses/Deficits,Transport-Contract Hire                 ,J01374,Supplies & Services           ,Equip Furniture/Materials     ,DA09,Equip-Purchases,343,538.1,11/15/2011,R,QUALSAFE LTD                  
2012 - JAN,CS -Oth Operating Inc & Expend,Trading A/c Surpluses/Deficits,Transport-Workshop                      ,J01376,Transport Related Expenditure ,Direct Transport Costs        ,CA02,Tyres,344,635,12/28/2011,R,MORDEN TYRE SERVICES LTD      
2012 - JAN,CS -Oth Operating Inc & Expend,Trading A/c Surpluses/Deficits,Transport-Workshop                      ,J01376,Transport Related Expenditure ,Direct Transport Costs        ,CA02,Tyres,345,"1,330.00",1/11/2012,R,MORDEN TYRE SERVICES LTD      
2012 - JAN,CS -Oth Operating Inc & Expend,Trading A/c Surpluses/Deficits,Transport-Workshop                      ,J01376,Transport Related Expenditure ,Direct Transport Costs        ,CA02,Tyres,346,525,1/17/2012,R,MORDEN TYRE SERVICES LTD      
2012 - JAN,CS -Oth Operating Inc & Expend,Trading A/c Surpluses/Deficits,Transport-Workshop                      ,J01376,Transport Related Expenditure ,Direct Transport Costs        ,CA05,Vehicle MOTs,347,"1,500.00",1/4/2012,R,V.O.S.A                       
2012 - JAN,CS -Oth Operating Inc & Expend,Trading A/c Surpluses/Deficits,Transport-Workshop                      ,J01376,Transport Related Expenditure ,Direct Transport Costs        ,CA55,Specialist Maint. (Off Site),348,772,12/20/2011,R,KINGSLEY COMM COMPONENTS LTD  
2012 - JAN,CS -Oth Operating Inc & Expend,Trading A/c Surpluses/Deficits,Transport-Workshop                      ,J01376,Transport Related Expenditure ,Direct Transport Costs        ,CA55,Specialist Maint. (Off Site),349,"4,618.00",12/21/2011,R,EUROMOTIVE (KENT) LIMITED     
2012 - JAN,CS -Oth Operating Inc & Expend,Trading A/c Surpluses/Deficits,Transport-Workshop                      ,J01376,Transport Related Expenditure ,Direct Transport Costs        ,CA55,Specialist Maint. (Off Site),350,500,1/5/2012,R,CLARK TRANSMISSION            
2012 - JAN,CS -Oth Operating Inc & Expend,Trading A/c Surpluses/Deficits,Transport-Workshop                      ,J01376,Transport Related Expenditure ,Direct Transport Costs        ,CA55,Specialist Maint. (Off Site),351,"3,886.76",1/10/2012,R,REDACTED
2012 - JAN,CS -Oth Operating Inc & Expend,Trading A/c Surpluses/Deficits,Transport-Workshop                      ,J01376,Transport Related Expenditure ,Direct Transport Costs        ,CA55,Specialist Maint. (Off Site),352,"2,637.64",1/19/2012,R,FLEETSPEED COACHWORKS LTD.    
2012 - JAN,CS -Oth Operating Inc & Expend,Trading A/c Surpluses/Deficits,Transport-Workshop                      ,J01376,Transport Related Expenditure ,Direct Transport Costs        ,CA56,Specialist Maint. (On Site),353,842.58,12/30/2011,R,R.J.H.WELDING                 
2012 - JAN,CS -Oth Operating Inc & Expend,Trading A/c Surpluses/Deficits,Transport-Workshop                      ,J01376,Transport Related Expenditure ,Direct Transport Costs        ,CA56,Specialist Maint. (On Site),354,835.5,1/3/2012,R,TENNANT UK CLEANING SOLUTIONS 
2012 - JAN,CS -Oth Operating Inc & Expend,Trading A/c Surpluses/Deficits,Transport-Workshop                      ,J01376,Transport Related Expenditure ,Direct Transport Costs        ,CA56,Specialist Maint. (On Site),355,"1,137.00",1/17/2012,R,V L TEST SYSTEMS LTD          
2012 - JAN,CS -Oth Operating Inc & Expend,Trading A/c Surpluses/Deficits,Transport-Workshop                      ,J01376,Transport Related Expenditure ,Direct Transport Costs        ,CA72,Vehicle Parts,356,774.13,12/23/2011,R,COMMERCIAL & PLANT LTD        
2012 - JAN,CS -Oth Operating Inc & Expend,Trading A/c Surpluses/Deficits,Transport-Workshop                      ,J01376,Transport Related Expenditure ,Direct Transport Costs        ,CA72,Vehicle Parts,357,899.8,12/23/2011,R,GEESINK NORBA                 
2012 - JAN,CS -Oth Operating Inc & Expend,Trading A/c Surpluses/Deficits,Transport-Workshop                      ,J01376,Transport Related Expenditure ,Direct Transport Costs        ,CA72,Vehicle Parts,358,"1,036.80",12/22/2011,R,GEESINK NORBA                 
2012 - JAN,CS -Oth Operating Inc & Expend,Trading A/c Surpluses/Deficits,Transport-Workshop                      ,J01376,Transport Related Expenditure ,Direct Transport Costs        ,CA72,Vehicle Parts,359,799.21,1/11/2012,R,GEESINK NORBA                 
2012 - JAN,CS -Oth Operating Inc & Expend,Trading A/c Surpluses/Deficits,Transport-Workshop                      ,J01376,Transport Related Expenditure ,Direct Transport Costs        ,CA72,Vehicle Parts,360,773.25,1/12/2012,R,ROSSETTS COMMERCIALS          
2012 - JAN,CS -Oth Operating Inc & Expend,Trading A/c Surpluses/Deficits,Transport-Workshop                      ,J01376,Transport Related Expenditure ,Direct Transport Costs        ,CA72,Vehicle Parts,361,614.29,1/9/2012,R,COMMERCIAL & PLANT LTD        
2012 - JAN,CS -Oth Operating Inc & Expend,Trading A/c Surpluses/Deficits,Transport-Workshop                      ,J01376,Transport Related Expenditure ,Direct Transport Costs        ,CA72,Vehicle Parts,362,779.08,1/19/2012,R,GEESINK NORBA                 
2012 - JAN,CS -Oth Operating Inc & Expend,Trading A/c Surpluses/Deficits,Transport-Workshop                      ,J01376,Transport Related Expenditure ,Direct Transport Costs        ,CA72,Vehicle Parts,363,790,1/18/2012,R,HTC CROYDON                   
2012 - JAN,CS -Oth Operating Inc & Expend,Trading A/c Surpluses/Deficits,Transport-Workshop                      ,J01376,Transport Related Expenditure ,Contract Hire and Op Leasing  ,CC60,Vehicle Hire for LB Sutton,364,"1,548.67",12/23/2011,R,BARCLAYS ASSET & SALES FINANCE
2012 - JAN,CS -Oth Operating Inc & Expend,Trading A/c Surpluses/Deficits,Transport-Workshop                      ,J01376,Transport Related Expenditure ,Contract Hire and Op Leasing  ,CC60,Vehicle Hire for LB Sutton,365,"1,442.00",12/30/2011,R,BRUNSWICK CARS LTD            
2012 - JAN,CS -Oth Operating Inc & Expend,Trading A/c Surpluses/Deficits,Transport-Workshop                      ,J01376,Transport Related Expenditure ,Contract Hire and Op Leasing  ,CC60,Vehicle Hire for LB Sutton,366,"1,064.00",12/16/2011,R,CALVERTON FACTORS LTD         
2012 - JAN,CS -Oth Operating Inc & Expend,Trading A/c Surpluses/Deficits,Transport-Workshop                      ,J01376,Transport Related Expenditure ,Contract Hire and Op Leasing  ,CC60,Vehicle Hire for LB Sutton,367,"1,960.00",12/30/2011,R,BRUNSWICK CARS LTD            
2012 - JAN,CS -Oth Operating Inc & Expend,Trading A/c Surpluses/Deficits,Transport-Workshop                      ,J01376,Transport Related Expenditure ,Contract Hire and Op Leasing  ,CC60,Vehicle Hire for LB Sutton,368,"2,148.00",12/30/2011,R,BRUNSWICK CARS LTD            
2012 - JAN,CS -Oth Operating Inc & Expend,Trading A/c Surpluses/Deficits,Transport-Workshop                      ,J01376,Transport Related Expenditure ,Contract Hire and Op Leasing  ,CC60,Vehicle Hire for LB Sutton,369,"1,485.00",12/16/2011,R,CALVERTON FACTORS LTD         
2012 - JAN,CS -Oth Operating Inc & Expend,Trading A/c Surpluses/Deficits,Transport-Workshop                      ,J01376,Transport Related Expenditure ,Contract Hire and Op Leasing  ,CC60,Vehicle Hire for LB Sutton,370,"1,666.00",12/30/2011,R,BRUNSWICK CARS LTD            
2012 - JAN,CS -Oth Operating Inc & Expend,Trading A/c Surpluses/Deficits,Transport-Workshop                      ,J01376,Transport Related Expenditure ,Contract Hire and Op Leasing  ,CC60,Vehicle Hire for LB Sutton,371,"1,260.00",12/16/2011,R,CALVERTON FACTORS LTD         
2012 - JAN,CS -Oth Operating Inc & Expend,Trading A/c Surpluses/Deficits,Transport-Workshop                      ,J01376,Transport Related Expenditure ,Contract Hire and Op Leasing  ,CC60,Vehicle Hire for LB Sutton,372,650,12/20/2011,R,KENDALL CARS                  
2012 - JAN,CS -Oth Operating Inc & Expend,Trading A/c Surpluses/Deficits,Transport-Workshop                      ,J01376,Transport Related Expenditure ,Contract Hire and Op Leasing  ,CC60,Vehicle Hire for LB Sutton,373,840,12/16/2011,R,CALVERTON FACTORS LTD         
2012 - JAN,CS -Oth Operating Inc & Expend,Trading A/c Surpluses/Deficits,Transport-Workshop                      ,J01376,Transport Related Expenditure ,Contract Hire and Op Leasing  ,CC65,Vehicle Hire for Education,374,784,11/30/2011,R,SILVERBURN FINANCE (UK) LTD   
2012 - JAN,CS -Oth Operating Inc & Expend,Trading A/c Surpluses/Deficits,Transport-Workshop                      ,J01376,Transport Related Expenditure ,Contract Hire and Op Leasing  ,CC65,Vehicle Hire for Education,375,"8,682.00",12/21/2011,R,KENT COUNTY COUNCIL           
2012 - JAN,CS -Oth Operating Inc & Expend,Trading A/c Surpluses/Deficits,Transport-Workshop                      ,J01376,Transport Related Expenditure ,Contract Hire and Op Leasing  ,CC65,Vehicle Hire for Education,376,"1,785.00",12/31/2011,R,REDACTED
2012 - JAN,CS -Oth Operating Inc & Expend,INVESTMENT PROPERTIES,South Mitcham Comm Assoc                ,J08071,Premises Related Expenditure  ,RepairsAlterations&MtceOfBldgs,BA03,DDM - Mechanical,377,520,1/4/2012,R,C FLETCHER SONS & CO LTD      
2012 - JAN,CS -Oth Operating Inc & Expend,INVESTMENT PROPERTIES,Pollards Hill Comm Cntre                ,J08074,Premises Related Expenditure  ,RepairsAlterations&MtceOfBldgs,BA03,DDM - Mechanical,378,636.36,12/22/2011,R,COFELY LIMITED                
2012 - JAN,Childrens & Education Services,Assuring Access To Schools,Stouthall                               ,K09082,Premises Related Expenditure  ,RepairsAlterations&MtceOfBldgs,BA06,Repairs & Maintenance General,379,660,12/30/2011,R,CALOW LTD                     
2012 - JAN,Childrens & Education Services,Assuring Access To Schools,Stouthall                               ,K09082,Premises Related Expenditure  ,RepairsAlterations&MtceOfBldgs,BA06,Repairs & Maintenance General,380,775,12/30/2011,R,CALOW LTD                     
2012 - JAN,Childrens & Education Services,Assuring Access To Schools,Stouthall                               ,K09082,Premises Related Expenditure  ,RepairsAlterations&MtceOfBldgs,BA06,Repairs & Maintenance General,381,540,12/30/2011,R,CALOW LTD                     
2012 - JAN,Childrens & Education Services,Assuring Access To Schools,Stouthall                               ,K09082,Premises Related Expenditure  ,RepairsAlterations&MtceOfBldgs,BA79,Security of Premises,382,"9,392.00",12/30/2011,R,G.P HADEN ASSOCIATES          
2012 - JAN,Childrens & Education Services,Assuring Access To Schools,Stouthall                               ,K09082,Premises Related Expenditure  ,Energy Costs                  ,BB03,Gas (incl. Butane),383,"2,943.77",12/31/2011,R,FLOGAS CO UK                  
2012 - JAN,Cultural Env Reg&Plan Services,SMSS (Cult),Leisure Developmt Manager               ,P04061,Supplies & Services           ,Expenses                      ,DH50,Special Projects,384,"2,500.00",1/23/2011,R,NEW WIMBLEDON THEATRE LTD     
2012 - JAN,Cultural Env Reg&Plan Services,SMSS (Cult),Leisure Developmt Manager               ,P04061,Supplies & Services           ,Grants and Subscriptions      ,DJ54,Contributions,385,"10,000.00",1/17/2012,R,CROYDON COUNCIL               
2012 - JAN,Cultural Env Reg&Plan Services,Recreation & Sport,OLYMPICS&PARA LOOK&FEEL FUND      ,P04810,Supplies & Services           ,Expenses                      ,DH50,Special Projects,386,"40,415.38",1/19/2012,R,ICON DISPLAY                  
2012 - JAN,Cultural Env Reg&Plan Services,Open Spaces,"Pks,Rec Grds (Unloc)                    ",P05005,Premises Related Expenditure  ,Ground Maintenance Costs      ,BL50,Nature Conservation,387,"2,000.00",1/20/2012,R,COMPLETE ECOLOGY LTD          
2012 - JAN,Cultural Env Reg&Plan Services,Open Spaces,"Pks,Rec Grds (Unloc)                    ",P05005,Premises Related Expenditure  ,Ground Maintenance Costs      ,BL51,Playground Maintenance,388,"2,800.00",12/19/2011,R,SMP (PLAYGROUNDS) LTD         
2012 - JAN,Cultural Env Reg&Plan Services,Open Spaces,Beverley Meads                          ,P05008,Premises Related Expenditure  ,Water Services                ,BE01,Use of Water (Metered),389,942.27,12/15/2011,R,THAMES WATER UTILITIES LTD    
2012 - JAN,Cultural Env Reg&Plan Services,Open Spaces,Raynes Pk Sports Grd                    ,P05038,Premises Related Expenditure  ,Energy Costs                  ,BB03,Gas (incl. Butane),390,705.27,1/9/2012,R,KENT COUNTY COUNCIL           
2012 - JAN,Cultural Env Reg&Plan Services,Open Spaces,Raynes Pk Sports Grd                    ,P05038,Premises Related Expenditure  ,Energy Costs                  ,BB03,Gas (incl. Butane),391,636.38,1/9/2012,R,KENT COUNTY COUNCIL           
2012 - JAN,Cultural Env Reg&Plan Services,Open Spaces,Raynes Pk Sports Grd                    ,P05038,Premises Related Expenditure  ,Water Services                ,BE01,Use of Water (Metered),392,914.29,1/9/2012,R,THAMES WATER UTILITIES LTD    
2012 - JAN,Cultural Env Reg&Plan Services,Open Spaces,Sir J. Hood Mem Grd                     ,P05042,Premises Related Expenditure  ,Water Services                ,BE01,Use of Water (Metered),393,"1,581.60",1/4/2012,R,THAMES WATER UTILITIES LTD    
2012 - JAN,CS -Oth Operating Inc & Expend,INVESTMENT PROPERTIES,Wimbledon Park                          ,P05050,Premises Related Expenditure  ,Energy Costs                  ,BB02,Electricity,394,761.25,12/29/2011,R,EDF ENERGY 1 LIMITED          
2012 - JAN,Cultural Env Reg&Plan Services,Open Spaces,Leis Dev - Fireworks                    ,P05063,Supplies & Services           ,Services                      ,DF09,Miscellaneous Fees,395,"1,222.20",12/23/2011,R,BRITISH RED CROSS SOCIETY     
2012 - JAN,Cultural Env Reg&Plan Services,Recreation & Sport,Leisure Development                     ,P05068,Employees                     ,Direct Employee Expenses      ,AA17,Agency Staff & Casual Paymts,396,"1,785.00",12/20/2011,R,RIDGWAY STABLES               
2012 - JAN,Cultural Env Reg&Plan Services,Recreation & Sport,Leisure Development                     ,P05068,Supplies & Services           ,Expenses                      ,DH50,Special Projects,397,"1,500.00",12/22/2011,R,TOTAL SWIMMING LTD            
2012 - JAN,Cultural Env Reg&Plan Services,Recreation & Sport,Leisure Development                     ,P05068,Supplies & Services           ,Expenses                      ,DH50,Special Projects,398,"2,000.00",1/13/2012,R,NUFF RESPECT                  
2012 - JAN,Cultural Env Reg&Plan Services,Open Spaces,Morden Parks                            ,P05110,Premises Related Expenditure  ,Rents                         ,BC01,Miscellaneous Rents,399,668.28,11/24/2011,R,TRANSPORT TRADING LTD PROP A/C
2012 - JAN,Cultural Env Reg&Plan Services,Open Spaces,"Trans,Plnt WHA(Unl)                     ",P08110,Supplies & Services           ,Equip Furniture/Materials     ,DA01,Equipment - R & M,400,560.14,1/11/2012,R,SAFETY-KLEEN UK LTD.          
2012 - JAN,Cultural Env Reg&Plan Services,Recreation & Sport,Wmbldn Sailing Base                     ,P09120,Supplies & Services           ,Equip Furniture/Materials     ,DA04,Materials,401,"4,500.00",12/8/2011,R,TRIDENT-UK                    
2012 - JAN,Cultural Env Reg&Plan Services,Recreation & Sport,Wmbldn Sailing Base                     ,P09120,Supplies & Services           ,Equip Furniture/Materials     ,DA04,Materials,402,"4,500.00",12/8/2011,R,TRIDENT-UK                    
2012 - JAN,Cultural Env Reg&Plan Services,Recreation & Sport,Wmbldn Sailing Base                     ,P09120,Supplies & Services           ,Equip Furniture/Materials     ,DA04,Materials,403,"4,500.00",12/17/2011,R,TRIDENT-UK                    
2012 - JAN,Cultural Env Reg&Plan Services,Recreation & Sport,Merton Hall                             ,P12143,Premises Related Expenditure  ,Energy Costs                  ,BB02,Electricity,404,516.2,12/21/2011,R,EDF ENERGY 1 LIMITED          
2012 - JAN,Cultural Env Reg&Plan Services,Culture & Heritage,Arts (General Funding)                  ,P14172,Supplies & Services           ,Grants and Subscriptions      ,DJ01,Grants,405,"1,120.00",1/5/2012,R,THE SALVATION ARMY            
2012 - JAN,Cultural Env Reg&Plan Services,Culture & Heritage,Arts (General Funding)                  ,P14172,Supplies & Services           ,Grants and Subscriptions      ,DJ01,Grants,406,"1,120.00",1/20/2012,R,COLLIERS WOOD CHORUS          
2012 - JAN,Cultural Env Reg&Plan Services,Recreation & Sport,Clnt Offrs-CivicCntr                    ,P17203,Supplies & Services           ,Services                      ,DF03,Consultants,407,500,12/4/2011,R,REDACTED
2012 - JAN,Cultural Env Reg&Plan Services,Recreation & Sport,Clnt Offrs-CivicCntr                    ,P17203,Supplies & Services           ,Services                      ,DF03,Consultants,408,"2,479.24",12/31/2011,R,FMG CONSULTING LTD            
2012 - JAN,Cultural Env Reg&Plan Services,Recreation & Sport,Clnt Offrs-CivicCntr                    ,P17203,Supplies & Services           ,Services                      ,DF03,Consultants,409,"1,500.00",12/15/2011,R,MSC CONSULTANTS               
2012 - JAN,Cultural Env Reg&Plan Services,Recreation & Sport,Clnt Offrs-CivicCntr                    ,P17203,Third Party Payments          ,Joint Authorities             ,EC01,Contract Payments,410,"16,056.00",1/4/2012,R,GREENWICH LEISURE LTD         
2012 - JAN,,,Mtchm Cmmon Consvtors,W0000W,Premises Related Expenditure  ,Ground Maintenance Costs      ,BL03,Maintenance of Grounds,411,700,12/31/2011,R,NORBURY PARK WOOD PRODUCTS    
2012 - JAN,,,Mtchm Cmmon Consvtors,W0000W,Premises Related Expenditure  ,Ground Maintenance Costs      ,BL50,Nature Conservation,412,616.92,11/20/2011,R,HSS HIRE                      
2012 - JAN,,,Mtchm Cmmon Consvtors,W0000W,Premises Related Expenditure  ,Ground Maintenance Costs      ,BL50,Nature Conservation,413,600,1/16/2012,R,I & J BUSHELL LTD             
2012 - JAN,,,Mrton & Sttn Jnt Brd                    ,W0000X,Premises Related Expenditure  ,RepairsAlterations&MtceOfBldgs,BA67,Remvl Rubbish/Spoil,414,650,1/13/2012,R,REDACTED
2012 - JAN,,,Mrton & Sttn Jnt Brd                    ,W0000X,Supplies & Services           ,Expenses                      ,DH17,Advances,415,"107,778.00",1/3/2012,R,J BROWNE CONSTRUCTION CO LTD  
2012 - JAN,Central Services,Fully rechargeable Overheads,Local Involvement Network               ,A01039,Third Party Payments          ,Private Contractors           ,EH10,Contract Payments,416,"8,342.91",1/5/2012,R,MERTON VOLUNTARY SERV COUNCIL 
2012 - JAN,Central Services,Fully rechargeable Overheads,NON-STATUTORY MARKETING & COMM ,A02019,Premises Related Expenditure  ,Rents                         ,BC03,Room/venue rental hire,417,554.4,11/24/2011,R,REDACTED
2012 - JAN,Central Services,Fully rechargeable Overheads,NON-STATUTORY MARKETING & COMM ,A02019,Premises Related Expenditure  ,Rents                         ,BC03,Room/venue rental hire,418,"1,725.00",1/10/2012,R,REDACTED
2012 - JAN,Central Services,Fully rechargeable Overheads,NON-STATUTORY MARKETING & COMM ,A02019,Supplies & Services           ,Prntng Stnry Gen Off Exp      ,DE22,Marketing,419,533.3,1/16/2012,R,RECOGNITION EXPRESS           
2012 - JAN,Central Services,Fully rechargeable Overheads,NON-STATUTORY MARKETING & COMM ,A02019,Supplies & Services           ,Services                      ,DF02,Misc Advertising/Publicity,420,537.5,11/24/2011,R,JCDECAUX UNITED KINGDOM       
2012 - JAN,Central Services,Fully rechargeable Overheads,NON-STATUTORY MARKETING & COMM ,A02019,Supplies & Services           ,Services                      ,DF02,Misc Advertising/Publicity,421,537.5,12/15/2011,R,JCDECAUX UNITED KINGDOM       
2012 - JAN,Central Services,Fully rechargeable Overheads,Press and Public Relations.             ,A02026,Employees                     ,Direct Employee Expenses      ,AA17,Agency Staff & Casual Paymts,422,"6,000.00",12/28/2011,R,PUBLIC SELECT                 
2012 - JAN,Central Services,Fully rechargeable Overheads,Press and Public Relations.             ,A02026,Employees                     ,Direct Employee Expenses      ,AA17,Agency Staff & Casual Paymts,423,"2,100.00",1/5/2012,R,PUBLIC SELECT                 
2012 - JAN,Central Services,Fully rechargeable Overheads,Press and Public Relations.             ,A02026,Employees                     ,Direct Employee Expenses      ,AA17,Agency Staff & Casual Paymts,424,"5,100.00",1/19/2012,R,PUBLIC SELECT                 
2012 - JAN,Central Services,Fully rechargeable Overheads,Press and Public Relations.             ,A02026,Supplies & Services           ,Prntng Stnry Gen Off Exp      ,DE20,Council Magazine,425,"5,619.20",11/21/2011,R,LONDON LETTERBOX MARKETING    
2012 - JAN,Central Services,Fully rechargeable Overheads,Press and Public Relations.             ,A02026,Supplies & Services           ,Expenses                      ,DH21,Christmas Lights,426,688.05,12/22/2011,R,MAY GURNEY LTD T/A CARTLEDGE  
2012 - JAN,Central Services,Fully rechargeable Overheads,Press and Public Relations.             ,A02026,Supplies & Services           ,Miscellaneous Expenses        ,DL64,Christmas Lights,427,738,12/2/2011,R,BROXAP LIMITED                
2012 - JAN,CS -Oth Operating Inc & Expend,Trading A/c Surpluses/Deficits,Graphic Designer                        ,A02027,Supplies & Services           ,Equip Furniture/Materials     ,DA01,Equipment - R & M,428,600,11/30/2011,R,FLAME LIMITED                 
2012 - JAN,CS -Oth Operating Inc & Expend,Trading A/c Surpluses/Deficits,Prtng Jobs - Ext Agncy                  ,A03041,Supplies & Services           ,Prntng Stnry Gen Off Exp      ,DE01,External Printing,429,995,12/30/2011,R,BELMONT PRESS LIMITED         
2012 - JAN,CS -Oth Operating Inc & Expend,Trading A/c Surpluses/Deficits,Prtng Jobs - Ext Agncy                  ,A03041,Supplies & Services           ,Prntng Stnry Gen Off Exp      ,DE01,External Printing,430,"8,508.00",12/28/2011,R,ULTIMATE INVOICE FINANCE LTD  
2012 - JAN,CS -Oth Operating Inc & Expend,Trading A/c Surpluses/Deficits,Prtng Jobs - Ext Agncy                  ,A03041,Supplies & Services           ,Prntng Stnry Gen Off Exp      ,DE01,External Printing,431,"3,188.00",1/10/2012,R,PULSE CASHFLOW FINANCE LTD    
2012 - JAN,CS -Oth Operating Inc & Expend,Trading A/c Surpluses/Deficits,PrintUnit-HighVolPhtcopying             ,A03042,Third Party Payments          ,Private Contractors           ,EH02,Miscellaneous Hired Services,432,961.01,12/20/2011,R,XEROX(UK)LTD                  
2012 - JAN,CS -Oth Operating Inc & Expend,Trading A/c Surpluses/Deficits,PrintUnit-HighVolPhtcopying             ,A03042,Third Party Payments          ,Private Contractors           ,EH02,Miscellaneous Hired Services,433,"9,561.10",12/20/2011,R,XEROX(UK)LTD                  
2012 - JAN,CS -Oth Operating Inc & Expend,Trading A/c Surpluses/Deficits,Translation Services                    ,A04060,Supplies & Services           ,Services                      ,DF45,Payment of Sessional workers,434,"1,890.00",1/12/2012,R,REDACTED
2012 - JAN,CS -Oth Operating Inc & Expend,Trading A/c Surpluses/Deficits,Translation Services                    ,A04060,Supplies & Services           ,Services                      ,DF45,Payment of Sessional workers,435,576,1/24/2012,R,REDACTED
2012 - JAN,Central Services,Fully rechargeable Overheads,Merton Link                             ,A04070,Premises Related Expenditure  ,Cleaning and Domestic Supplies,BH03,Cleaning Services,436,"1,653.69",12/12/2011,R,DYNAMIQ CLEANING LIMITED      
2012 - JAN,Central Services,Fully rechargeable Overheads,Merton Link                             ,A04070,Premises Related Expenditure  ,Cleaning and Domestic Supplies,BH03,Cleaning Services,437,"1,653.69",1/9/2012,R,DYNAMIQ CLEANING LIMITED      
2012 - JAN,Central Services,Democ' Representation & Mgt,PERFORMANCE REWARD GRANT            ,A04081,Supplies & Services           ,Grants and Subscriptions      ,DJ01,Grants,438,"46,714.00",1/13/2012,R,GRENFELL HOUSING & TRAINING   
2012 - JAN,Central Services,Gen Grants Bequest & Donations,VOLUNTARY SECTOR COORDINATION   ,A04082,Supplies & Services           ,Grants and Subscriptions      ,DJ01,Grants,439,"11,174.00",1/6/2012,R,MERTON VOLUNTARY SERV COUNCIL 
2012 - JAN,Central Services,Fully rechargeable Overheads,Learning and Development                ,B06146,Employees                     ,Indirect Employee Expenses    ,AB56,Internal Training Costs,440,"3,750.00",12/23/2011,R,COMPUTER BOOKSHOPS            
2012 - JAN,CS -Oth Operating Inc & Expend,Trading A/c Surpluses/Deficits,CHAS Scheme                             ,B06150,Premises Related Expenditure  ,Rents                         ,BC03,Room/venue rental hire,441,"1,850.00",12/7/2011,R,BSI                           
2012 - JAN,CS -Oth Operating Inc & Expend,Trading A/c Surpluses/Deficits,CHAS Scheme                             ,B06150,Supplies & Services           ,Services                      ,DF88,Assessor Fees,442,"1,585.00",12/31/2011,R,REDACTED
2012 - JAN,CS -Oth Operating Inc & Expend,Trading A/c Surpluses/Deficits,CHAS Scheme                             ,B06150,Supplies & Services           ,Services                      ,DF88,Assessor Fees,443,965,12/30/2011,R,REDACTED
2012 - JAN,CS -Oth Operating Inc & Expend,Trading A/c Surpluses/Deficits,CHAS Scheme                             ,B06150,Supplies & Services           ,Services                      ,DF88,Assessor Fees,444,710,12/30/2011,R,REDACTED
2012 - JAN,CS -Oth Operating Inc & Expend,Trading A/c Surpluses/Deficits,CHAS Scheme                             ,B06150,Supplies & Services           ,Services                      ,DF88,Assessor Fees,445,840,12/31/2011,R,REDACTED
2012 - JAN,CS -Oth Operating Inc & Expend,Trading A/c Surpluses/Deficits,CHAS Scheme                             ,B06150,Supplies & Services           ,Services                      ,DF88,Assessor Fees,446,630,12/29/2011,R,REDACTED
2012 - JAN,CS -Oth Operating Inc & Expend,Trading A/c Surpluses/Deficits,CHAS Scheme                             ,B06150,Supplies & Services           ,Services                      ,DF88,Assessor Fees,447,505,1/2/2012,R,REDACTED
2012 - JAN,CS -Oth Operating Inc & Expend,Trading A/c Surpluses/Deficits,CHAS Scheme                             ,B06150,Supplies & Services           ,Services                      ,DF88,Assessor Fees,448,"2,436.43",12/29/2011,R,WEST WALES SAFETY SERVICES    
2012 - JAN,CS -Oth Operating Inc & Expend,Trading A/c Surpluses/Deficits,CHAS Scheme                             ,B06150,Supplies & Services           ,Services                      ,DF88,Assessor Fees,449,"2,230.00",12/31/2011,R,SOUTH EAST HEALTH & SAFETY LTD
2012 - JAN,CS -Oth Operating Inc & Expend,Trading A/c Surpluses/Deficits,CHAS Scheme                             ,B06150,Supplies & Services           ,Services                      ,DF88,Assessor Fees,450,"2,395.00",12/30/2011,R,ALIMOR SAFETY LTD             
2012 - JAN,CS -Oth Operating Inc & Expend,Trading A/c Surpluses/Deficits,CHAS Scheme                             ,B06150,Supplies & Services           ,Services                      ,DF88,Assessor Fees,451,505.66,12/31/2011,R,REDACTED
2012 - JAN,CS -Oth Operating Inc & Expend,Trading A/c Surpluses/Deficits,CHAS Scheme                             ,B06150,Supplies & Services           ,Services                      ,DF88,Assessor Fees,452,"1,520.00",1/4/2012,R,REDACTED
2012 - JAN,CS -Oth Operating Inc & Expend,Trading A/c Surpluses/Deficits,CHAS Scheme                             ,B06150,Supplies & Services           ,Services                      ,DF88,Assessor Fees,453,835,12/31/2011,R,REDACTED
2012 - JAN,CS -Oth Operating Inc & Expend,Trading A/c Surpluses/Deficits,CHAS Scheme                             ,B06150,Supplies & Services           ,Services                      ,DF88,Assessor Fees,454,"1,000.00",1/3/2012,R,REDACTED
2012 - JAN,CS -Oth Operating Inc & Expend,Trading A/c Surpluses/Deficits,CHAS Scheme                             ,B06150,Supplies & Services           ,Services                      ,DF88,Assessor Fees,455,605,1/6/2012,R,REDACTED
2012 - JAN,CS -Oth Operating Inc & Expend,Trading A/c Surpluses/Deficits,CHAS Scheme                             ,B06150,Supplies & Services           ,Services                      ,DF88,Assessor Fees,456,590,1/3/2012,R,REDACTED
2012 - JAN,CS -Oth Operating Inc & Expend,Trading A/c Surpluses/Deficits,CHAS Scheme                             ,B06150,Supplies & Services           ,Services                      ,DF88,Assessor Fees,457,"1,005.00",12/28/2011,R,WOODS CONSULTANCY SERVICES LTD
2012 - JAN,CS -Oth Operating Inc & Expend,Trading A/c Surpluses/Deficits,CHAS Scheme                             ,B06150,Supplies & Services           ,Services                      ,DF88,Assessor Fees,458,720,12/31/2011,R,REDACTED
2012 - JAN,CS -Oth Operating Inc & Expend,Trading A/c Surpluses/Deficits,CHAS Scheme                             ,B06150,Supplies & Services           ,Services                      ,DF88,Assessor Fees,459,"1,115.00",1/3/2012,R,REDACTED
2012 - JAN,CS -Oth Operating Inc & Expend,Trading A/c Surpluses/Deficits,CHAS Scheme                             ,B06150,Supplies & Services           ,Services                      ,DF88,Assessor Fees,460,"1,000.00",1/7/2012,R,MGW SAFETY SERVICES           
2012 - JAN,CS -Oth Operating Inc & Expend,Trading A/c Surpluses/Deficits,CHAS Scheme                             ,B06150,Supplies & Services           ,Services                      ,DF88,Assessor Fees,461,925,12/31/2011,R,REDACTED
2012 - JAN,CS -Oth Operating Inc & Expend,Trading A/c Surpluses/Deficits,CHAS Scheme                             ,B06150,Supplies & Services           ,Services                      ,DF88,Assessor Fees,462,"4,130.00",11/30/2011,R,STALLARD KANE ASSOCIATES LTD  
2012 - JAN,CS -Oth Operating Inc & Expend,Trading A/c Surpluses/Deficits,CHAS Scheme                             ,B06150,Supplies & Services           ,Services                      ,DF88,Assessor Fees,463,681.43,12/30/2011,R,REDACTED
2012 - JAN,CS -Oth Operating Inc & Expend,Trading A/c Surpluses/Deficits,CHAS Scheme                             ,B06150,Supplies & Services           ,Services                      ,DF88,Assessor Fees,464,500,1/10/2012,R,REDACTED
2012 - JAN,CS -Oth Operating Inc & Expend,Trading A/c Surpluses/Deficits,CHAS Scheme                             ,B06150,Supplies & Services           ,Services                      ,DF88,Assessor Fees,465,"1,938.95",12/31/2011,R,REDACTED
2012 - JAN,CS -Oth Operating Inc & Expend,Trading A/c Surpluses/Deficits,CHAS Scheme                             ,B06150,Supplies & Services           ,Services                      ,DF88,Assessor Fees,466,"2,190.00",1/4/2012,R,REDACTED
2012 - JAN,CS -Oth Operating Inc & Expend,Trading A/c Surpluses/Deficits,CHAS Scheme                             ,B06150,Supplies & Services           ,Services                      ,DF88,Assessor Fees,467,"2,675.00",12/31/2011,R,REDACTED
2012 - JAN,CS -Oth Operating Inc & Expend,Trading A/c Surpluses/Deficits,CHAS Scheme                             ,B06150,Supplies & Services           ,Services                      ,DF88,Assessor Fees,468,"1,340.00",1/12/2012,R,REDACTED
2012 - JAN,CS -Oth Operating Inc & Expend,Trading A/c Surpluses/Deficits,CHAS Scheme                             ,B06150,Supplies & Services           ,Services                      ,DF88,Assessor Fees,469,"1,945.00",1/12/2012,R,REDACTED
2012 - JAN,CS -Oth Operating Inc & Expend,Trading A/c Surpluses/Deficits,CHAS Scheme                             ,B06150,Supplies & Services           ,Services                      ,DF88,Assessor Fees,470,"1,563.71",1/16/2012,R,REDACTED
2012 - JAN,CS -Oth Operating Inc & Expend,Trading A/c Surpluses/Deficits,CHAS Scheme                             ,B06150,Supplies & Services           ,Services                      ,DF88,Assessor Fees,471,"1,260.00",1/12/2012,R,REDACTED
2012 - JAN,CS -Oth Operating Inc & Expend,Trading A/c Surpluses/Deficits,CHAS Scheme                             ,B06150,Supplies & Services           ,Services                      ,DF88,Assessor Fees,472,755,1/10/2012,R,REDACTED
2012 - JAN,CS -Oth Operating Inc & Expend,Trading A/c Surpluses/Deficits,CHAS Scheme                             ,B06150,Supplies & Services           ,Services                      ,DF88,Assessor Fees,473,"1,850.00",1/2/2012,R,REDACTED
2012 - JAN,CS -Oth Operating Inc & Expend,Trading A/c Surpluses/Deficits,CHAS Scheme                             ,B06150,Supplies & Services           ,Services                      ,DF88,Assessor Fees,474,540,1/18/2012,R,REDACTED
2012 - JAN,CS -Oth Operating Inc & Expend,Trading A/c Surpluses/Deficits,CHAS Scheme                             ,B06150,Supplies & Services           ,Grants and Subscriptions      ,DJ04,Subscriptions,475,714,1/1/2012,R,BM TRADER                     
2012 - JAN,,,Tvista network Manager Upgrade          ,CAIT30C,New Construction Conversion and Renovation,,2N,Capital main contractor payments,476,587,12/22/2011,C,DATA TECHNIQUES               
2012 - JAN,,,Civic Centre refurbishment              ,CF001AB,New Construction Conversion and Renovation,,B4,Site Works - Contractor,477,"2,867.45",12/22/2011,C,DATA TECHNIQUES               
2012 - JAN,,,Civic Centre refurbishment              ,CF001AB,New Construction Conversion and Renovation,,B4,Site Works - Contractor,478,944.45,11/28/2011,C,DATA TECHNIQUES               
2012 - JAN,,,Civic Centre refurbishment              ,CF001AB,New Construction Conversion and Renovation,,B4,Site Works - Contractor,479,"13,000.00",11/28/2011,C,DATA TECHNIQUES               
2012 - JAN,,,Civic Centre refurbishment              ,CF001AB,New Construction Conversion and Renovation,,B4,Site Works - Contractor,480,"15,480.00",1/5/2012,C,FORBO FLOORING UK LTD         
2012 - JAN,,,Civic Centre refurbishment              ,CF001AB,Vehicles Plant Equipment and Machinery,,D4,Specialist Furniture,481,659.4,1/5/2012,C,UNIQUE OFFICE SOLUTIONS LTD   
2012 - JAN,,,Civic Centre refurbishment              ,CF001AB,Vehicles Plant Equipment and Machinery,,D4,Specialist Furniture,482,"2,179.00",1/12/2012,C,UNIQUE OFFICE SOLUTIONS LTD   
2012 - JAN,,,Civic Centre refurbishment              ,CF001AB,Vehicles Plant Equipment and Machinery,,D4,Specialist Furniture,483,"1,064.70",1/12/2012,C,UNIQUE OFFICE SOLUTIONS LTD   
2012 - JAN,,,Civic Centre refurbishment              ,CF001AB,Vehicles Plant Equipment and Machinery,,D4,Specialist Furniture,484,"2,441.25",1/12/2012,C,UNIQUE OFFICE SOLUTIONS LTD   
2012 - JAN,,,Civic Centre refurbishment              ,CF001AB,Vehicles Plant Equipment and Machinery,,D4,Specialist Furniture,485,"6,860.70",1/12/2012,C,UNIQUE OFFICE SOLUTIONS LTD   
2012 - JAN,,,Civic Centre refurbishment              ,CF001AB,Vehicles Plant Equipment and Machinery,,D4,Specialist Furniture,486,714.08,1/12/2012,C,UNIQUE OFFICE SOLUTIONS LTD   
2012 - JAN,,,Civic Centre refurbishment              ,CF001AB,Vehicles Plant Equipment and Machinery,,D4,Specialist Furniture,487,"1,222.81",1/12/2012,C,UNIQUE OFFICE SOLUTIONS LTD   
2012 - JAN,,,Civic Centre refurbishment              ,CF001AB,Vehicles Plant Equipment and Machinery,,D4,Specialist Furniture,488,540.8,1/12/2012,C,UNIQUE OFFICE SOLUTIONS LTD   
2012 - JAN,,,Civic Centre refurbishment              ,CF001AB,Vehicles Plant Equipment and Machinery,,D4,Specialist Furniture,489,571.77,1/12/2012,C,UNIQUE OFFICE SOLUTIONS LTD   
2012 - JAN,,,Civic Centre refurbishment              ,CF001AB,Vehicles Plant Equipment and Machinery,,D4,Specialist Furniture,490,"1,065.82",1/12/2012,C,UNIQUE OFFICE SOLUTIONS LTD   
2012 - JAN,,,CHP Equipment                           ,CF001AE,New Construction Conversion and Renovation,,B4,Site Works - Contractor,491,600,12/22/2011,C,DATA TECHNIQUES               
2012 - JAN,,,Asbestos Risk Assessment Work           ,CF004SB,New Construction Conversion and Renovation,,B4,Site Works - Contractor,492,"1,333.50",12/21/2011,C,COBSEN-DAVIES ROOFING (LOND)LT
2012 - JAN,,,Asbestos Risk Assessment Work           ,CF004SB,New Construction Conversion and Renovation,,B4,Site Works - Contractor,493,"1,780.00",12/21/2011,C,COBSEN-DAVIES ROOFING (LOND)LT
2012 - JAN,,,Water Risk Assessment Works             ,CF004SC,New Construction Conversion and Renovation,,B4,Site Works - Contractor,494,767,11/14/2011,C,REDACTED
2012 - JAN,,,Water Risk Assessment Works             ,CF004SC,New Construction Conversion and Renovation,,B4,Site Works - Contractor,495,625,1/7/2012,C,REDACTED
2012 - JAN,,,Water Risk Assessment Works             ,CF004SC,New Construction Conversion and Renovation,,B4,Site Works - Contractor,496,"7,295.00",1/7/2012,C,REDACTED
2012 - JAN,,,Wim Lib/ Marlborough Hall-Lift          ,CF006SA,New Construction Conversion and Renovation,,B4,Site Works - Contractor,497,"1,750.00",11/29/2011,C,SSD LIMITED                   
2012 - JAN,,,Connect to N3 Netwrk NHS Spine          ,CT001EA,Other Capital Expenditure,,E3,Miscellaneous Capital Expenditure,498,"1,882.36",12/30/2011,C,PERVASIVE NETWORKS LTD        
2012 - JAN,,,Connect to N3 Netwrk NHS Spine          ,CT001EA,Other Capital Expenditure,,E3,Miscellaneous Capital Expenditure,499,"6,541.20",12/30/2011,C,PERVASIVE NETWORKS LTD        
2012 - JAN,,,Connect to N3 Netwrk NHS Spine          ,CT001EA,Other Capital Expenditure,,E3,Miscellaneous Capital Expenditure,500,"3,748.14",12/30/2011,C,PERVASIVE NETWORKS LTD        
2012 - JAN,,,Connect to N3 Netwrk NHS Spine          ,CT001EA,Other Capital Expenditure,,E3,Miscellaneous Capital Expenditure,501,"8,830.62",12/30/2011,C,PERVASIVE NETWORKS LTD        
2012 - JAN,,,CRM / Self Service                      ,CT002EA,Vehicles Plant Equipment and Machinery,,D3,Equipment,502,"3,609.00",1/24/2012,C,SCALABLE COMMUNICATIONS PLC   
2012 - JAN,,,IT Equipment                            ,CT006EA,Vehicles Plant Equipment and Machinery,,D3,Equipment,503,"23,888.23",11/10/2011,C,VIGLEN LIMITED                
2012 - JAN,,,IT Equipment                            ,CT006EA,Other Capital Expenditure,,E3,Miscellaneous Capital Expenditure,504,"2,905.00",11/10/2011,C,VIGLEN LIMITED                
2012 - JAN,,,IT Equipment                            ,CT006EA,Other Capital Expenditure,,E3,Miscellaneous Capital Expenditure,505,539.8,1/5/2012,C,MISCO                         
2012 - JAN,,,IT Equipment                            ,CT006EA,Other Capital Expenditure,,E3,Miscellaneous Capital Expenditure,506,"1,750.00",12/28/2011,C,SCALABLE COMMUNICATIONS PLC   
2012 - JAN,,,IT Equipment                            ,CT006EA,Other Capital Expenditure,,E3,Miscellaneous Capital Expenditure,507,539.8,1/12/2012,C,MISCO                         
2012 - JAN,,,Legal Case Management                   ,CT007EH,Vehicles Plant Equipment and Machinery,,D5,Software,508,"3,991.20",11/8/2011,C,LEXIS NEXIS                   
2012 - JAN,,,Black Diamond Switch Replacemt          ,CT007ET,Vehicles Plant Equipment and Machinery,,D3,Equipment,509,512,1/24/2012,C,SCALABLE COMMUNICATIONS PLC   
2012 - JAN,,,Black Diamond Switch Replacemt          ,CT007ET,Other Capital Expenditure,,E3,Miscellaneous Capital Expenditure,510,"1,800.00",12/20/2011,C,SYNETRIX LIMITED              
2012 - JAN,,,PABX                                    ,CT009EA,Other Capital Expenditure,,E3,Miscellaneous Capital Expenditure,511,"2,839.50",12/15/2011,C,NEC (UK) LTD                  
2012 - JAN,,,PABX                                    ,CT009EA,Other Capital Expenditure,,E3,Miscellaneous Capital Expenditure,512,"10,188.93",12/15/2011,C,NEC (UK) LTD                  
2012 - JAN,,,Stability Networks                      ,CT012ED,Other Capital Expenditure,,E3,Miscellaneous Capital Expenditure,513,"2,346.75",12/22/2011,C,METACOMPLIANCE.COM            
2012 - JAN,,,Stability Networks                      ,CT012ED,Other Capital Expenditure,,E3,Miscellaneous Capital Expenditure,514,"5,670.00",12/22/2011,C,METACOMPLIANCE.COM            
2012 - JAN,,,Stability Networks                      ,CT012ED,Other Capital Expenditure,,E3,Miscellaneous Capital Expenditure,515,"7,475.00",12/22/2011,C,METACOMPLIANCE.COM            
2012 - JAN,,,Stability Networks                      ,CT012ED,Other Capital Expenditure,,E3,Miscellaneous Capital Expenditure,516,"2,500.00",12/22/2011,C,METACOMPLIANCE.COM            
2012 - JAN,Central Services,Local Tax Collection,Local Taxation Services                 ,E02100,Supplies & Services           ,Services                      ,DF09,Miscellaneous Fees,517,"1,541.18",1/6/2012,R,INVESTING SOLUTIONS LTD       
2012 - JAN,Central Services,Local Tax Collection,Local Taxation Services                 ,E02100,Third Party Payments          ,Private Contractors           ,EH01,Miscellaneous Agency Services,518,911.63,12/1/2011,R,COMMERCIAL COLLECTION SERVICES
2012 - JAN,Central Services,Local Tax Collection,Local Taxation Services                 ,E02100,Support Services,Corporate Services,GB16,Legal,519,740,12/31/2011,R,INCASSO DEBT RECOVERY         
2012 - JAN,Central Services,Local Tax Collection,Local Taxation Services                 ,E02100,Support Services,Corporate Services,GB16,Legal,520,685,11/26/2011,R,INCASSO DEBT RECOVERY         
2012 - JAN,Central Services,Local Tax Collection,Local Taxation Services                 ,E02100,Support Services,Corporate Services,GB16,Legal,521,500,11/26/2011,R,INCASSO DEBT RECOVERY         
2012 - JAN,Central Services,Local Tax Collection,Local Taxation Bailiffs                 ,E02101,Supplies & Services           ,Services                      ,DF18,Bailiffs' fees,522,585,12/21/2011,R,GREASBY'S AUCTION ROOMS       
2012 - JAN,Central Services,Local Tax Collection,Local Taxation Bailiffs                 ,E02101,Supplies & Services           ,Services                      ,DF18,Bailiffs' fees,523,607.5,12/21/2011,R,GREASBY'S AUCTION ROOMS       
2012 - JAN,Housing Services,Housing Benefit Administration,Benefits Administration                 ,E02120,Employees                     ,Direct Employee Expenses      ,AA17,Agency Staff & Casual Paymts,524,789.36,12/21/2011,R,THE SYNERGY GROUP LIMITED     
2012 - JAN,Housing Services,Housing Benefit Administration,Benefits Administration                 ,E02120,Employees                     ,Direct Employee Expenses      ,AA17,Agency Staff & Casual Paymts,525,834.21,1/11/2012,R,THE SYNERGY GROUP LIMITED     
2012 - JAN,Housing Services,Housing Benefit Administration,Benefits Administration                 ,E02120,Employees                     ,Direct Employee Expenses      ,AA17,Agency Staff & Casual Paymts,526,592.02,1/4/2012,R,THE SYNERGY GROUP LIMITED     
2012 - JAN,Housing Services,Housing Benefit Administration,Benefits Administration                 ,E02120,Supplies & Services           ,Comms and Computing           ,DG09,Computer Purchases - Misc,527,"4,484.85",1/11/2012,R,CIVICA UK LIMITED             
2012 - JAN,Central Services,Fully rechargeable Overheads,Payroll                                 ,E02140,Supplies & Services           ,Services                      ,DF03,Consultants,528,"1,443.75",12/16/2011,R,LINDEN ALLIANCE LIMITED       
2012 - JAN,Central Services,Fully rechargeable Overheads,Payroll                                 ,E02140,Supplies & Services           ,Services                      ,DF03,Consultants,529,"1,443.75",12/23/2011,R,LINDEN ALLIANCE LIMITED       
2012 - JAN,Central Services,Fully rechargeable Overheads,Payroll                                 ,E02140,Supplies & Services           ,Comms and Computing           ,DG02,Software Licences,530,650,12/16/2011,R,TMP WORLDWIDE LTD             
2012 - JAN,Central Services,Fully rechargeable Overheads,AD Customer Services                    ,E02180,Employees                     ,Indirect Employee Expenses    ,AB57,External Training Costs,531,950,1/12/2012,R,ASH INFORMATION SYSTEMS LTD   
2012 - JAN,Central Services,Fully rechargeable Overheads,Post Room                               ,E02220,Supplies & Services           ,Prntng Stnry Gen Off Exp      ,DE30,General Office Expenses,532,640,12/22/2011,R,TRAVELCARE                    
2012 - JAN,Central Services,Fully rechargeable Overheads,Civic Centre                            ,E02222,Premises Related Expenditure  ,RepairsAlterations&MtceOfBldgs,BA06,Repairs & Maintenance General,533,"7,102.00",12/21/2011,R,THE SAVILLE GROUP LIMITED     
2012 - JAN,Central Services,Fully rechargeable Overheads,Civic Centre                            ,E02222,Premises Related Expenditure  ,Cleaning and Domestic Supplies,BH02,Window Cleaning,534,552.19,12/12/2011,R,DYNAMIQ CLEANING LIMITED      
2012 - JAN,Central Services,Fully rechargeable Overheads,Civic Centre                            ,E02222,Premises Related Expenditure  ,Cleaning and Domestic Supplies,BH02,Window Cleaning,535,552.19,1/9/2012,R,DYNAMIQ CLEANING LIMITED      
2012 - JAN,Central Services,Fully rechargeable Overheads,Civic Centre                            ,E02222,Premises Related Expenditure  ,Cleaning and Domestic Supplies,BH03,Cleaning Services,536,"3,089.34",1/9/2012,R,DYNAMIQ CLEANING LIMITED      
2012 - JAN,Central Services,Fully rechargeable Overheads,Civic Centre                            ,E02222,Premises Related Expenditure  ,Cleaning and Domestic Supplies,BH03,Cleaning Services,537,"3,089.34",12/12/2011,R,DYNAMIQ CLEANING LIMITED      
2012 - JAN,Central Services,Fully rechargeable Overheads,Civic Centre                            ,E02222,Premises Related Expenditure  ,Cleaning and Domestic Supplies,BH03,Cleaning Services,538,"1,451.44",12/12/2011,R,DYNAMIQ CLEANING LIMITED      
2012 - JAN,Central Services,Fully rechargeable Overheads,Civic Centre                            ,E02222,Premises Related Expenditure  ,Cleaning and Domestic Supplies,BH03,Cleaning Services,539,"9,019.98",12/12/2011,R,DYNAMIQ CLEANING LIMITED      
2012 - JAN,Central Services,Fully rechargeable Overheads,Civic Centre                            ,E02222,Premises Related Expenditure  ,Cleaning and Domestic Supplies,BH03,Cleaning Services,540,"1,461.29",12/12/2011,R,DYNAMIQ CLEANING LIMITED      
2012 - JAN,Central Services,Fully rechargeable Overheads,Civic Centre                            ,E02222,Premises Related Expenditure  ,Cleaning and Domestic Supplies,BH03,Cleaning Services,541,"1,461.29",1/9/2012,R,DYNAMIQ CLEANING LIMITED      
2012 - JAN,Central Services,Fully rechargeable Overheads,Civic Centre                            ,E02222,Premises Related Expenditure  ,Cleaning and Domestic Supplies,BH03,Cleaning Services,542,"9,019.98",1/9/2012,R,DYNAMIQ CLEANING LIMITED      
2012 - JAN,Central Services,Fully rechargeable Overheads,Civic Centre                            ,E02222,Premises Related Expenditure  ,Cleaning and Domestic Supplies,BH03,Cleaning Services,543,"1,451.44",1/9/2012,R,DYNAMIQ CLEANING LIMITED      
2012 - JAN,Central Services,Fully rechargeable Overheads,Civic Centre                            ,E02222,Premises Related Expenditure  ,Cleaning and Domestic Supplies,BH05,Roller Towel Service,544,655.04,10/1/2011,R,SUNLIGHT SERVICE GROUP LTD    
2012 - JAN,Central Services,Fully rechargeable Overheads,Civic Centre                            ,E02222,Third Party Payments          ,Private Contractors           ,EH02,Miscellaneous Hired Services,545,616.2,12/28/2011,R,GREENWORKS                    
2012 - JAN,Central Services,Fully rechargeable Overheads,Civic Centre                            ,E02222,Third Party Payments          ,Private Contractors           ,EH10,Contract Payments,546,"2,153.89",12/8/2011,R,ISS COLLECTIONS LTD           
2012 - JAN,Central Services,Fully rechargeable Overheads,Gifford House                           ,E02223,Premises Related Expenditure  ,Cleaning and Domestic Supplies,BH03,Cleaning Services,547,841.16,12/22/2011,R,DYNAMIQ CLEANING LIMITED      
2012 - JAN,Central Services,Fully rechargeable Overheads,Gifford House                           ,E02223,Premises Related Expenditure  ,Cleaning and Domestic Supplies,BH03,Cleaning Services,548,841.16,1/9/2012,R,DYNAMIQ CLEANING LIMITED      
2012 - JAN,Central Services,Fully rechargeable Overheads,Worsfold House                          ,E02224,Premises Related Expenditure  ,Cleaning and Domestic Supplies,BH03,Cleaning Services,549,"1,141.15",12/12/2011,R,DYNAMIQ CLEANING LIMITED      
2012 - JAN,Central Services,Fully rechargeable Overheads,Worsfold House                          ,E02224,Premises Related Expenditure  ,Cleaning and Domestic Supplies,BH03,Cleaning Services,550,"1,141.15",1/9/2012,R,DYNAMIQ CLEANING LIMITED      
2012 - JAN,Central Services,Fully rechargeable Overheads,Morden Park House                       ,E02229,Premises Related Expenditure  ,Cleaning and Domestic Supplies,BH03,Cleaning Services,551,"1,579.28",12/12/2011,R,DYNAMIQ CLEANING LIMITED      
2012 - JAN,Central Services,Fully rechargeable Overheads,Morden Park House                       ,E02229,Premises Related Expenditure  ,Cleaning and Domestic Supplies,BH03,Cleaning Services,552,"1,579.28",1/9/2012,R,DYNAMIQ CLEANING LIMITED      
2012 - JAN,Central Services,Fully rechargeable Overheads,Morden Park House                       ,E02229,Third Party Payments          ,Private Contractors           ,EH02,Miscellaneous Hired Services,553,520,12/28/2011,R,GREENWORKS                    
2012 - JAN,Central Services,Fully rechargeable Overheads,Corporate Services Buildings            ,E02240,Premises Related Expenditure  ,RepairsAlterations&MtceOfBldgs,BA01,DDM - General Building,554,540.16,12/19/2011,R,SALTASH ENTERPRISES LTD       
2012 - JAN,Central Services,Fully rechargeable Overheads,Corporate Services Buildings            ,E02240,Premises Related Expenditure  ,RepairsAlterations&MtceOfBldgs,BA01,DDM - General Building,555,"1,451.00",12/1/2011,R,AVON BARRIER COMPANY LTD      
2012 - JAN,Central Services,Fully rechargeable Overheads,Corporate Services Buildings            ,E02240,Premises Related Expenditure  ,RepairsAlterations&MtceOfBldgs,BA01,DDM - General Building,556,650,1/5/2012,R,KC DRAINS LTD                 
2012 - JAN,Central Services,Fully rechargeable Overheads,Corporate Services Buildings            ,E02240,Premises Related Expenditure  ,RepairsAlterations&MtceOfBldgs,BA01,DDM - General Building,557,"1,215.64",1/18/2012,R,SALTASH ENTERPRISES LTD       
2012 - JAN,Central Services,Fully rechargeable Overheads,Corporate Services Buildings            ,E02240,Premises Related Expenditure  ,RepairsAlterations&MtceOfBldgs,BA01,DDM - General Building,558,"2,193.00",12/29/2011,R,CHUBB FIRE LIMITED            
2012 - JAN,Central Services,Fully rechargeable Overheads,Corporate Services Buildings            ,E02240,Premises Related Expenditure  ,RepairsAlterations&MtceOfBldgs,BA05,DDM - Electrical,559,"3,567.22",12/22/2011,R,COFELY LIMITED                
2012 - JAN,Central Services,Fully rechargeable Overheads,Corporate Services Buildings            ,E02240,Premises Related Expenditure  ,RepairsAlterations&MtceOfBldgs,BA05,DDM - Electrical,560,613,12/23/2011,R,CHUBB FIRE LIMITED            
2012 - JAN,Central Services,Fully rechargeable Overheads,Corporate Services Buildings            ,E02240,Premises Related Expenditure  ,RepairsAlterations&MtceOfBldgs,BA05,DDM - Electrical,561,500,12/23/2011,R,CHUBB FIRE LIMITED            
2012 - JAN,Central Services,Fully rechargeable Overheads,Corporate Services Buildings            ,E02240,Premises Related Expenditure  ,Energy Costs                  ,BB03,Gas (incl. Butane),562,506.56,1/9/2012,R,KENT COUNTY COUNCIL           
2012 - JAN,Central Services,Fully rechargeable Overheads,Corporate Services Buildings            ,E02240,Premises Related Expenditure  ,Energy Costs                  ,BB03,Gas (incl. Butane),563,661.21,1/9/2012,R,KENT COUNTY COUNCIL           
2012 - JAN,Central Services,Fully rechargeable Overheads,Corporate Services Buildings            ,E02240,Premises Related Expenditure  ,Water Services                ,BE01,Use of Water (Metered),564,"1,551.30",1/3/2012,R,SUTTON AND EAST SURREY WATER  
2012 - JAN,Central Services,Fully rechargeable Overheads,Corporate Services Buildings            ,E02240,Premises Related Expenditure  ,Water Services                ,BE01,Use of Water (Metered),565,"1,876.02",1/3/2012,R,SUTTON AND EAST SURREY WATER  
2012 - JAN,Adult Social Care,Adult u65 Phys/Sensory Impair,C & H Buildings                         ,E02345,Premises Related Expenditure  ,RepairsAlterations&MtceOfBldgs,BA01,DDM - General Building,566,676.34,1/18/2012,R,SALTASH ENTERPRISES LTD       
2012 - JAN,Adult Social Care,Adult u65 Phys/Sensory Impair,C & H Buildings                         ,E02345,Premises Related Expenditure  ,RepairsAlterations&MtceOfBldgs,BA05,DDM - Electrical,567,525.75,12/22/2011,R,COFELY LIMITED                
2012 - JAN,Cultural Env Reg&Plan Services,Open Spaces,Leisure Buildings                       ,E02350,Premises Related Expenditure  ,RepairsAlterations&MtceOfBldgs,BA01,DDM - General Building,568,708.77,1/18/2012,R,SALTASH ENTERPRISES LTD       
2012 - JAN,Cultural Env Reg&Plan Services,Open Spaces,Leisure Buildings                       ,E02350,Premises Related Expenditure  ,RepairsAlterations&MtceOfBldgs,BA01,DDM - General Building,569,579.1,1/18/2012,R,SALTASH ENTERPRISES LTD       
2012 - JAN,Cultural Env Reg&Plan Services,Open Spaces,Leisure Buildings                       ,E02350,Premises Related Expenditure  ,RepairsAlterations&MtceOfBldgs,BA01,DDM - General Building,570,"1,442.40",1/18/2012,R,SALTASH ENTERPRISES LTD       
2012 - JAN,Cultural Env Reg&Plan Services,Open Spaces,Leisure Buildings                       ,E02350,Premises Related Expenditure  ,RepairsAlterations&MtceOfBldgs,BA03,DDM - Mechanical,571,517.36,10/28/2011,R,COFELY LIMITED                
2012 - JAN,Cultural Env Reg&Plan Services,Open Spaces,Leisure Buildings                       ,E02350,Premises Related Expenditure  ,RepairsAlterations&MtceOfBldgs,BA03,DDM - Mechanical,572,517.36,10/11/2011,R,COFELY LIMITED                
2012 - JAN,Cultural Env Reg&Plan Services,Open Spaces,Leisure Buildings                       ,E02350,Premises Related Expenditure  ,RepairsAlterations&MtceOfBldgs,BA03,DDM - Mechanical,573,517.36,12/22/2011,R,COFELY LIMITED                
2012 - JAN,Cultural Env Reg&Plan Services,Open Spaces,Leisure Buildings                       ,E02350,Premises Related Expenditure  ,RepairsAlterations&MtceOfBldgs,BA03,DDM - Mechanical,574,517.36,10/11/2011,R,COFELY LIMITED                
2012 - JAN,Cultural Env Reg&Plan Services,Open Spaces,Leisure Buildings                       ,E02350,Premises Related Expenditure  ,RepairsAlterations&MtceOfBldgs,BA03,DDM - Mechanical,575,517.36,10/11/2011,R,COFELY LIMITED                
2012 - JAN,Cultural Env Reg&Plan Services,Open Spaces,Leisure Buildings                       ,E02350,Premises Related Expenditure  ,RepairsAlterations&MtceOfBldgs,BA03,DDM - Mechanical,576,517.36,11/26/2011,R,COFELY LIMITED                
2012 - JAN,Cultural Env Reg&Plan Services,Open Spaces,Leisure Buildings                       ,E02350,Premises Related Expenditure  ,RepairsAlterations&MtceOfBldgs,BA05,DDM - Electrical,577,672.53,12/29/2011,R,COFELY LIMITED                
2012 - JAN,Central Services,Fully rechargeable Overheads,BUSINESS PARTNERS                       ,E04059,Employees                     ,Direct Employee Expenses      ,AA17,Agency Staff & Casual Paymts,578,"8,450.00",12/29/2011,R,REDACTED
2012 - JAN,Central Services,Fully rechargeable Overheads,Director of Corporate Services          ,E04060,Supplies & Services           ,Services                      ,DF11,Counsel's fees,579,"1,890.00",12/23/2011,R,REDACTED
2012 - JAN,Central Services,Fully rechargeable Overheads,Internal Audit&Service Review           ,E05101,Supplies & Services           ,Services                      ,DF58,Audit Fee,580,"8,100.00",11/25/2011,R,RSM TENON                     
2012 - JAN,Central Services,Fully rechargeable Overheads,Internal Audit&Service Review           ,E05101,Supplies & Services           ,Services                      ,DF58,Audit Fee,581,"4,500.00",11/25/2011,R,RSM TENON                     
2012 - JAN,Central Services,Fully rechargeable Overheads,Corporate Accountancy                   ,E06209,Supplies & Services           ,Prntng Stnry Gen Off Exp      ,DE02,General Publications,582,780,12/12/2011,R,CIPFA                         
2012 - JAN,Central Services,Fully rechargeable Overheads,Corporate Accountancy                   ,E06209,Supplies & Services           ,Prntng Stnry Gen Off Exp      ,DE02,General Publications,583,"1,196.00",12/6/2011,R,CIPFA                         
2012 - JAN,Central Services,Fully rechargeable Overheads,Corporate Accountancy                   ,E06209,Supplies & Services           ,Prntng Stnry Gen Off Exp      ,DE06,Internal Printing,584,"2,955.00",12/31/2011,R,CIVICA SERVICES LTD           
2012 - JAN,Central Services,Fully rechargeable Overheads,Corporate Accountancy                   ,E06209,Supplies & Services           ,Services                      ,DF58,Audit Fee,585,"42,113.00",11/4/2011,R,AUDIT COMMISSION              
2012 - JAN,Central Services,Fully rechargeable Overheads,Treasury & Insurance                    ,E06222,Employees                     ,Direct Employee Expenses      ,AA17,Agency Staff & Casual Paymts,586,"1,000.00",12/6/2011,R,RANDSTAD FIN & PROF LTD.      
2012 - JAN,Central Services,Fully rechargeable Overheads,Treasury & Insurance                    ,E06222,Employees                     ,Direct Employee Expenses      ,AA17,Agency Staff & Casual Paymts,587,"1,000.00",12/19/2011,R,RANDSTAD FIN & PROF LTD.      
2012 - JAN,Central Services,Fully rechargeable Overheads,Treasury & Insurance                    ,E06222,Employees                     ,Direct Employee Expenses      ,AA17,Agency Staff & Casual Paymts,588,"4,500.00",1/3/2012,R,RANDSTAD FIN & PROF LTD.      
2012 - JAN,Central Services,Fully rechargeable Overheads,Treasury & Insurance                    ,E06222,Employees                     ,Direct Employee Expenses      ,AA17,Agency Staff & Casual Paymts,589,"1,350.00",1/6/2012,R,RANDSTAD FIN & PROF LTD.      
2012 - JAN,Central Services,Fully rechargeable Overheads,Treasury & Insurance                    ,E06222,Employees                     ,Direct Employee Expenses      ,AA17,Agency Staff & Casual Paymts,590,"1,600.00",1/3/2012,R,RANDSTAD FIN & PROF LTD.      
2012 - JAN,Central Services,Fully rechargeable Overheads,Treasury & Insurance                    ,E06222,Employees                     ,Direct Employee Expenses      ,AA17,Agency Staff & Casual Paymts,591,800,1/12/2012,R,RANDSTAD FIN & PROF LTD.      
2012 - JAN,Central Services,Fully rechargeable Overheads,Treasury & Insurance                    ,E06222,Employees                     ,Direct Employee Expenses      ,AA17,Agency Staff & Casual Paymts,592,"1,800.00",1/12/2012,R,RANDSTAD FIN & PROF LTD.      
2012 - JAN,Central Services,Fully rechargeable Overheads,Treasury & Insurance                    ,E06222,Employees                     ,Direct Employee Expenses      ,AA17,Agency Staff & Casual Paymts,593,800,1/16/2012,R,RANDSTAD FIN & PROF LTD.      
2012 - JAN,Central Services,Fully rechargeable Overheads,Treasury & Insurance                    ,E06222,Employees                     ,Direct Employee Expenses      ,AA17,Agency Staff & Casual Paymts,594,"2,250.00",11/11/2011,R,RANDSTAD FIN & PROF LTD.      
2012 - JAN,Central Services,Fully rechargeable Overheads,Treasury & Insurance                    ,E06222,Employees                     ,Direct Employee Expenses      ,AA17,Agency Staff & Casual Paymts,595,"1,050.00",11/16/2011,R,RANDSTAD FIN & PROF LTD.      
2012 - JAN,Central Services,Fully rechargeable Overheads,Treasury & Insurance                    ,E06222,Employees                     ,Direct Employee Expenses      ,AA17,Agency Staff & Casual Paymts,596,"1,000.00",12/14/2011,R,RANDSTAD FIN & PROF LTD.      
2012 - JAN,Central Services,Fully rechargeable Overheads,Treasury & Insurance                    ,E06222,Employees                     ,Direct Employee Expenses      ,AA17,Agency Staff & Casual Paymts,597,"1,050.00",12/12/2011,R,RANDSTAD FIN & PROF LTD.      
2012 - JAN,Central Services,Fully rechargeable Overheads,Parking Cash Collect'n Contrct          ,E06225,Third Party Payments          ,Private Contractors           ,EH02,Miscellaneous Hired Services,598,"10,460.19",10/31/2011,R,BANKING AUTOMATION LTD        
2012 - JAN,Central Services,Fully rechargeable Overheads,Establishments' Cash Collect'n          ,E06226,Third Party Payments          ,Private Contractors           ,EH02,Miscellaneous Hired Services,599,"3,229.53",12/15/2011,R,LOOMIS UK LTD                 
2012 - JAN,Central Services,Fully rechargeable Overheads,Service Accountancy                     ,E06227,Employees                     ,Direct Employee Expenses      ,AA17,Agency Staff & Casual Paymts,600,"2,300.00",12/6/2011,R,RANDSTAD FIN & PROF LTD.      
2012 - JAN,Central Services,Fully rechargeable Overheads,Service Accountancy                     ,E06227,Employees                     ,Direct Employee Expenses      ,AA17,Agency Staff & Casual Paymts,601,"1,500.00",12/19/2011,R,RANDSTAD FIN & PROF LTD.      
2012 - JAN,Central Services,Fully rechargeable Overheads,Service Accountancy                     ,E06227,Employees                     ,Direct Employee Expenses      ,AA17,Agency Staff & Casual Paymts,602,"2,300.00",12/19/2011,R,RANDSTAD FIN & PROF LTD.      
2012 - JAN,Central Services,Fully rechargeable Overheads,Service Accountancy                     ,E06227,Employees                     ,Direct Employee Expenses      ,AA17,Agency Staff & Casual Paymts,603,"2,250.00",1/3/2012,R,RANDSTAD FIN & PROF LTD.      
2012 - JAN,Central Services,Fully rechargeable Overheads,Service Accountancy                     ,E06227,Employees                     ,Direct Employee Expenses      ,AA17,Agency Staff & Casual Paymts,604,"3,680.00",1/3/2012,R,RANDSTAD FIN & PROF LTD.      
2012 - JAN,Central Services,Fully rechargeable Overheads,Service Accountancy                     ,E06227,Employees                     ,Direct Employee Expenses      ,AA17,Agency Staff & Casual Paymts,605,"1,840.00",1/12/2012,R,RANDSTAD FIN & PROF LTD.      
2012 - JAN,Central Services,Fully rechargeable Overheads,Service Accountancy                     ,E06227,Employees                     ,Direct Employee Expenses      ,AA17,Agency Staff & Casual Paymts,606,"1,200.00",1/12/2012,R,RANDSTAD FIN & PROF LTD.      
2012 - JAN,Central Services,Fully rechargeable Overheads,Service Accountancy                     ,E06227,Employees                     ,Direct Employee Expenses      ,AA17,Agency Staff & Casual Paymts,607,"1,500.00",1/16/2012,R,RANDSTAD FIN & PROF LTD.      
2012 - JAN,Central Services,Fully rechargeable Overheads,Service Accountancy                     ,E06227,Employees                     ,Direct Employee Expenses      ,AA17,Agency Staff & Casual Paymts,608,"1,840.00",1/16/2012,R,RANDSTAD FIN & PROF LTD.      
2012 - JAN,Central Services,Fully rechargeable Overheads,Service Accountancy                     ,E06227,Employees                     ,Direct Employee Expenses      ,AA17,Agency Staff & Casual Paymts,609,"1,500.00",11/18/2011,R,RANDSTAD FIN & PROF LTD.      
2012 - JAN,Central Services,Fully rechargeable Overheads,Service Accountancy                     ,E06227,Employees                     ,Direct Employee Expenses      ,AA17,Agency Staff & Casual Paymts,610,"2,300.00",12/12/2011,R,RANDSTAD FIN & PROF LTD.      
2012 - JAN,Central Services,Fully rechargeable Overheads,Legal Shared Services                   ,E10278,Supplies & Services           ,Services                      ,DF03,Consultants,611,"9,379.97",1/16/2012,R,LEXIS NEXIS                   
2012 - JAN,Central Services,Fully rechargeable Overheads,AD CORPORATE GOVERNANCE               ,E10279,Supplies & Services           ,Prntng Stnry Gen Off Exp      ,DE03,Stationery,612,"1,226.56",9/27/2011,R,PSC SYSTEMS                   
2012 - JAN,Central Services,Fully rechargeable Overheads,Legal Services                          ,E10282,Supplies & Services           ,Services                      ,DF28,Court Fees,613,"3,800.00",12/13/2011,R,REDACTED
2012 - JAN,Central Services,Fully rechargeable Overheads,Legal Services                          ,E10282,Supplies & Services           ,Services                      ,DF28,Court Fees,614,"4,450.00",12/28/2011,R,REDACTED
2012 - JAN,Central Services,Fully rechargeable Overheads,Legal Services                          ,E10282,Supplies & Services           ,Services                      ,DF28,Court Fees,615,"2,440.93",12/21/2011,R,REDACTED
2012 - JAN,Central Services,Fully rechargeable Overheads,Legal Services                          ,E10282,Supplies & Services           ,Services                      ,DF28,Court Fees,616,"2,225.00",1/19/2012,R,REDACTED
2012 - JAN,Central Services,Fully rechargeable Overheads,Legal Services                          ,E10282,Supplies & Services           ,Services                      ,DF28,Court Fees,617,"2,225.00",1/5/2012,R,REDACTED
2012 - JAN,Central Services,Fully rechargeable Overheads,Legal Services                          ,E10282,Supplies & Services           ,Services                      ,DF28,Court Fees,618,"1,100.00",1/26/2012,R,REDACTED
2012 - JAN,Central Services,Fully rechargeable Overheads,Shared Legal Service                    ,E10288,Supplies & Services           ,Equip Furniture/Materials     ,DA09,Equip-Purchases,619,"1,393.85",11/17/2011,R,NEOPOST FINANCE LIMITED       
2012 - JAN,Central Services,Fully rechargeable Overheads,Shared Legal Service                    ,E10288,Supplies & Services           ,Equip Furniture/Materials     ,DA80,Books,620,663,12/21/2011,R,THOMSON REUTERS               
2012 - JAN,Central Services,Fully rechargeable Overheads,Shared Legal Service                    ,E10288,Supplies & Services           ,Services                      ,DF11,Counsel's fees,621,"1,251.58",11/30/2011,R,REDACTED
2012 - JAN,Central Services,Fully rechargeable Overheads,Shared Legal Service                    ,E10288,Supplies & Services           ,Services                      ,DF11,Counsel's fees,622,"1,440.00",12/19/2011,R,REDACTED
2012 - JAN,Central Services,Fully rechargeable Overheads,Shared Legal Service                    ,E10288,Supplies & Services           ,Services                      ,DF95,Services from Provider,623,523.34,1/19/2012,R,REDACTED
2012 - JAN,Central Services,Fully rechargeable Overheads,Shared Legal Service                    ,E10288,Supplies & Services           ,Comms and Computing           ,DG04,Postage - General,624,650,12/14/2011,R,ROYAL MAIL GROUP LTD          
2012 - JAN,Central Services,Fully rechargeable Overheads,Richmond Legal                          ,E10289,Supplies & Services           ,Services                      ,DF11,Counsel's fees,625,560,12/22/2011,R,REDACTED
2012 - JAN,Central Services,Fully rechargeable Overheads,Richmond Legal                          ,E10289,Supplies & Services           ,Services                      ,DF11,Counsel's fees,626,"1,438.24",11/14/2011,R,REDACTED
2012 - JAN,Central Services,Fully rechargeable Overheads,Richmond Legal                          ,E10289,Supplies & Services           ,Services                      ,DF11,Counsel's fees,627,"1,153.13",12/2/2011,R,REDACTED
2012 - JAN,Central Services,Fully rechargeable Overheads,Richmond Legal                          ,E10289,Supplies & Services           ,Services                      ,DF11,Counsel's fees,628,750,12/5/2011,R,REDACTED
2012 - JAN,Central Services,Fully rechargeable Overheads,Richmond Legal                          ,E10289,Supplies & Services           ,Services                      ,DF11,Counsel's fees,629,550,11/23/2011,R,REDACTED
2012 - JAN,Central Services,Fully rechargeable Overheads,Richmond Legal                          ,E10289,Supplies & Services           ,Services                      ,DF28,Court Fees,630,"2,210.00",1/10/2012,R,REDACTED
2012 - JAN,Central Services,Fully rechargeable Overheads,Richmond Legal                          ,E10289,Supplies & Services           ,Services                      ,DF95,Services from Provider,631,"3,000.00",10/31/2011,R,SHOOSMITHS SOLICITORS         
2012 - JAN,Central Services,Fully rechargeable Overheads,Richmond Legal                          ,E10289,Supplies & Services           ,Services                      ,DF95,Services from Provider,632,"1,595.90",9/14/2011,R,REDACTED
2012 - JAN,Central Services,Fully rechargeable Overheads,AD Business Improvement                 ,E14358,Employees                     ,Direct Employee Expenses      ,AA17,Agency Staff & Casual Paymts,633,"4,050.00",12/16/2011,R,PENNA PLC                     
2012 - JAN,Central Services,Fully rechargeable Overheads,AD Business Improvement                 ,E14358,Employees                     ,Direct Employee Expenses      ,AA17,Agency Staff & Casual Paymts,634,"7,250.00",12/31/2011,R,JW MANAGEMENT                 
2012 - JAN,Central Services,Fully rechargeable Overheads,AD Business Improvement                 ,E14358,Employees                     ,Direct Employee Expenses      ,AA17,Agency Staff & Casual Paymts,635,"4,500.00",12/16/2011,R,PENNA PLC                     
2012 - JAN,Central Services,Fully rechargeable Overheads,AD Business Improvement                 ,E14358,Employees                     ,Direct Employee Expenses      ,AA17,Agency Staff & Casual Paymts,636,"3,150.00",12/31/2011,R,PENNA PLC                     
2012 - JAN,Central Services,Fully rechargeable Overheads,BI IT Projects                          ,E14360,Employees                     ,Indirect Employee Expenses    ,AB57,External Training Costs,637,516,11/18/2011,R,LGG                           
2012 - JAN,Central Services,Fully rechargeable Overheads,BI IT Projects                          ,E14360,Employees                     ,Indirect Employee Expenses    ,AB57,External Training Costs,638,"1,050.00",1/24/2012,R,ALIGNED ASSETS                
2012 - JAN,Central Services,Fully rechargeable Overheads,BI IT Projects                          ,E14360,Employees                     ,Indirect Employee Expenses    ,AB57,External Training Costs,639,"1,260.00",11/28/2011,R,DOTTED EYES LTD               
2012 - JAN,Central Services,Fully rechargeable Overheads,BI IT Projects                          ,E14360,Supplies & Services           ,Services                      ,DF03,Consultants,640,"12,000.00",12/21/2011,R,BDO STOY HAYWARD LLP          
2012 - JAN,Central Services,Fully rechargeable Overheads,BI IT Projects                          ,E14360,Supplies & Services           ,Services                      ,DF03,Consultants,641,"7,150.00",1/1/2012,R,REDACTED
2012 - JAN,Central Services,Fully rechargeable Overheads,BI IT Projects                          ,E14360,Supplies & Services           ,Comms and Computing           ,DG50,Other IT Expenditure,642,"2,600.00",11/28/2011,R,DOTTED EYES LTD               
2012 - JAN,Central Services,Fully rechargeable Overheads,BI IT Projects                          ,E14360,Supplies & Services           ,Comms and Computing           ,DG50,Other IT Expenditure,643,"9,000.00",1/11/2012,R,CIVICA UK LIMITED             
2012 - JAN,Central Services,Fully rechargeable Overheads,Operations & Telecomms                  ,E14367,Premises Related Expenditure  ,RepairsAlterations&MtceOfBldgs,BA05,DDM - Electrical,644,"3,200.00",12/22/2011,R,DATA TECHNIQUES               
2012 - JAN,Central Services,Fully rechargeable Overheads,Operations & Telecomms                  ,E14367,Premises Related Expenditure  ,RepairsAlterations&MtceOfBldgs,BA05,DDM - Electrical,645,853.05,12/22/2011,R,DATA TECHNIQUES               
2012 - JAN,Central Services,Fully rechargeable Overheads,Operations & Telecomms                  ,E14367,Premises Related Expenditure  ,RepairsAlterations&MtceOfBldgs,BA05,DDM - Electrical,646,"1,000.00",12/22/2011,R,DATA TECHNIQUES               
2012 - JAN,Central Services,Fully rechargeable Overheads,Operations & Telecomms                  ,E14367,Premises Related Expenditure  ,RepairsAlterations&MtceOfBldgs,BA05,DDM - Electrical,647,"3,200.00",12/22/2011,R,DATA TECHNIQUES               
2012 - JAN,Central Services,Fully rechargeable Overheads,Operations & Telecomms                  ,E14367,Premises Related Expenditure  ,RepairsAlterations&MtceOfBldgs,BA05,DDM - Electrical,648,799.6,1/19/2012,R,INCOM TELECOMMUNICATIONS      
2012 - JAN,Central Services,Fully rechargeable Overheads,Operations & Telecomms                  ,E14367,Supplies & Services           ,Comms and Computing           ,DG54,Corporate Telephones,649,"1,035.00",11/29/2011,R,O2 (UK) LIMITED               
2012 - JAN,Central Services,Fully rechargeable Overheads,Operations & Telecomms                  ,E14367,Supplies & Services           ,Comms and Computing           ,DG54,Corporate Telephones,650,"1,729.72",1/2/2012,R,COLT TELECOMMUNICATIONS       
2012 - JAN,Central Services,Fully rechargeable Overheads,Operations & Telecomms                  ,E14367,Supplies & Services           ,Comms and Computing           ,DG54,Corporate Telephones,651,"1,035.00",12/29/2011,R,O2 (UK) LIMITED               
2012 - JAN,Central Services,Fully rechargeable Overheads,Operations & Telecomms                  ,E14367,Supplies & Services           ,Comms and Computing           ,DG54,Corporate Telephones,652,"5,134.67",12/3/2011,R,BRITISH TELECOM PLC           
2012 - JAN,Central Services,Fully rechargeable Overheads,Distributed Services                    ,E14368,Supplies & Services           ,Equip Furniture/Materials     ,DA64,Software Licenses - Distrib,653,"4,926.00",12/28/2011,R,HEWLETT PACKARD LTD           
2012 - JAN,Central Services,Fully rechargeable Overheads,Distributed Services                    ,E14368,Supplies & Services           ,Comms and Computing           ,DG63,Software Licences - Data,654,"22,176.00",12/23/2011,R,FORDWAY LTD                   
2012 - JAN,Central Services,Fully rechargeable Overheads,Distributed Services                    ,E14368,Supplies & Services           ,Comms and Computing           ,DG63,Software Licences - Data,655,"3,636.55",12/27/2011,R,BARRON MCCANN PAYMENTS LTD    
2012 - JAN,Central Services,Fully rechargeable Overheads,Distributed Services                    ,E14368,Supplies & Services           ,Comms and Computing           ,DG65,Application Licences,656,"10,900.00",12/22/2011,R,NET-CTRL                      
2012 - JAN,Central Services,Fully rechargeable Overheads,Distributed Services                    ,E14368,Supplies & Services           ,Comms and Computing           ,DG65,Application Licences,657,"1,495.00",12/22/2011,R,NET-CTRL                      
2012 - JAN,Central Services,Fully rechargeable Overheads,Distributed Services                    ,E14368,Supplies & Services           ,Comms and Computing           ,DG65,Application Licences,658,"1,130.00",12/15/2011,R,SOCITM LTD                    
2012 - JAN,Central Services,Fully rechargeable Overheads,Distributed Services                    ,E14368,Supplies & Services           ,Comms and Computing           ,DG65,Application Licences,659,"1,600.00",1/7/2012,R,CINTRA CORPORATION UK LTD     
2012 - JAN,,,St Ann's - Targeted Capital             ,CS001DA,Vehicles Plant Equipment and Machinery,,D3,Equipment,660,"2,000.00",1/3/2012,C,MM-ICT LIMITED                
2012 - JAN,,,Raynes Park Sports Pavilion             ,CS003CA,New Construction Conversion and Renovation,,B4,Site Works - Contractor,661,"52,000.00",12/16/2011,C,LENGUARD LIMITED              
2012 - JAN,,,Raynes Park Sports Pavilion             ,CS003CA,New Construction Conversion and Renovation,,B4,Site Works - Contractor,662,"118,712.20",12/2/2011,C,LENGUARD LIMITED              
2012 - JAN,,,St Mary's expansion                     ,CS008RA,New Construction Conversion and Renovation,,B1,Design and Supervision - Consultants Fee,663,"1,870.00",12/22/2011,C,ATKINS LIMITED                
2012 - JAN,,,St Mary's expansion                     ,CS008RA,New Construction Conversion and Renovation,,B1,Design and Supervision - Consultants Fee,664,"7,218.91",1/13/2012,C,ATKINS LIMITED                
2012 - JAN,,,St Mary's expansion                     ,CS008RA,New Construction Conversion and Renovation,,B2,Design and Supervision - Site Surveys,665,600,11/15/2011,C,REDACTED
2012 - JAN,,,St Mary's expansion                     ,CS008RA,New Construction Conversion and Renovation,,B4,Site Works - Contractor,666,676,12/30/2011,C,MOY CONSTRUCTION CO LTD       
2012 - JAN,,,Benedict expansion                      ,CS009AA,New Construction Conversion and Renovation,,B4,Site Works - Contractor,667,"65,674.14",1/4/2012,C,R DURTNELL & SONS LTD         
2012 - JAN,,,Benedict expansion                      ,CS009AA,New Construction Conversion and Renovation,,B5,Site Works - Suppliers,668,"4,418.99",12/13/2011,C,IZZYTEA LTD                   
2012 - JAN,,,Benedict expansion                      ,CS009AA,New Construction Conversion and Renovation,,B6,Site Works - Other Costs,669,"1,510.00",1/5/2012,C,EDE'S (U.K.) LTD              
2012 - JAN,,,Benedict expansion                      ,CS009AA,New Construction Conversion and Renovation,,B6,Site Works - Other Costs,670,"5,530.00",12/31/2011,C,EDE'S (U.K.) LTD              
2012 - JAN,,,Hollymount Permanent Expansion          ,CS011AA,New Construction Conversion and Renovation,,B4,Site Works - Contractor,671,"205,000.00",12/20/2011,C,R DURTNELL & SONS LTD         
2012 - JAN,,,Hollymount Permanent Expansion          ,CS011AA,New Construction Conversion and Renovation,,B6,Site Works - Other Costs,672,"4,250.00",12/23/2011,C,EDE'S (U.K.) LTD              
2012 - JAN,,,Joseph Hood Permanent Expansn           ,CS012AA,New Construction Conversion and Renovation,,B1,Design and Supervision - Consultants Fee,673,"28,731.00",1/6/2012,C,HAVERSTOCK ASSOCIATES LLP     
2012 - JAN,,,Joseph Hood Permanent Expansn           ,CS012AA,New Construction Conversion and Renovation,,B4,Site Works - Contractor,674,"108,000.00",12/15/2011,C,GEE CONSTRUCTION LTD          
2012 - JAN,,,Joseph Hood Permanent Expansn           ,CS012AA,New Construction Conversion and Renovation,,B4,Site Works - Contractor,675,"81,000.00",1/12/2012,C,GEE CONSTRUCTION LTD          
2012 - JAN,,,Garden PCP                              ,CS013AA,New Construction Conversion and Renovation,,B1,Design and Supervision - Consultants Fee,676,"35,137.38",11/25/2011,C,EC HARRIS LLP                 
2012 - JAN,,,Garden PCP                              ,CS013AA,New Construction Conversion and Renovation,,B1,Design and Supervision - Consultants Fee,677,"2,384.25",12/12/2011,C,EC HARRIS LLP                 
2012 - JAN,,,Garden PCP                              ,CS013AA,New Construction Conversion and Renovation,,B1,Design and Supervision - Consultants Fee,678,"39,174.09",12/12/2011,C,EC HARRIS LLP                 
2012 - JAN,,,Garden PCP                              ,CS013AA,New Construction Conversion and Renovation,,B2,Design and Supervision - Site Surveys,679,"1,500.00",11/30/2011,C,REDACTED
2012 - JAN,,,Links PCP                               ,CS014AA,New Construction Conversion and Renovation,,B1,Design and Supervision - Consultants Fee,680,"1,004.99",1/13/2012,C,EC HARRIS LLP                 
2012 - JAN,,,SS Peter & Paul PCP                     ,CS014RA,New Construction Conversion and Renovation,,B4,Site Works - Contractor,681,"97,000.00",1/16/2012,C,GEE CONSTRUCTION LTD          
2012 - JAN,,,Gorringe Park expansion                 ,CS018AB,New Construction Conversion and Renovation,,B1,Design and Supervision - Consultants Fee,682,"27,421.00",12/16/2011,C,HAVERSTOCK ASSOCIATES LLP     
2012 - JAN,,,Gorringe Park expansion                 ,CS018AB,New Construction Conversion and Renovation,,B2,Design and Supervision - Site Surveys,683,"1,050.00",11/14/2011,C,SCACOUSTICS                   
2012 - JAN,,,Gorringe Park expansion                 ,CS018AB,New Construction Conversion and Renovation,,B2,Design and Supervision - Site Surveys,684,"3,894.00",12/15/2011,C,MELRAY LIMITED                
2012 - JAN,,,Hillcross -  task works                 ,CS020AB,New Construction Conversion and Renovation,,B4,Site Works - Contractor,685,"5,884.18",12/23/2011,C,S & S BURNER SERVICES LTD     
2012 - JAN,,,Hillcross School Expansion              ,CS020AC,New Construction Conversion and Renovation,,B2,Design and Supervision - Site Surveys,686,"2,265.82",1/11/2012,C,REDACTED
2012 - JAN,,,Merton Abbey Temp Accomodation          ,CS022AC,New Construction Conversion and Renovation,,B1,Design and Supervision - Consultants Fee,687,"11,640.00",12/8/2011,C,ATKINS LIMITED                
2012 - JAN,,,Merton Abbey Temp Accomodation          ,CS022AC,New Construction Conversion and Renovation,,B1,Design and Supervision - Consultants Fee,688,"2,702.25",12/8/2011,C,ATKINS LIMITED                
2012 - JAN,,,Merton Abbey Temp Accomodation          ,CS022AC,New Construction Conversion and Renovation,,B4,Site Works - Contractor,689,"264,099.52",12/15/2011,C,PORTAKABIN LIMITED            
2012 - JAN,,,Cricket Gn-Imprved site access          ,CS026AB,New Construction Conversion and Renovation,,B4,Site Works - Contractor,690,"11,750.00",12/23/2011,C,TAG CONSTRUCTION (UK) LTD     
2012 - JAN,,,Cricket Gn-Imprved site access          ,CS026AB,New Construction Conversion and Renovation,,B4,Site Works - Contractor,691,"10,438.52",11/25/2011,C,STP SOLUTIONS                 
2012 - JAN,,,Cricket Gn-Imprved site access          ,CS026AB,New Construction Conversion and Renovation,,B4,Site Works - Contractor,692,"2,895.00",1/4/2012,C,STP SOLUTIONS                 
2012 - JAN,,,Cricket Gn-Imprved site access          ,CS026AB,New Construction Conversion and Renovation,,B4,Site Works - Contractor,693,"3,857.93",1/18/2012,C,STP SOLUTIONS                 
2012 - JAN,,,Dundonald expansion                     ,CS031AC,New Construction Conversion and Renovation,,B1,Design and Supervision - Consultants Fee,694,"3,150.00",12/22/2011,C,AREA LANDSCAPE ARCHITECTS     
2012 - JAN,,,Dundonald expansion                     ,CS031AC,New Construction Conversion and Renovation,,B1,Design and Supervision - Consultants Fee,695,"2,400.00",12/30/2011,C,SYNERGY CPC LLP               
2012 - JAN,,,Dundonald expansion                     ,CS031AC,New Construction Conversion and Renovation,,B2,Design and Supervision - Site Surveys,696,918,12/23/2011,C,CBG CONSULTANTS LTD           
2012 - JAN,,,St Anns - Primary                       ,CS032AB,New Construction Conversion and Renovation,,B4,Site Works - Contractor,697,680.34,1/1/2012,C,PORTAKABIN LIMITED            
2012 - JAN,,,Liberty Primary School                  ,CS036AA,New Construction Conversion and Renovation,,B1,Design and Supervision - Consultants Fee,698,"3,487.15",12/16/2011,C,EC HARRIS LLP                 
2012 - JAN,,,Liberty expansion                       ,CS036AB,New Construction Conversion and Renovation,,B1,Design and Supervision - Consultants Fee,699,"1,720.00",12/15/2011,C,METHOD CONSULTING LLP         
2012 - JAN,,,Liberty expansion                       ,CS036AB,New Construction Conversion and Renovation,,B1,Design and Supervision - Consultants Fee,700,"41,875.91",12/16/2011,C,ATKINS LIMITED                
2012 - JAN,,,Liberty expansion                       ,CS036AB,New Construction Conversion and Renovation,,B4,Site Works - Contractor,701,"13,918.27",12/5/2011,C,R DURTNELL & SONS LTD         
2012 - JAN,,,Liberty expansion                       ,CS036AB,New Construction Conversion and Renovation,,B6,Site Works - Other Costs,702,"2,620.00",12/12/2011,C,EDE'S (U.K.) LTD              
2012 - JAN,,,Lonesome IGC                            ,CS038AA,New Construction Conversion and Renovation,,B4,Site Works - Contractor,703,"39,400.00",1/3/2012,C,MANSELL CONSTRUCTION SERVICES 
2012 - JAN,,,Holy Trinity Expansion                  ,CS044RA,New Construction Conversion and Renovation,,B1,Design and Supervision - Consultants Fee,704,"79,707.66",1/10/2012,C,CURL LA TOURELLE ARCHITECTS   
2012 - JAN,,,Holy Trinity Expansion                  ,CS044RA,New Construction Conversion and Renovation,,B2,Design and Supervision - Site Surveys,705,525,1/17/2012,C,HALCROW GROUP LTD             
2012 - JAN,,,Holy Trinity Expansion                  ,CS044RA,New Construction Conversion and Renovation,,B4,Site Works - Contractor,706,"124,378.62",12/15/2011,C,R DURTNELL & SONS LTD         
2012 - JAN,,,Targeted Capital Fund (TCF)             ,CS047SA,New Construction Conversion and Renovation,,B4,Site Works - Contractor,707,"117,750.00",2/8/2010,C,EXTRASPACE (NI) LTD           
2012 - JAN,,,Singlegate expansion                    ,CS049AA,New Construction Conversion and Renovation,,B4,Site Works - Contractor,708,"153,000.00",12/9/2011,C,MANSELL CONSTRUCTION SERVICES 
2012 - JAN,,,Wimbledon Park expansion                ,CS050AA,New Construction Conversion and Renovation,,B1,Design and Supervision - Consultants Fee,709,"2,400.00",12/30/2011,C,SYNERGY CPC LLP               
2012 - JAN,,,Wimbledon Park expansion                ,CS050AA,New Construction Conversion and Renovation,,B1,Design and Supervision - Consultants Fee,710,"20,678.78",1/19/2012,C,CURL LA TOURELLE ARCHITECTS   
2012 - JAN,,,Wimbledon Park expansion                ,CS050AA,New Construction Conversion and Renovation,,B1,Design and Supervision - Consultants Fee,711,"1,566.36",1/16/2012,C,ATKINS LIMITED                
2012 - JAN,,,Wimbledon Park expansion                ,CS050AA,New Construction Conversion and Renovation,,B2,Design and Supervision - Site Surveys,712,"1,350.00",12/22/2011,C,MIDDLEMARCH ENVIRONMENTAL LTD 
2012 - JAN,,,Youth Centre Buildings                  ,CS062SA,New Construction Conversion and Renovation,,B4,Site Works - Contractor,713,"1,333.50",12/21/2011,C,COBSEN-DAVIES ROOFING (LOND)LT
2012 - JAN,,,Youth Centre Buildings                  ,CS062SA,New Construction Conversion and Renovation,,B4,Site Works - Contractor,714,"1,483.90",1/23/2012,C,PJ HARVEY & CO LTD            
2012 - JAN,,,Various schls-asbestos removal          ,CS080SA,New Construction Conversion and Renovation,,B4,Site Works - Contractor,715,"30,385.00",8/31/2011,C,EUROPEAN ASBESTOS SERVICES    
2012 - JAN,,,Contingency                             ,CS080SC,New Construction Conversion and Renovation,,B2,Design and Supervision - Site Surveys,716,"2,470.00",1/10/2012,C,SHARPS DRAINLOGIC LIMITED     
2012 - JAN,,,Youth&Comm centres reprovision          ,CS083SA,New Construction Conversion and Renovation,,B4,Site Works - Contractor,717,650,1/12/2012,C,AIR SURVEYS  LIMITED          
2012 - JAN,Childrens & Education Services,Schools Strategic Management,LSC                                     ,K03003,Supplies & Services           ,Services                      ,DF03,Consultants,718,"5,200.00",12/2/2011,R,END USER LTD                  
2012 - JAN,Childrens & Education Services,Schools Strategic Management,LSC                                     ,K03003,Supplies & Services           ,Services                      ,DF03,Consultants,719,"2,200.00",12/23/2011,R,END USER LTD                  
2012 - JAN,Childrens & Education Services,Assuring Access To Schools,PFI Unitary Charges                     ,K03023,Supplies & Services           ,Grants and Subscriptions      ,DJ03,External legal expenses,720,"2,911.50",11/30/2011,R,NABARRO                       
2012 - JAN,Childrens & Education Services,Assuring Access To Schools,PFI Unitary Charges                     ,K03023,Third Party Payments          ,Private Contractors           ,EH02,Miscellaneous Hired Services,721,"2,770.00",12/23/2011,R,NEWSCHOOLS (MERTON) LIMITED   
2012 - JAN,Childrens & Education Services,Pre-School Ed (inc Nursery),Provider Support                        ,K05078,Supplies & Services           ,Comms and Computing           ,DG02,Software Licences,722,"1,032.50",1/3/2012,R,CACI LIMITED                  
2012 - JAN,Childrens & Education Services,Supporting SEN,Expanded Pupil Referral Unit            ,K05099,Third Party Payments          ,Private Contractors           ,EH01,Miscellaneous Agency Services,723,"5,327.97",12/29/2011,R,SW LONDON ST GEORGES NHS TRUST
2012 - JAN,Childrens & Education Services,Pre-School Ed (inc Nursery),GSSG Workforce Development              ,K05111,Employees                     ,Indirect Employee Expenses    ,AB56,Internal Training Costs,724,700,1/9/2012,R,REDACTED
2012 - JAN,Childrens & Education Services,Pre-School Ed (inc Nursery),GSSG Central Administration             ,K05400,Employees                     ,Indirect Employee Expenses    ,AB57,External Training Costs,725,"10,760.00",1/4/2012,R,KINGSTON UNIVERSITY           
2012 - JAN,Childrens & Education Services,Pre-School Ed (inc Nursery),GSSG Central Administration             ,K05400,Supplies & Services           ,Equip Furniture/Materials     ,DA09,Equip-Purchases,726,857.5,1/3/2012,R,TOTAL ID                      
2012 - JAN,Childrens & Education Services,Pre-School Ed (inc Nursery),Home Grown Graduate Incentive           ,K05402,Supplies & Services           ,Grants and Subscriptions      ,DJ01,Grants,727,"3,000.00",1/18/2012,R,LA PETITE FLEUR PRE-SCHOOL    
2012 - JAN,Childrens & Education Services,Pre-School Ed (inc Nursery),Home Grown Graduate Incentive           ,K05402,Supplies & Services           ,Grants and Subscriptions      ,DJ01,Grants,728,"3,000.00",1/18/2012,R,COLLIERS WOOD VILLAGE DAY NUR.
2012 - JAN,Childrens & Education Services,Pre-School Ed (inc Nursery),Home Grown Graduate Incentive           ,K05402,Supplies & Services           ,Grants and Subscriptions      ,DJ01,Grants,729,"5,000.00",1/18/2012,R,COLLIERS WOOD VILLAGE DAY NUR.
2012 - JAN,Childrens & Education Services,Pre-School Ed (inc Nursery),Nursery Grant payment-2 yr old          ,K05408,Supplies & Services           ,Grants and Subscriptions      ,DJ01,Grants,730,"1,008.00",1/5/2012,R,ARK AT SHERWOOD LTD           
2012 - JAN,Childrens & Education Services,Pre-School Ed (inc Nursery),Nursery Grant payment-2 yr old          ,K05408,Supplies & Services           ,Grants and Subscriptions      ,DJ01,Grants,731,"1,008.00",1/5/2012,R,ARK AT SHERWOOD LTD           
2012 - JAN,Childrens & Education Services,Pre-School Ed (inc Nursery),Nursery Grant payment-2 yr old          ,K05408,Supplies & Services           ,Grants and Subscriptions      ,DJ01,Grants,732,"1,008.00",1/5/2012,R,ARK AT SHERWOOD LTD           
2012 - JAN,Childrens & Education Services,Pre-School Ed (inc Nursery),Nursery Grant payment-2 yr old          ,K05408,Supplies & Services           ,Grants and Subscriptions      ,DJ01,Grants,733,696,1/6/2012,R,HOLY CROSS PLAYGROUP          
2012 - JAN,Childrens & Education Services,Pre-School Ed (inc Nursery),Nursery Grant payment-2 yr old          ,K05408,Supplies & Services           ,Grants and Subscriptions      ,DJ01,Grants,734,"1,152.00",1/6/2012,R,CHERUBS @ ST THOMAS           
2012 - JAN,Childrens & Education Services,Pre-School Ed (inc Nursery),Nursery Grant payment-2 yr old          ,K05408,Supplies & Services           ,Grants and Subscriptions      ,DJ01,Grants,735,696,1/6/2012,R,HOLY CROSS PLAYGROUP          
2012 - JAN,Childrens & Education Services,Pre-School Ed (inc Nursery),Nursery Grant payment-2 yr old          ,K05408,Supplies & Services           ,Grants and Subscriptions      ,DJ01,Grants,736,"1,044.00",1/6/2012,R,CHERUBS @ NEWMINSTER          
2012 - JAN,Childrens & Education Services,Pre-School Ed (inc Nursery),Nursery Grant payment-2 yr old          ,K05408,Supplies & Services           ,Grants and Subscriptions      ,DJ01,Grants,737,"1,044.00",1/6/2012,R,CHERUBS @ NEWMINSTER          
2012 - JAN,Childrens & Education Services,Pre-School Ed (inc Nursery),Nursery Grant payment-2 yr old          ,K05408,Supplies & Services           ,Grants and Subscriptions      ,DJ01,Grants,738,"1,152.00",1/6/2012,R,CHERUBS @ ST THOMAS           
2012 - JAN,Childrens & Education Services,Pre-School Ed (inc Nursery),Nursery Grant payment-2 yr old          ,K05408,Supplies & Services           ,Grants and Subscriptions      ,DJ01,Grants,739,"1,152.00",1/6/2012,R,COLLIERS WOOD VILLAGE DAY NUR.
2012 - JAN,Childrens & Education Services,Pre-School Ed (inc Nursery),Nursery Grant payment-2 yr old          ,K05408,Supplies & Services           ,Grants and Subscriptions      ,DJ01,Grants,740,"1,044.00",1/6/2012,R,CHERUBS @ NEWMINSTER          
2012 - JAN,Childrens & Education Services,Pre-School Ed (inc Nursery),Nursery Grant payment-2 yr old          ,K05408,Supplies & Services           ,Grants and Subscriptions      ,DJ01,Grants,741,"1,152.00",1/10/2012,R,WILLOWS PRE-SCHOOL            
2012 - JAN,Childrens & Education Services,Pre-School Ed (inc Nursery),Nursery Grant payment-2 yr old          ,K05408,Supplies & Services           ,Grants and Subscriptions      ,DJ01,Grants,742,"1,152.00",1/9/2012,R,LA PETITE FLEUR PRE-SCHOOL    
2012 - JAN,Childrens & Education Services,Pre-School Ed (inc Nursery),Nursery Grant payment-2 yr old          ,K05408,Supplies & Services           ,Grants and Subscriptions      ,DJ01,Grants,743,"1,152.00",1/9/2012,R,LA PETITE FLEUR PRE-SCHOOL    
2012 - JAN,Childrens & Education Services,Pre-School Ed (inc Nursery),Nursery Grant payment-2 yr old          ,K05408,Supplies & Services           ,Grants and Subscriptions      ,DJ01,Grants,744,"1,152.00",1/10/2012,R,WILLOWS PRE-SCHOOL            
2012 - JAN,Childrens & Education Services,Pre-School Ed (inc Nursery),Nursery Grant payment-2 yr old          ,K05408,Supplies & Services           ,Grants and Subscriptions      ,DJ01,Grants,745,"1,152.00",1/10/2012,R,WILLOWS PRE-SCHOOL            
2012 - JAN,Childrens & Education Services,Pre-School Ed (inc Nursery),Nursery Grant payment-2 yr old          ,K05408,Supplies & Services           ,Grants and Subscriptions      ,DJ01,Grants,746,"1,152.00",1/9/2012,R,LA PETITE FLEUR PRE-SCHOOL    
2012 - JAN,Childrens & Education Services,Pre-School Ed (inc Nursery),Nursery Grant payment-2 yr old          ,K05408,Supplies & Services           ,Grants and Subscriptions      ,DJ01,Grants,747,"1,152.00",1/9/2012,R,LA PETITE FLEUR PRE-SCHOOL    
2012 - JAN,Childrens & Education Services,Pre-School Ed (inc Nursery),Nursery Grant payment-2 yr old          ,K05408,Supplies & Services           ,Grants and Subscriptions      ,DJ01,Grants,748,"1,152.00",1/9/2012,R,IVY GARDENS CHILDREN' S CENTRE
2012 - JAN,Childrens & Education Services,Pre-School Ed (inc Nursery),Nursery Grant payment-2 yr old          ,K05408,Supplies & Services           ,Grants and Subscriptions      ,DJ01,Grants,749,"1,152.00",1/9/2012,R,FIRST LITTLE STEPS            
2012 - JAN,Childrens & Education Services,Pre-School Ed (inc Nursery),Nursery Grant payment-2 yr old          ,K05408,Supplies & Services           ,Grants and Subscriptions      ,DJ01,Grants,750,"1,152.00",1/9/2012,R,LA PETITE FLEUR PRE-SCHOOL    
2012 - JAN,Childrens & Education Services,Pre-School Ed (inc Nursery),Nursery Grant payment-2 yr old          ,K05408,Supplies & Services           ,Grants and Subscriptions      ,DJ01,Grants,751,"1,152.00",1/9/2012,R,IVY GARDENS CHILDREN' S CENTRE
2012 - JAN,Childrens & Education Services,Pre-School Ed (inc Nursery),Nursery Grant payment-2 yr old          ,K05408,Supplies & Services           ,Grants and Subscriptions      ,DJ01,Grants,752,"1,152.00",1/9/2012,R,LEAPFROG DAY NURSERIES        
2012 - JAN,Childrens & Education Services,Pre-School Ed (inc Nursery),Nursery Grant payment-2 yr old          ,K05408,Supplies & Services           ,Grants and Subscriptions      ,DJ01,Grants,753,"1,152.00",1/9/2012,R,LA PETITE FLEUR PRE-SCHOOL    
2012 - JAN,Childrens & Education Services,Pre-School Ed (inc Nursery),Nursery Grant payment-2 yr old          ,K05408,Supplies & Services           ,Grants and Subscriptions      ,DJ01,Grants,754,"1,152.00",1/9/2012,R,FIRST LITTLE STEPS            
2012 - JAN,Childrens & Education Services,Pre-School Ed (inc Nursery),Nursery Grant payment-2 yr old          ,K05408,Supplies & Services           ,Grants and Subscriptions      ,DJ01,Grants,755,"1,044.00",1/9/2012,R,IVY GARDENS CHILDREN' S CENTRE
2012 - JAN,Childrens & Education Services,Pre-School Ed (inc Nursery),Nursery Grant payment-2 yr old          ,K05408,Supplies & Services           ,Grants and Subscriptions      ,DJ01,Grants,756,"1,152.00",1/9/2012,R,LA PETITE FLEUR PRE-SCHOOL    
2012 - JAN,Childrens & Education Services,Pre-School Ed (inc Nursery),Nursery Grant payment-2 yr old          ,K05408,Supplies & Services           ,Grants and Subscriptions      ,DJ01,Grants,757,"1,200.00",1/12/2012,R,MINI TREASURES DAY NURSERY    
2012 - JAN,Childrens & Education Services,Pre-School Ed (inc Nursery),Nursery Grant payment-2 yr old          ,K05408,Supplies & Services           ,Grants and Subscriptions      ,DJ01,Grants,758,"1,152.00",1/12/2012,R,HASLEMERE HOUSE DAY NURSERY   
2012 - JAN,Childrens & Education Services,Pre-School Ed (inc Nursery),Nursery Grant payment-2 yr old          ,K05408,Supplies & Services           ,Grants and Subscriptions      ,DJ01,Grants,759,549.12,1/12/2012,R,SUTTON OPPORTUNITY PRE-SCHOOL 
2012 - JAN,Childrens & Education Services,Pre-School Ed (inc Nursery),Nursery Grant payment-2 yr old          ,K05408,Supplies & Services           ,Grants and Subscriptions      ,DJ01,Grants,760,"1,152.00",1/12/2012,R,THE GRANGE DAY NURSERY        
2012 - JAN,Childrens & Education Services,Pre-School Ed (inc Nursery),Nursery Grant payment-2 yr old          ,K05408,Supplies & Services           ,Grants and Subscriptions      ,DJ01,Grants,761,"1,113.60",1/12/2012,R,HASLEMERE HOUSE DAY NURSERY   
2012 - JAN,Childrens & Education Services,Pre-School Ed (inc Nursery),Nursery Grant payment-2 yr old          ,K05408,Supplies & Services           ,Grants and Subscriptions      ,DJ01,Grants,762,"1,152.00",1/12/2012,R,MINI TREASURES DAY NURSERY    
2012 - JAN,Childrens & Education Services,Pre-School Ed (inc Nursery),Nursery Grant payment-2 yr old          ,K05408,Supplies & Services           ,Grants and Subscriptions      ,DJ01,Grants,763,"1,152.00",1/12/2012,R,SUTTON OPPORTUNITY PRE-SCHOOL 
2012 - JAN,Childrens & Education Services,Pre-School Ed (inc Nursery),Nursery Grant payment-2 yr old          ,K05408,Supplies & Services           ,Grants and Subscriptions      ,DJ01,Grants,764,"1,152.00",1/12/2012,R,THE GRANGE DAY NURSERY        
2012 - JAN,Childrens & Education Services,Pre-School Ed (inc Nursery),Nursery Grant payment-2 yr old          ,K05408,Supplies & Services           ,Grants and Subscriptions      ,DJ01,Grants,765,"1,152.00",1/12/2012,R,THE GRANGE DAY NURSERY        
2012 - JAN,Childrens & Education Services,Pre-School Ed (inc Nursery),Nursery Grant payment-2 yr old          ,K05408,Supplies & Services           ,Grants and Subscriptions      ,DJ01,Grants,766,"1,152.00",1/12/2012,R,THE GRANGE DAY NURSERY        
2012 - JAN,Childrens & Education Services,Pre-School Ed (inc Nursery),Nursery Grant payment-2 yr old          ,K05408,Supplies & Services           ,Grants and Subscriptions      ,DJ01,Grants,767,615.6,1/12/2012,R,MMI PRE SCHOOL                
2012 - JAN,Childrens & Education Services,Pre-School Ed (inc Nursery),Nursery Grant payment-2 yr old          ,K05408,Supplies & Services           ,Grants and Subscriptions      ,DJ01,Grants,768,"1,152.00",1/12/2012,R,MINI TREASURES DAY NURSERY    
2012 - JAN,Childrens & Education Services,Pre-School Ed (inc Nursery),Nursery Grant payment-2 yr old          ,K05408,Supplies & Services           ,Grants and Subscriptions      ,DJ01,Grants,769,"1,152.00",1/12/2012,R,THE GRANGE DAY NURSERY        
2012 - JAN,Childrens & Education Services,Pre-School Ed (inc Nursery),Nursery Grant payment-2 yr old          ,K05408,Supplies & Services           ,Grants and Subscriptions      ,DJ01,Grants,770,"1,152.00",1/12/2012,R,THE GRANGE DAY NURSERY        
2012 - JAN,Childrens & Education Services,Pre-School Ed (inc Nursery),Nursery Grant payment-2 yr old          ,K05408,Supplies & Services           ,Grants and Subscriptions      ,DJ01,Grants,771,"1,152.00",1/12/2012,R,MINI TREASURES DAY NURSERY    
2012 - JAN,Childrens & Education Services,Pre-School Ed (inc Nursery),Nursery Grant payment-2 yr old          ,K05408,Supplies & Services           ,Grants and Subscriptions      ,DJ01,Grants,772,"1,134.00",1/12/2012,R,REDACTED
2012 - JAN,Childrens & Education Services,Pre-School Ed (inc Nursery),Nursery Grant payment-2 yr old          ,K05408,Supplies & Services           ,Grants and Subscriptions      ,DJ01,Grants,773,"1,134.00",1/12/2012,R,REDACTED
2012 - JAN,Childrens & Education Services,Pre-School Ed (inc Nursery),Nursery Grant payment-2 yr old          ,K05408,Supplies & Services           ,Grants and Subscriptions      ,DJ01,Grants,774,"1,152.00",1/12/2012,R,THE GRANGE DAY NURSERY        
2012 - JAN,Childrens & Education Services,Pre-School Ed (inc Nursery),Nursery Grant payment-2 yr old          ,K05408,Supplies & Services           ,Grants and Subscriptions      ,DJ01,Grants,775,"1,152.00",1/12/2012,R,THE GRANGE DAY NURSERY        
2012 - JAN,Childrens & Education Services,Pre-School Ed (inc Nursery),Nursery Grant payment-2 yr old          ,K05408,Supplies & Services           ,Grants and Subscriptions      ,DJ01,Grants,776,"1,152.00",1/12/2012,R,ROSEHILL NURSERY              
2012 - JAN,Childrens & Education Services,Pre-School Ed (inc Nursery),Nursery Grant payment-2 yr old          ,K05408,Supplies & Services           ,Grants and Subscriptions      ,DJ01,Grants,777,"1,044.00",1/12/2012,R,REDACTED
2012 - JAN,Childrens & Education Services,Pre-School Ed (inc Nursery),Nursery Grant payment-2 yr old          ,K05408,Supplies & Services           ,Grants and Subscriptions      ,DJ01,Grants,778,"1,152.00",1/12/2012,R,THE GRANGE DAY NURSERY        
2012 - JAN,Childrens & Education Services,Pre-School Ed (inc Nursery),Nursery Grant payment-2 yr old          ,K05408,Supplies & Services           ,Grants and Subscriptions      ,DJ01,Grants,779,"1,134.00",1/12/2012,R,REDACTED
2012 - JAN,Childrens & Education Services,Pre-School Ed (inc Nursery),Nursery Grant payment-2 yr old          ,K05408,Supplies & Services           ,Grants and Subscriptions      ,DJ01,Grants,780,"1,134.00",1/12/2012,R,REDACTED
2012 - JAN,Childrens & Education Services,Pre-School Ed (inc Nursery),Nursery Grant payment-2 yr old          ,K05408,Supplies & Services           ,Grants and Subscriptions      ,DJ01,Grants,781,"1,152.00",1/12/2012,R,MINI TREASURES DAY NURSERY    
2012 - JAN,Childrens & Education Services,Pre-School Ed (inc Nursery),Nursery Grant payment-2 yr old          ,K05408,Supplies & Services           ,Grants and Subscriptions      ,DJ01,Grants,782,"1,152.00",1/12/2012,R,HASLEMERE HOUSE DAY NURSERY   
2012 - JAN,Childrens & Education Services,Pre-School Ed (inc Nursery),Nursery Grant payment-2 yr old          ,K05408,Supplies & Services           ,Grants and Subscriptions      ,DJ01,Grants,783,"1,152.00",1/13/2012,R,HASLEMERE HOUSE DAY NURSERY   
2012 - JAN,Childrens & Education Services,Pre-School Ed (inc Nursery),Nursery Grant payment-2 yr old          ,K05408,Supplies & Services           ,Grants and Subscriptions      ,DJ01,Grants,784,"1,080.00",1/23/2012,R,CHERUBS @ ST THOMAS           
2012 - JAN,Childrens & Education Services,Pre-School Ed (inc Nursery),Nursery Grant payment-2 yr old          ,K05408,Supplies & Services           ,Grants and Subscriptions      ,DJ01,Grants,785,990,1/23/2012,R,BOW LANE PRE-SCHOOL           
2012 - JAN,Childrens & Education Services,Pre-School Ed (inc Nursery),Nursery Grant payment-2 yr old          ,K05408,Supplies & Services           ,Grants and Subscriptions      ,DJ01,Grants,786,"1,134.00",1/23/2012,R,REDACTED
2012 - JAN,Childrens & Education Services,Pre-School Ed (inc Nursery),Nursery Grant payment-2 yr old          ,K05408,Supplies & Services           ,Grants and Subscriptions      ,DJ01,Grants,787,"1,044.00",1/23/2012,R,CHERUBS @ NEWMINSTER          
2012 - JAN,Childrens & Education Services,Pre-School Ed (inc Nursery),Nursery Grant payment-2 yr old          ,K05408,Supplies & Services           ,Grants and Subscriptions      ,DJ01,Grants,788,990,1/23/2012,R,IVY GARDENS CHILDREN' S CENTRE
2012 - JAN,Childrens & Education Services,Pre-School Ed (inc Nursery),Nursery Grant payment-2 yr old          ,K05408,Supplies & Services           ,Grants and Subscriptions      ,DJ01,Grants,789,921.6,1/26/2012,R,BUMBLE BEES'S DAY NURSERY-COCC
2012 - JAN,Childrens & Education Services,Pre-School Ed (inc Nursery),Nursery Grant payment-2 yr old          ,K05408,Supplies & Services           ,Grants and Subscriptions      ,DJ01,Grants,790,921.6,1/26/2012,R,BUMBLE BEES'S DAY NURSERY-COCC
2012 - JAN,Childrens & Education Services,Pre-School Ed (inc Nursery),Nursery Grant payment-2 yr old          ,K05408,Supplies & Services           ,Grants and Subscriptions      ,DJ01,Grants,791,921.6,1/26/2012,R,BUMBLE BEES'S DAY NURSERY-COCC
2012 - JAN,Childrens & Education Services,Pre-School Ed (inc Nursery),Nursery Grant payment-2 yr old          ,K05408,Supplies & Services           ,Grants and Subscriptions      ,DJ01,Grants,792,921.6,1/26/2012,R,BUMBLE BEES'S DAY NURSERY-COCC
2012 - JAN,Childrens & Education Services,Pre-School Ed (inc Nursery),Lavender Children's Centre              ,K05410,Premises Related Expenditure  ,Energy Costs                  ,BB02,Electricity,793,513.32,1/9/2012,R,KENT COUNTY COUNCIL           
2012 - JAN,Childrens & Education Services,Pre-School Ed (inc Nursery),Mitcham MAT (Premises)                  ,K05412,Premises Related Expenditure  ,Cleaning and Domestic Supplies,BH03,Cleaning Services,794,"1,128.40",12/18/2011,R,RE MCS CLEANING SERVICES LTD  
2012 - JAN,Childrens & Education Services,Pre-School Ed (inc Nursery),Lavender CC Non Childcare               ,K05415,Premises Related Expenditure  ,Energy Costs                  ,BB03,Gas (incl. Butane),795,511.3,1/9/2012,R,KENT COUNTY COUNCIL           
2012 - JAN,Childrens & Education Services,Pre-School Ed (inc Nursery),Lavender CC Non Childcare               ,K05415,Premises Related Expenditure  ,Cleaning and Domestic Supplies,BH03,Cleaning Services,796,"1,177.41",1/5/2012,R,LLOYDS TSB COMMERCIAL FINANCE 
2012 - JAN,Childrens & Education Services,Pre-School Ed (inc Nursery),Lavender CC Non Childcare               ,K05415,Supplies & Services           ,Equip Furniture/Materials     ,DA04,Materials,797,553,11/18/2011,R,COMMUNITY PRODUCTS (UK) LTD.  
2012 - JAN,Childrens & Education Services,Pre-School Ed (inc Nursery),E.Years-Intergenerational Cntr          ,K05416,Employees                     ,Direct Employee Expenses      ,AA74,Public Duties (AP),798,"1,570.24",12/13/2011,R,ST MARK'S C OF E ACADEMY      
2012 - JAN,Childrens & Education Services,Pre-School Ed (inc Nursery),E.Years-Intergenerational Cntr          ,K05416,Premises Related Expenditure  ,Cleaning and Domestic Supplies,BH03,Cleaning Services,799,844.69,12/25/2011,R,JULIUS RUTHERFOORD & CO LTD   
2012 - JAN,Childrens & Education Services,Pre-School Ed (inc Nursery),E.Years-Intergenerational Cntr          ,K05416,Supplies & Services           ,Services                      ,DF30,Activities Programme,800,"1,600.00",1/13/2012,R,B. Y. INNOVATIONS LTD         
2012 - JAN,Childrens & Education Services,Youth Service,Wyvern Yth Clb  (ArrasAve)              ,K06064,Premises Related Expenditure  ,Energy Costs                  ,BB03,Gas (incl. Butane),801,"2,554.67",11/8/2011,R,KENT COUNTY COUNCIL           
2012 - JAN,Childrens & Education Services,Youth Service,Wyvern Yth Clb  (ArrasAve)              ,K06064,Premises Related Expenditure  ,Energy Costs                  ,BB03,Gas (incl. Butane),802,595.21,9/21/2011,R,KENT COUNTY COUNCIL           
2012 - JAN,Childrens & Education Services,Youth Service,Youth Office Premises Cost              ,K06073,Premises Related Expenditure  ,RepairsAlterations&MtceOfBldgs,BA01,DDM - General Building,803,"1,440.00",1/18/2012,R,SALTASH ENTERPRISES LTD       
2012 - JAN,Childrens & Education Services,Youth Service,Youth Office Premises Cost              ,K06073,Premises Related Expenditure  ,RepairsAlterations&MtceOfBldgs,BA06,Repairs & Maintenance General,804,567.47,1/23/2012,R,DMA SIGNS LTD                 
2012 - JAN,Childrens & Education Services,Youth Service,Youth Office Premises Cost              ,K06073,Premises Related Expenditure  ,RepairsAlterations&MtceOfBldgs,BA06,Repairs & Maintenance General,805,650,1/24/2012,R,DMA SIGNS LTD                 
2012 - JAN,Childrens & Education Services,Supporting SEN,MST Project                             ,K06078,Third Party Payments          ,Private Contractors           ,EH01,Miscellaneous Agency Services,806,"140,590.00",11/29/2011,R,SW LONDON ST GEORGES NHS TRUST
2012 - JAN,Childrens & Education Services,Youth Service,Youth Opps Fund (GF C G)                ,K06093,Supplies & Services           ,Grants and Subscriptions      ,DJ01,Grants,807,"1,608.00",1/4/2012,R,BMETVFM                       
2012 - JAN,Childrens & Education Services,Youth Service,Youth Opps Fund (GF C G)                ,K06093,Supplies & Services           ,Grants and Subscriptions      ,DJ01,Grants,808,"1,598.27",1/23/2012,R,LEARN THROUGH SPORT           
2012 - JAN,Childrens & Education Services,Youth Service,Youth Opps Fund (GF C G)                ,K06093,Supplies & Services           ,Grants and Subscriptions      ,DJ01,Grants,809,984,1/26/2012,R,LEARN THROUGH SPORT           
2012 - JAN,Childrens & Education Services,Youth Service,Youth Opps Fund (GF C G)                ,K06093,Supplies & Services           ,Grants and Subscriptions      ,DJ01,Grants,810,"2,408.00",1/24/2012,R,FIRST CALL HOUSING            
2012 - JAN,Childrens & Education Services,Assuring Access To Schools,CONX - TEENAGE PREGNANCY                ,K06111,Supplies & Services           ,Equip Furniture/Materials     ,DA85,Teenage,811,"19,000.00",12/14/2011,R,SUTTON & MERTON PCT           
2012 - JAN,Childrens & Education Services,Assuring Access To Schools,Young Person Substance Misuse           ,K06114,Supplies & Services           ,Services                      ,DF03,Consultants,812,"18,350.00",12/14/2011,R,SUTTON & MERTON PCT           
2012 - JAN,Childrens & Education Services,Assuring Access To Schools,Young Person Substance Misuse           ,K06114,Third Party Payments          ,Private Contractors           ,EH01,Miscellaneous Agency Services,813,"1,650.00",12/14/2011,R,SUTTON & MERTON PCT           
2012 - JAN,Childrens & Education Services,Assuring Access To Schools,Young Person Substance Misuse           ,K06114,Third Party Payments          ,Private Contractors           ,EH01,Miscellaneous Agency Services,814,"53,293.50",11/30/2011,R,CATCH 22                      
2012 - JAN,Childrens & Education Services,Assuring Access To Schools,Children & Yth Participation            ,K06115,Supplies & Services           ,Expenses                      ,DH12,Young Peoples Expenses,815,"1,327.90",1/20/2012,R,LOVE2REWARD                   
2012 - JAN,Childrens & Education Services,Facilitating Sch Improvement,SSQ                                     ,K09077,Supplies & Services           ,Equip Furniture/Materials     ,DA58,Education Materials,816,845,12/20/2011,R,CENTRE LITERACY IN PRIM. EDUC.
2012 - JAN,Childrens & Education Services,Facilitating Sch Improvement,SSQ                                     ,K09077,Supplies & Services           ,Services                      ,DF03,Consultants,817,"1,050.00",12/12/2011,R,REDACTED
2012 - JAN,Childrens & Education Services,Facilitating Sch Improvement,SSQ                                     ,K09077,Supplies & Services           ,Services                      ,DF03,Consultants,818,"1,500.00",12/5/2011,R,REDACTED
2012 - JAN,Childrens & Education Services,Facilitating Sch Improvement,SSQ                                     ,K09077,Supplies & Services           ,Services                      ,DF03,Consultants,819,"2,000.00",12/16/2011,R,REDACTED
2012 - JAN,Childrens & Education Services,Facilitating Sch Improvement,SSQ                                     ,K09077,Supplies & Services           ,Services                      ,DF03,Consultants,820,500,12/6/2011,R,WOODCOTE PRIMARY SCHOOL       
2012 - JAN,Childrens & Education Services,Facilitating Sch Improvement,SSQ                                     ,K09077,Supplies & Services           ,Services                      ,DF03,Consultants,821,500,1/15/2012,R,REDACTED
2012 - JAN,Childrens & Education Services,Schools Strategic Management,Profess Develop Cntre                   ,K09084,Premises Related Expenditure  ,Water Services                ,BE01,Use of Water (Metered),822,735.18,1/3/2012,R,SUTTON & EAST SURREY WATER PLC
2012 - JAN,Childrens & Education Services,Schools Strategic Management,Profess Develop Cntre                   ,K09084,Premises Related Expenditure  ,Cleaning and Domestic Supplies,BH03,Cleaning Services,823,"2,568.85",12/25/2011,R,JULIUS RUTHERFOORD & CO LTD   
2012 - JAN,Childrens & Education Services,Assuring Access To Schools,Free School Meals                       ,K90002,Premises Related Expenditure  ,RepairsAlterations&MtceOfBldgs,BA01,DDM - General Building,824,633.16,12/22/2011,R,CATERCRAFT SUPPLIES LTD       
2012 - JAN,Childrens & Education Services,Assuring Access To Schools,Free School Meals                       ,K90002,Premises Related Expenditure  ,RepairsAlterations&MtceOfBldgs,BA01,DDM - General Building,825,"1,405.30",12/30/2011,R,CATERCRAFT SUPPLIES LTD       
2012 - JAN,Childrens & Education Services,Assuring Access To Schools,Free School Meals                       ,K90002,Supplies & Services           ,Grants and Subscriptions      ,DJ80,Free School Meals,826,"190,466.64",12/12/2011,R,ISS COLLECTIONS LTD           
2012 - JAN,Childrens & Education Services,Assuring Access To Schools,Alt Education - Pupil Budget            ,K90010,Supplies & Services           ,Services                      ,DF07,Bought in Teaching Services,827,"1,148.00",12/7/2011,R,HA TUTORS LTD                 
2012 - JAN,Childrens & Education Services,Assuring Access To Schools,Alt Education - Pupil Budget            ,K90010,Supplies & Services           ,Services                      ,DF07,Bought in Teaching Services,828,"8,100.00",12/8/2011,R,DIVERSE CUISINE TRAINING      
2012 - JAN,Childrens & Education Services,Assuring Access To Schools,Alt Education - Pupil Budget            ,K90010,Supplies & Services           ,Services                      ,DF07,Bought in Teaching Services,829,"1,400.00",11/22/2011,R,BLESSED LTD                   
2012 - JAN,Childrens & Education Services,Assuring Access To Schools,Alt Education - Pupil Budget            ,K90010,Supplies & Services           ,Services                      ,DF07,Bought in Teaching Services,830,"5,825.00",11/22/2011,R,BLESSED LTD                   
2012 - JAN,Childrens & Education Services,Assuring Access To Schools,Alt Education - Pupil Budget            ,K90010,Supplies & Services           ,Services                      ,DF07,Bought in Teaching Services,831,"14,040.00",1/3/2012,R,KIP MCGRATH EDUCATION CENTRE  
2012 - JAN,Childrens & Education Services,Assuring Access To Schools,Alt Education - Pupil Budget            ,K90010,Supplies & Services           ,Services                      ,DF07,Bought in Teaching Services,832,"1,500.00",1/4/2012,R,R W RECHERE & ASSOCIATES LTD  
2012 - JAN,Childrens & Education Services,Assuring Access To Schools,Alt Education - Pupil Budget            ,K90010,Supplies & Services           ,Services                      ,DF07,Bought in Teaching Services,833,"2,600.00",1/13/2012,R,SUTTON & DISTRICT TRAINING LTD
2012 - JAN,Childrens & Education Services,Assuring Access To Schools,Alt Education - Pupil Budget            ,K90010,Supplies & Services           ,Services                      ,DF07,Bought in Teaching Services,834,960,1/13/2012,R,SUTTON & DISTRICT TRAINING LTD
2012 - JAN,Childrens & Education Services,Assuring Access To Schools,Alt Education - Pupil Budget            ,K90010,Supplies & Services           ,Services                      ,DF07,Bought in Teaching Services,835,"10,236.00",1/10/2012,R,IMMANUEL HOUSE-COMM TRAINING  
2012 - JAN,Childrens & Education Services,Assuring Access To Schools,Alt Education - Pupil Budget            ,K90010,Supplies & Services           ,Services                      ,DF07,Bought in Teaching Services,836,"1,312.00",1/12/2012,R,HA TUTORS LTD                 
2012 - JAN,Childrens & Education Services,Assuring Access To Schools,Alt Education - Pupil Budget            ,K90010,Supplies & Services           ,Services                      ,DF07,Bought in Teaching Services,837,676.5,1/12/2012,R,HA TUTORS LTD                 
2012 - JAN,Childrens & Education Services,Assuring Access To Schools,Alt Education - Pupil Budget            ,K90010,Supplies & Services           ,Services                      ,DF07,Bought in Teaching Services,838,656,1/12/2012,R,HA TUTORS LTD                 
2012 - JAN,Childrens & Education Services,Supporting SEN,Smart Centre (Pupil Refer Unit          ,K90019,Employees                     ,Direct Employee Expenses      ,AA17,Agency Staff & Casual Paymts,839,"2,625.00",12/11/2011,R,TRADEWIND RECRUITMENT         
2012 - JAN,Childrens & Education Services,Supporting SEN,Smart Centre (Pupil Refer Unit          ,K90019,Employees                     ,Direct Employee Expenses      ,AA17,Agency Staff & Casual Paymts,840,"1,100.00",1/1/2012,R,TRADEWIND RECRUITMENT         
2012 - JAN,Childrens & Education Services,Supporting SEN,Smart Centre (Pupil Refer Unit          ,K90019,Employees                     ,Direct Employee Expenses      ,AA17,Agency Staff & Casual Paymts,841,"2,845.00",12/18/2011,R,TRADEWIND RECRUITMENT         
